{"text_format":"3","workbook":"xlsx","n_sheets":4,"sheets":["Celkové dle OP","E - financování dle SC","F - financování dle OP","G - Indikátory dle SC"],"not_rendered":{"defined_names":1},"read":"whole","date_system":"1900"}

{"sheet":"Celkové dle OP","index":0,"n_rows":10,"n_cols":5,"rows_kept":10,"merged":[[2,0,4,0],[5,0,6,0],[7,0,8,0]]}
[]
["Fond","Program","Příspěvek unie (tis.Kč)","Národní spolufinancování (tis. Kč)","Podpora (tis.Kč)"]
["EFRR","IROP",{"v":56272905.95,"d":"56,272,905.95 "},{"v":0,"d":"0.00 "},{"$f":"C3+D3","v":{"v":56272905.95,"d":"56,272,905.95 "}}]
[null,"OP ŽP",{"$f":"E4","v":{"v":12836.19,"d":"12,836.19 "}},{"v":0,"d":"0.00 "},{"v":12836.19,"d":"12,836.19 "}]
[null,"Celkem EFRR",{"$f":"SUM(C3:C4)","v":{"v":56285742.14,"d":"56,285,742.14 "}},{"$f":"SUM(D3:D4)","v":{"v":0,"d":"0.00 "}},{"$f":"SUM(E3:E4)","v":{"v":56285742.14,"d":"56,285,742.14 "}}]
["ESF","OP Z",{"v":12335.1,"d":"12,335.10 "},{"v":1590.01,"d":"1,590.01 "},{"$f":"C6+D6","v":{"v":13925.11,"d":"13,925.11 "}}]
[null,"Celkem ESF",{"$f":"C6","v":{"v":12335.1,"d":"12,335.10 "}},{"$f":"D6","v":{"v":1590.01,"d":"1,590.01 "}},{"v":13925.11,"d":"13,925.11 "}]
["EZFRV","PRV",{"$f":"E8/100*75","v":{"v":22320.697500000002,"d":"22,320.70 "}},{"$f":"E8/100*25","v":{"v":7440.2325,"d":"7,440.23 "}},{"v":29760.93,"d":"29,760.93 "}]
[null,"Celkem EZFRV",{"v":22320.71,"d":"22,320.71 "},{"v":7440.22,"d":"7,440.22 "},{"$f":"E8","v":{"v":29760.93,"d":"29,760.93 "}}]
["Celkem",null,{"$f":"C5+C7+C9","v":{"v":56320397.95,"d":"56,320,397.95 "}},{"$f":"D5+D7+D9","v":{"v":9030.23,"d":"9,030.23 "}},{"$f":"E5+E7+E9","v":{"v":56329428.18,"d":"56,329,428.18 "}}]

{"sheet":"E - financování dle SC","index":1,"n_rows":216,"n_cols":15,"rows_kept":216,"merged":[[2,0,4,0],[2,1,4,1],[2,2,4,2],[2,3,2,6],[2,7,2,12],[2,13,4,13],[3,3,4,3],[3,4,4,4],[3,5,4,5],[3,6,4,6],[3,7,4,7],[3,8,3,9],[3,10,3,12],[5,0,6,0],[5,1,6,1],[8,0,22,0],[8,1,11,1],[12,1,13,1],[14,1,17,1],[18,1,22,1],[26,0,28,0],[26,1,28,1],[26,2,28,2],[26,3,26,6],[26,7,26,12],[26,13,28,13],[27,3,28,3],[27,4,28,4],[27,5,28,5],[27,6,28,6],[27,7,28,7],[27,8,27,9],[27,10,27,12],[29,0,30,0],[29,1,30,1],[32,0,46,0],[32,1,35,1],[36,1,37,1],[38,1,41,1],[42,1,46,1],[50,0,52,0],[50,1,52,1],[50,2,52,2],[50,3,50,6],[50,7,50,12],[50,13,52,13],[51,3,52,3],[51,4,52,4],[51,5,52,5],[51,6,52,6],[51,7,52,7],[51,8,51,9],[51,10,51,12],[53,0,54,0],[53,1,54,1],[56,0,70,0],[56,1,59,1],[60,1,61,1],[62,1,65,1],[66,1,70,1],[74,0,76,0],[74,1,76,1],[74,2,76,2],[74,3,74,6],[74,7,74,12],[74,13,76,13],[75,3,76,3],[75,4,76,4],[75,5,76,5],[75,6,76,6],[75,7,76,7],[75,8,75,9],[75,10,75,12],[77,0,78,0],[77,1,78,1],[80,0,94,0],[80,1,83,1],[84,1,85,1],[86,1,89,1],[90,1,94,1],[98,0,100,0],[98,1,100,1],[98,2,100,2],[98,3,98,6],[98,7,98,12],[98,13,100,13],[99,3,100,3],[99,4,100,4],[99,5,100,5],[99,6,100,6],[99,7,100,7],[99,8,99,9],[99,10,99,12],[101,0,102,0],[101,1,102,1],[104,0,118,0],[104,1,107,1],[108,1,109,1],[110,1,113,1],[114,1,118,1],[122,0,124,0],[122,1,124,1],[122,2,124,2],[122,3,122,6],[122,7,122,12],[122,13,124,13],[123,3,124,3],[123,4,124,4],[123,5,124,5],[123,6,124,6],[123,7,124,7],[123,8,123,9],[123,10,123,12],[125,0,126,0],[125,1,126,1],[128,0,142,0],[128,1,131,1],[132,1,133,1],[134,1,137,1],[138,1,142,1],[146,0,148,0],[146,1,148,1],[146,2,148,2],[146,3,146,6],[146,7,146,12],[146,13,148,13],[147,3,148,3],[147,4,148,4],[147,5,148,5],[147,6,148,6],[147,7,148,7],[147,8,147,9],[147,10,147,12],[149,0,150,0],[149,1,150,1],[152,0,166,0],[152,1,155,1],[156,1,157,1],[158,1,161,1],[162,1,166,1],[170,0,172,0],[170,1,172,1],[170,2,172,2],[170,3,170,6],[170,7,170,12],[170,13,172,13],[171,3,172,3],[171,4,172,4],[171,5,172,5],[171,6,172,6],[171,7,172,7],[171,8,171,9],[171,10,171,12],[173,0,174,0],[173,1,174,1],[176,0,190,0],[176,1,179,1],[180,1,181,1],[182,1,185,1],[186,1,190,1],[194,0,196,0],[194,1,196,1],[194,2,196,2],[194,3,194,6],[194,7,194,12],[194,13,196,13],[195,3,196,3],[195,4,196,4],[195,5,196,5],[195,6,196,6],[195,7,196,7],[195,8,195,9],[195,10,195,12],[197,0,198,0],[197,1,198,1],[200,0,214,0],[200,1,203,1],[204,1,205,1],[206,1,209,1],[210,1,214,1]]}
["Období 2016 - 2023"]
[]
["Specifický cíl SCLLD","Opatření SCLLD","Podopatření SCLLD","Identifikace programu",{"$nulls":3},"Plán financování ",{"$nulls":5},"Nezpůsobilé výdaje (v tis. Kč)"]
[{"$nulls":3},"Program","Prioritní osa / Priorita Unie","Investiční priorita OP / Prioritní oblast","Specifický cíl OP / Operace PRV","Celkové způsobilé výdaje (CZV)","z toho podpora",null,"z toho vlastní zdroje příjemců"]
[{"$nulls":8},"Příspěvek Unie (a)","Národní veřejné zdroje (SR, SF) (b)","Národní veřejné zdroje (kraj, obce, jiné)    ( c ) ","Národní soukromé zdroje (d)","Soukromé zdroje PRV"]
["SC1","O  1.1.","1.1.1. Ochrana regionu","IROP",4,"9d","4.1.",{"$f":"H30+H54+H78+H102+H126++H150+H174+H198","v":{"v":6334642,"d":"6,334,642.00 "}},{"$f":"I30+I54+I78+I102+I126++I150+I174+I198","v":{"v":6017909.9,"d":"6,017,909.90 "}},{"$f":"J30+J54+J78+J102+J126++J150+J174+J198","v":{"v":0,"d":"0.00 "}},{"$f":"K30+K54+K78+K102+K126++K150+K174+K198","v":{"v":316732.1,"d":"316,732.10 "}},{"$f":"L30+L54+L78+L102+L126++L150+L174+L198","v":{"v":0,"d":"0.00 "}},"xxx",{"$f":"N30+N54+N78+N102+N126++N150+N174+N198","v":{"v":0,"d":"0.00 "}}]
[null,null,"1.1.2. Krajina je naše zrcadlo","OP ŽP",4,1,"4.3.",{"v":15101400,"d":"15,101,400.00 "},{"v":12836190,"d":"12,836,190.00 "},{"v":0,"d":"0.00 "},{"v":1534107.09,"d":"1,534,107.09 "},{"v":731102.91,"d":"731,102.91 "},"xxx",{"v":0,"d":"0.00 "}]
["SC  2","O  2.3.","2.3.1. Rekreační lesy","PRV",6,"6b","19.2.",{"v":2924582,"d":"2,924,582.00 "},{"v":1871731,"d":"1,871,731.00 "},{"v":1052851,"d":"1,052,851.00 "},"xxx","xxx",{"v":0,"d":"0.00 "},{"v":0,"d":"0.00 "},{"$f":"I8+J8","v":{"v":2924582,"d":"2,924,582.00"}}]
["SC 3","O 3.1.","3.1.1.Podpora a rozvoj občanské vybavenosti ","PRV",6,"6b","19.3.",{"v":1506008,"d":"1,506,008.00 "},{"v":867386,"d":"867,386.00 "},{"v":487904,"d":"487,904.00 "},"xxx","xxx",{"v":150718,"d":"150,718.00 "},{"v":0,"d":"0.00 "},{"$f":"I9+J9","v":{"v":1355290,"d":"1,355,290.00"}}]
[null,null,"3.1.6.  Základní služby a obnova vesnic ve venkovských oblastech","PRV",6,"6b","19.2.",{"v":20310245,"d":"20,310,245.00 "},{"v":10398846,"d":"10,398,846.00 "},{"v":5849350,"d":"5,849,350.00 "},"xxx","xxx",{"v":4062049,"d":"4,062,049.00 "},{"v":0,"d":"0.00 "},{"v":16248196,"d":"16,248,196.00"}]
[null,null,"3.1.4. Sociální služby","OP ZAM",2,3,"2.3.",{"v":3259750,"d":"3,259,750.00 "},{"v":2770787.5,"d":"2,770,787.50 "},{"v":488962.5,"d":"488,962.50 "},{"v":0,"d":"0.00 "},{"v":0,"d":"0.00 "},"xxx",{"v":0,"d":"0.00 "}]
[null,null,"3.1.5. Bezpečná a dostupná doprava","IROP",4,"9d","4.1.",{"$f":"H36+H60+H84+H108+H132++H156+H180+H204","v":{"v":30869226.49,"d":"30,869,226.49 "}},{"$f":"I36+I60+I84+I108+I132++I156+I180+I204","v":{"v":29325764.4035,"d":"29,325,764.40 "}},{"$f":"J36+J60+J84+J108+J132++J156+J180+J204","v":{"v":0,"d":"0.00 "}},{"$f":"K36+K60+K84+K108+K132++K156+K180+K204","v":{"v":1543462.0864999983,"d":"1,543,462.09 "}},{"$f":"L36+L60+L84+L108+L132++L156+L180+L204","v":{"v":0,"d":"0.00 "}},"xxx",{"$f":"N36+N60+N84+N108+N132++N156+N180+N204","v":{"v":0,"d":"0.00 "}},{"$f":"H12-I12","v":{"v":1543462.0865000002,"d":"1,543,462.09"}}]
[null,"O3.2.","3.2.1. Podpora místních trhů","PRV",6,"6b","19.2.",{"v":0,"d":"0.00 "},{"v":0,"d":"0.00 "},{"v":0,"d":"0.00 "},"xxx","xxx",{"v":0,"d":"0.00 "},{"v":0,"d":"0.00 "},{"$f":"I13+J13","v":{"v":0,"d":"0.00"}}]
[null,null,"3.2.2. Regionální produkce","PRV",6,"6b","19.2.",{"v":1994399,"d":"1,994,399.00 "},{"v":638207,"d":"638,207.00 "},{"v":358992,"d":"358,992.00 "},"xxx","xxx",{"v":997200,"d":"997,200.00 "},{"v":0,"d":"0.00 "},{"v":997199,"d":"997,199.00"}]
[null,"O 3.3.","3.3.1. Krajina krásnější","PRV",6,"6b","19.2.",{"v":12959513,"d":"12,959,513.00 "},{"v":4363255,"d":"4,363,255.00 "},{"v":2454334,"d":"2,454,334.00 "},"xxx","xxx",{"v":6141924,"d":"6,141,924.00 "},{"v":0,"d":"0.00 "},{"v":6817589,"d":"6,817,589.00"}]
[null,null,"3.3.2. Rozvoj nezemědělské činnosti","PRV",6,"6b","19.2.",{"v":4071392,"d":"4,071,392.00 "},{"v":907567,"d":"907,567.00 "},{"v":510507,"d":"510,507.00 "},"xxx","xxx",{"v":2653318,"d":"2,653,318.00"},{"v":0,"d":"0.00 "},{"$f":"I16+J16","v":{"v":1418074,"d":"1,418,074.00"}}]
[null,null,"3.3.3. Lesnická infrastruktura","PRV",6,"6b","19.2.",{"v":0,"d":"0.00 "},{"v":0,"d":"0.00 "},{"v":0,"d":"0.00 "},"xxx","xxx",{"v":0,"d":"0.00 "},{"v":0,"d":"0.00 "},{"v":0,"d":"0.00"}]
[null,null,"3.3.4. Lesnická technika","PRV",6,"6b","19.2.",{"v":0,"d":"0.00 "},{"v":0,"d":"0.00 "},{"v":0,"d":"0.00 "},"xxx","xxx",{"v":0,"d":"0.00 "},{"v":0,"d":"0.00 "},{"v":0,"d":"0.00"}]
[null,"O 3.4.","3.4.1. Rozvoj sociálního podnikání ","IROP",4,"9d","4.1.",{"$f":"H43+H67+H91+H115+H139++H163+H187+H211","v":{"v":0,"d":"0.00 "}},{"$f":"I43+I67+I91+I115+I139++I163+I187+I211","v":{"v":0,"d":"0.00 "}},{"$f":"J43+J67+J91+J115+J139++J163+J187+J211","v":{"v":0,"d":"0.00 "}},{"$f":"K43+K67+K91+K115+K139++K163+K187+K211","v":{"v":0,"d":"0.00 "}},116826.8999999999,"xxx",{"$f":"N43+N67+N91+N115+N139++N163+N187+N211","v":{"v":0,"d":"0.00 "}}]
[null,null,"3.4.2. Vzděláváním k zaměstnanosti","OP ZAM",2,3,"2.3.",{"v":2585100,"d":"2,585,100.00 "},{"v":2197335,"d":"2,197,335.00 "},{"v":387765,"d":"387,765.00 "},{"v":0,"d":"0.00 "},{"v":0,"d":"0.00 "},"xxx",{"v":0,"d":"0.00 "}]
[null,null,"3.4.3. Sociální podnikání","OP ZAM",2,3,"2.3.",{"v":3911700,"d":"3,911,700.00 "},{"v":3324945,"d":"3,324,945.00 "},{"v":0,"d":"0.00 "},{"v":586755,"d":"586,755.00 "},{"v":0,"d":"0.00 "},"xxx",{"v":0,"d":"0.00 "}]
[null,null,"3.4.4. Kvalita a dostupnost sociálních služeb","IROP",4,"9d","4.1.",{"$f":"H46+H70+H94+H118+H142++H166+H190+H214","v":{"v":6132372.39,"d":"6,132,372.39 "}},{"$f":"I46+I70+I94+I118+I142++I166+I190+I214","v":{"v":5825753.7705,"d":"5,825,753.77 "}},{"$f":"J46+J70+J94+J118+J142++J166+J190+J214","v":{"v":0,"d":"0.00 "}},{"v":0,"d":"0.00 "},{"$f":"L46+L70+L94+L118+L142++L166+L190+L214","v":{"v":306618.61950000026,"d":"306,618.62 "}},"xxx",{"$f":"N46+N70+N94+N118+N142++N166+N190+N214","v":{"v":0,"d":"0.00 "}}]
[null,null,"3.4.5. Prorodinná opatření","OP ZAM",2,3,"2.3.",{"v":4755330,"d":"4,755,330.00 "},{"v":4042030.5,"d":"4,042,030.50 "},{"v":713299.5,"d":"713,299.50 "},{"v":0,"d":"0.00 "},{"v":0,"d":"0.00 "},"xxx",{"v":0,"d":"0.00 "}]
["SC  4","O 4.1.","4.1.1. Školy dostupné všem","IROP",4,"9d","4.1.",{"$f":"H48+H72+H96+H120+H144++H168+H192+H216","v":{"v":15898397.760000002,"d":"15,898,397.76 "}},{"$f":"I48+I72+I96+I120+I144++I168+I192+I216","v":{"v":15103477.868999999,"d":"15,103,477.87 "}},{"$f":"J48+J72+J96+J120+J144++J168+J192+J216","v":{"v":0,"d":"0.00 "}},{"$f":"K48+K72+K96+K120+K144++K168+K192+K216","v":{"v":665143.3805000015,"d":"665,143.38 "}},{"$f":"L48+L72+L96+L120+L144++L168+L192+L216","v":{"v":129776.51050000021,"d":"129,776.51 "}},"xxx",{"$f":"N48+N72+N96+N120+N144++N168+N192+N216","v":{"v":0,"d":"0.00 "}}]
[]
["R0k 2016"]
["Specifický cíl SCLLD","Opatření SCLLD","Podopatření SCLLD","Identifikace programu",{"$nulls":3},"Plán financování ",{"$nulls":5},"Nezpůsobilé výdaje (v tis. Kč)"]
[{"$nulls":3},"Program","Prioritní osa / Priorita Unie","Investiční priorita OP / Prioritní oblast","Specifický cíl OP / Operace PRV","Celkové způsobilé výdaje (CZV)","z toho podpora",null,"z toho vlastní zdroje příjemců"]
[{"$nulls":8},"Příspěvek Unie (a)","Národní veřejné zdroje (SR, SF) (b)","Národní veřejné zdroje (kraj, obce, jiné)    ( c ) ","Národní soukromé zdroje (d)","Soukromé zdroje PRV"]
["SC1","O  1.1.","1.1.1. Ochrana regionu","IROP",4,"9d","4.1.",{"v":0,"d":"0.00 "},{"v":0,"d":"0.00 "},{"v":0,"d":"0.00 "},{"v":0,"d":"0.00 "},{"v":0,"d":"0.00 "},"xxx",{"v":0,"d":"0.00 "}]
[null,null,"1.1.2. Krajina je naše zrcadlo","OP ŽP",4,1,"4.3.",{"v":0,"d":"0.00 "},{"v":0,"d":"0.00 "},{"v":0,"d":"0.00 "},{"v":0,"d":"0.00 "},{"v":0,"d":"0.00 "},"xxx",{"v":0,"d":"0.00 "}]
["SC  2","O  2.3.","2.3.1. Rekreační lesy","PRV",6,"6b","19.2.",{"v":0,"d":"0.00 "},{"v":0,"d":"0.00 "},{"v":0,"d":"0.00 "},"xxx","xxx",{"v":0,"d":"0.00 "},{"v":0,"d":"0.00 "}]
["SC 3","O 3.1.","3.1.1.Podpora a rozvoj občanské vybavenosti ","PRV",6,"6b","19.3.",{"v":0,"d":"0.00 "},{"v":0,"d":"0.00 "},{"v":0,"d":"0.00 "},"xxx","xxx",{"v":0,"d":"0.00 "},{"v":0,"d":"0.00 "}]
[null,null,"3.1.6.  Základní služby a obnova vesnic ve venkovských oblastech","PRV",6,"6b","19.2.",{"v":0,"d":"0.00 "},{"v":0,"d":"0.00 "},{"v":0,"d":"0.00 "},"xxx","xxx",{"v":0,"d":"0.00 "},{"v":0,"d":"0.00 "}]
[null,null,"3.1.4. Sociální služby","OP ZAM",2,3,"2.3.",{"v":0,"d":"0.00 "},{"v":0,"d":"0.00 "},{"v":0,"d":"0.00 "},{"v":0,"d":"0.00 "},{"v":0,"d":"0.00 "},"xxx",{"v":0,"d":"0.00 "}]
[null,null,"3.1.5. Bezpečná a dostupná doprava","IROP",4,"9d","4.1.",{"v":0,"d":"0.00 "},{"v":0,"d":"0.00 "},{"v":0,"d":"0.00 "},{"v":0,"d":"0.00 "},{"v":0,"d":"0.00 "},"xxx",{"v":0,"d":"0.00 "}]
[null,"O3.2.","3.2.1. Podpora místních trhů","PRV",6,"6b","19.2.",{"v":0,"d":"0.00 "},{"v":0,"d":"0.00 "},{"v":0,"d":"0.00 "},"xxx","xxx",{"v":0,"d":"0.00 "},{"v":0,"d":"0.00 "}]
[null,null,"3.2.2. Regionální produkce","PRV",6,"6b","19.2.",{"v":0,"d":"0.00 "},{"v":0,"d":"0.00 "},{"v":0,"d":"0.00 "},"xxx","xxx",{"v":0,"d":"0.00 "},{"v":0,"d":"0.00 "}]
[null,"O 3.3.","3.3.1. Krajina krásnější","PRV",6,"6b","19.2.",{"v":0,"d":"0.00 "},{"v":0,"d":"0.00 "},{"v":0,"d":"0.00 "},"xxx","xxx",{"v":0,"d":"0.00 "},{"v":0,"d":"0.00 "}]
[null,null,"3.3.2. Rozvoj nezemědělské činnosti","PRV",6,"6b","19.2.",{"v":0,"d":"0.00 "},{"v":0,"d":"0.00 "},{"v":0,"d":"0.00 "},"xxx","xxx",{"v":0,"d":"0.00 "},{"v":0,"d":"0.00 "}]
[null,null,"3.3.3. Lesnická infrastruktura","PRV",6,"6b","19.2.",{"v":0,"d":"0.00 "},{"v":0,"d":"0.00 "},{"v":0,"d":"0.00 "},"xxx","xxx",{"v":0,"d":"0.00 "},{"v":0,"d":"0.00 "}]
[null,null,"3.3.4. Lesnická technika","PRV",6,"6b","19.2.",{"v":0,"d":"0.00 "},{"v":0,"d":"0.00 "},{"v":0,"d":"0.00 "},"xxx","xxx",{"v":0,"d":"0.00 "},{"v":0,"d":"0.00 "}]
[null,"O 3.4.","3.4.1. Rozvoj sociálního podnikání ","IROP",4,"9d","4.1.",{"v":0,"d":"0.00 "},{"v":0,"d":"0.00 "},{"v":0,"d":"0.00 "},{"v":0,"d":"0.00 "},{"v":0,"d":"0.00 "},"xxx",{"v":0,"d":"0.00 "}]
[null,null,"3.4.2. Vzděláváním k zaměstnanosti","OP ZAM",2,3,"2.3.",{"v":0,"d":"0.00 "},{"v":0,"d":"0.00 "},{"v":0,"d":"0.00 "},{"v":0,"d":"0.00 "},{"v":0,"d":"0.00 "},"xxx",{"v":0,"d":"0.00 "}]
[null,null,"3.4.3. Sociální podnikání","OP ZAM",2,3,"2.3.",{"v":0,"d":"0.00 "},{"v":0,"d":"0.00 "},{"v":0,"d":"0.00 "},{"v":0,"d":"0.00 "},{"v":0,"d":"0.00 "},"xxx",{"v":0,"d":"0.00 "}]
[null,null,"3.4.4. Kvalita a dostupnost sociálních služeb","IROP",4,"9d","4.1.",{"v":0,"d":"0.00 "},{"v":0,"d":"0.00 "},{"v":0,"d":"0.00 "},{"v":0,"d":"0.00 "},{"v":0,"d":"0.00 "},"xxx",{"v":0,"d":"0.00 "}]
[null,null,"3.4.5. Prorodinná opatření","OP ZAM",2,3,"2.3.",{"v":0,"d":"0.00 "},{"v":0,"d":"0.00 "},{"v":0,"d":"0.00 "},{"v":0,"d":"0.00 "},{"v":0,"d":"0.00 "},"xxx",{"v":0,"d":"0.00 "}]
["SC  4","O 4.1.","4.1.1. Školy dostupné všem","IROP",4,"9d","4.1.",{"v":0,"d":"0.00 "},{"v":0,"d":"0.00 "},{"v":0,"d":"0.00 "},{"v":0,"d":"0.00 "},{"v":0,"d":"0.00 "},"xxx",{"v":0,"d":"0.00 "}]
[]
["Rok 2017"]
["Specifický cíl SCLLD","Opatření SCLLD","Podopatření SCLLD","Identifikace programu",{"$nulls":3},"Plán financování ",{"$nulls":5},"Nezpůsobilé výdaje (v tis. Kč)"]
[{"$nulls":3},"Program","Prioritní osa / Priorita Unie","Investiční priorita OP / Prioritní oblast","Specifický cíl OP / Operace PRV","Celkové způsobilé výdaje (CZV)","z toho podpora",null,"z toho vlastní zdroje příjemců"]
[{"$nulls":8},"Příspěvek Unie (a)","Národní veřejné zdroje (SR, SF) (b)","Národní veřejné zdroje (kraj, obce, jiné)    ( c ) ","Národní soukromé zdroje (d)","Soukromé zdroje PRV"]
["SC1","O  1.1.","1.1.1. Ochrana regionu","IROP",4,"9d","4.1.",{"v":0,"d":"0.00 "},{"v":0,"d":"0.00 "},{"v":0,"d":"0.00 "},{"v":0,"d":"0.00 "},{"v":0,"d":"0.00 "},"xxx",{"v":0,"d":"0.00 "}]
[null,null,"1.1.2. Krajina je naše zrcadlo","OP ŽP",4,1,"4.3.",{"v":0,"d":"0.00 "},{"v":0,"d":"0.00 "},{"v":0,"d":"0.00 "},{"v":0,"d":"0.00 "},{"v":0,"d":"0.00 "},"xxx",{"v":0,"d":"0.00 "}]
["SC  2","O  2.3.","2.3.1. Rekreační lesy","PRV",6,"6b","19.2.",{"v":0,"d":"0.00 "},{"v":0,"d":"0.00 "},{"v":0,"d":"0.00 "},"xxx","xxx",{"v":0,"d":"0.00 "},{"v":0,"d":"0.00 "}]
["SC 3","O 3.1.","3.1.1.Podpora a rozvoj občanské vybavenosti ","PRV",6,"6b","19.3.",{"v":0,"d":"0.00 "},{"v":0,"d":"0.00 "},{"v":0,"d":"0.00 "},"xxx","xxx",{"v":0,"d":"0.00 "},{"v":0,"d":"0.00 "}]
[null,null,"3.1.6.  Základní služby a obnova vesnic ve venkovských oblastech","PRV",6,"6b","19.2.",{"v":0,"d":"0.00 "},{"v":0,"d":"0.00 "},{"v":0,"d":"0.00 "},"xxx","xxx",{"v":0,"d":"0.00 "},{"v":0,"d":"0.00 "}]
[null,null,"3.1.4. Sociální služby","OP ZAM",2,3,"2.3.",{"v":0,"d":"0.00 "},{"v":0,"d":"0.00 "},{"v":0,"d":"0.00 "},{"v":0,"d":"0.00 "},{"v":0,"d":"0.00 "},"xxx",{"v":0,"d":"0.00 "}]
[null,null,"3.1.5. Bezpečná a dostupná doprava","IROP",4,"9d","4.1.",{"v":0,"d":"0.00 "},{"v":0,"d":"0.00 "},{"v":0,"d":"0.00 "},{"v":0,"d":"0.00 "},{"v":0,"d":"0.00 "},"xxx",{"v":0,"d":"0.00 "}]
[null,"O3.2.","3.2.1. Podpora místních trhů","PRV",6,"6b","19.2.",{"v":0,"d":"0.00 "},{"v":0,"d":"0.00 "},{"v":0,"d":"0.00 "},"xxx","xxx",{"v":0,"d":"0.00 "},{"v":0,"d":"0.00 "}]
[null,null,"3.2.2. Regionální produkce","PRV",6,"6b","19.2.",{"v":0,"d":"0.00 "},{"v":0,"d":"0.00 "},{"v":0,"d":"0.00 "},"xxx","xxx",{"v":0,"d":"0.00 "},{"v":0,"d":"0.00 "}]
[null,"O 3.3.","3.3.1. Krajina krásnější","PRV",6,"6b","19.2.",{"v":0,"d":"0.00 "},{"v":0,"d":"0.00 "},{"v":0,"d":"0.00 "},"xxx","xxx",{"v":0,"d":"0.00 "},{"v":0,"d":"0.00 "}]
[null,null,"3.3.2. Rozvoj nezemědělské činnosti","PRV",6,"6b","19.2.",{"v":0,"d":"0.00 "},{"v":0,"d":"0.00 "},{"v":0,"d":"0.00 "},"xxx","xxx",{"v":0,"d":"0.00 "},{"v":0,"d":"0.00 "}]
[null,null,"3.3.3. Lesnická infrastruktura","PRV",6,"6b","19.2.",{"v":0,"d":"0.00 "},{"v":0,"d":"0.00 "},{"v":0,"d":"0.00 "},"xxx","xxx",{"v":0,"d":"0.00 "},{"v":0,"d":"0.00 "}]
[null,null,"3.3.4. Lesnická technika","PRV",6,"6b","19.2.",{"v":0,"d":"0.00 "},{"v":0,"d":"0.00 "},{"v":0,"d":"0.00 "},"xxx","xxx",{"v":0,"d":"0.00 "},{"v":0,"d":"0.00 "}]
[null,"O 3.4.","3.4.1. Rozvoj sociálního podnikání ","IROP",4,"9d","4.1.",{"v":0,"d":"0.00 "},{"v":0,"d":"0.00 "},{"v":0,"d":"0.00 "},{"v":0,"d":"0.00 "},{"v":0,"d":"0.00 "},"xxx",{"v":0,"d":"0.00 "}]
[null,null,"3.4.2. Vzděláváním k zaměstnanosti","OP ZAM",2,3,"2.3.",{"v":0,"d":"0.00 "},{"v":0,"d":"0.00 "},{"v":0,"d":"0.00 "},{"v":0,"d":"0.00 "},{"v":0,"d":"0.00 "},"xxx",{"v":0,"d":"0.00 "}]
[null,null,"3.4.3. Sociální podnikání","OP ZAM",2,3,"2.3.",{"v":0,"d":"0.00 "},{"v":0,"d":"0.00 "},{"v":0,"d":"0.00 "},{"v":0,"d":"0.00 "},{"v":0,"d":"0.00 "},"xxx",{"v":0,"d":"0.00 "}]
[null,null,"3.4.4. Kvalita a dostupnost sociálních služeb","IROP",4,"9d","4.1.",{"v":0,"d":"0.00 "},{"v":0,"d":"0.00 "},{"v":0,"d":"0.00 "},{"v":0,"d":"0.00 "},{"v":0,"d":"0.00 "},"xxx",{"v":0,"d":"0.00 "}]
[null,null,"3.4.5. Prorodinná opatření","OP ZAM",2,3,"2.3.",{"v":0,"d":"0.00 "},{"v":0,"d":"0.00 "},{"v":0,"d":"0.00 "},{"v":0,"d":"0.00 "},{"v":0,"d":"0.00 "},"xxx",{"v":0,"d":"0.00 "}]
["SC  4","O 4.1.","4.1.1. Školy dostupné všem","IROP",4,"9d","4.1.",{"v":0,"d":"0.00 "},{"v":0,"d":"0.00 "},{"v":0,"d":"0.00 "},{"v":0,"d":"0.00 "},{"v":0,"d":"0.00 "},"xxx",{"v":0,"d":"0.00 "}]
[]
["Rok 2018"]
["Specifický cíl SCLLD","Opatření SCLLD","Podopatření SCLLD","Identifikace programu",{"$nulls":3},"Plán financování ",{"$nulls":5},"Nezpůsobilé výdaje (v tis. Kč)"]
[{"$nulls":3},"Program","Prioritní osa / Priorita Unie","Investiční priorita OP / Prioritní oblast","Specifický cíl OP / Operace PRV","Celkové způsobilé výdaje (CZV)","z toho podpora",null,"z toho vlastní zdroje příjemců"]
[{"$nulls":8},"Příspěvek Unie (a)","Národní veřejné zdroje (SR, SF) (b)","Národní veřejné zdroje (kraj, obce, jiné)    ( c ) ","Národní soukromé zdroje (d)","Soukromé zdroje PRV"]
["SC1","O  1.1.","1.1.1. Ochrana regionu","IROP",4,"9d","4.1.",{"v":999867,"d":"999,867.00 "},{"v":949873.65,"d":"949,873.65 "},{"v":0,"d":"0.00 "},{"$f":"H78-I78","v":{"v":49993.34999999998,"d":"49,993.35 "}},{"v":0,"d":"0.00 "},"xxx",{"v":0,"d":"0.00 "}]
[null,null,"1.1.2. Krajina je naše zrcadlo","OP ŽP",4,1,"4.3.",{"v":0,"d":"0.00 "},{"v":0,"d":"0.00 "},{"v":0,"d":"0.00 "},{"v":0,"d":"0.00 "},{"v":0,"d":"0.00 "},"xxx",{"v":0,"d":"0.00 "}]
["SC  2","O  2.3.","2.3.1. Rekreační lesy","PRV",6,"6b","19.2.",{"v":999969,"d":"999,969.00 "},{"v":639980,"d":"639,980.00 "},{"v":359989,"d":"359,989.00 "},"xxx","xxx",{"v":0,"d":"0.00 "},{"v":0,"d":"0.00 "}]
["SC 3","O 3.1.","3.1.1.Podpora a rozvoj občanské vybavenosti ","PRV",6,"6b","19.3.",{"v":755130,"d":"755,130.00 "},{"v":434880,"d":"434,880.00 "},{"v":244620,"d":"244,620.00 "},"xxx","xxx",{"v":75630,"d":"75,630.00 "},{"v":0,"d":"0.00 "}]
[null,null,"3.1.6.  Základní služby a obnova vesnic ve venkovských oblastech","PRV",6,"6b","19.2.",{"v":0,"d":"0.00 "},{"v":0,"d":"0.00 "},{"v":0,"d":"0.00 "},"xxx","xxx",{"v":0,"d":"0.00 "},{"v":0,"d":"0.00 "}]
[null,null,"3.1.4. Sociální služby","OP ZAM",2,3,"2.3.",{"v":0,"d":"0.00 "},{"v":0,"d":"0.00 "},{"v":0,"d":"0.00 "},{"v":0,"d":"0.00 "},{"v":0,"d":"0.00 "},"xxx",{"v":0,"d":"0.00 "}]
[null,null,"3.1.5. Bezpečná a dostupná doprava","IROP",4,"9d","4.1.",{"v":0,"d":"0.00 "},{"v":0,"d":"0.00 "},{"v":0,"d":"0.00 "},{"v":0,"d":"0.00 "},{"v":0,"d":"0.00 "},"xxx",{"v":0,"d":"0.00 "}]
[null,"O3.2.","3.2.1. Podpora místních trhů","PRV",6,"6b","19.2.",{"v":0,"d":"0.00 "},{"v":0,"d":"0.00 "},{"v":0,"d":"0.00 "},"xxx","xxx",{"v":0,"d":"0.00 "},{"v":0,"d":"0.00 "}]
[null,null,"3.2.2. Regionální produkce","PRV",6,"6b","19.2.",{"v":0,"d":"0.00 "},{"v":0,"d":"0.00 "},{"v":0,"d":"0.00 "},"xxx","xxx",{"v":0,"d":"0.00 "},{"v":0,"d":"0.00 "}]
[null,"O 3.3.","3.3.1. Krajina krásnější","PRV",6,"6b","19.2.",{"v":3747883,"d":"3,747,883.00 "},{"v":1315602,"d":"1,315,602.00 "},{"v":740027,"d":"740,027.00 "},"xxx","xxx",{"v":1692254,"d":"1,692,254.00 "},{"v":0,"d":"0.00 "}]
[null,null,"3.3.2. Rozvoj nezemědělské činnosti","PRV",6,"6b","19.2.",{"v":906000,"d":"906,000.00 "},{"v":260928,"d":"260,928.00 "},{"v":146772,"d":"146,772.00 "},"xxx","xxx",{"v":498300,"d":"498,300.00 "},{"v":0,"d":"0.00 "}]
[null,null,"3.3.3. Lesnická infrastruktura","PRV",6,"6b","19.2.",{"v":0,"d":"0.00 "},{"v":0,"d":"0.00 "},{"v":0,"d":"0.00 "},"xxx","xxx",{"v":0,"d":"0.00 "},{"v":0,"d":"0.00 "}]
[null,null,"3.3.4. Lesnická technika","PRV",6,"6b","19.2.",{"v":0,"d":"0.00 "},{"v":0,"d":"0.00 "},{"v":0,"d":"0.00 "},"xxx","xxx",{"v":0,"d":"0.00 "},{"v":0,"d":"0.00 "}]
[null,"O 3.4.","3.4.1. Rozvoj sociálního podnikání ","IROP",4,"9d","4.1.",{"v":0,"d":"0.00 "},{"v":0,"d":"0.00 "},{"v":0,"d":"0.00 "},{"v":0,"d":"0.00 "},{"v":0,"d":"0.00 "},"xxx",{"v":0,"d":"0.00 "}]
[null,null,"3.4.2. Vzděláváním k zaměstnanosti","OP ZAM",2,3,"2.3.",{"v":0,"d":"0.00 "},{"v":0,"d":"0.00 "},{"v":0,"d":"0.00 "},{"v":0,"d":"0.00 "},{"v":0,"d":"0.00 "},"xxx",{"v":0,"d":"0.00 "}]
[null,null,"3.4.3. Sociální podnikání","OP ZAM",2,3,"2.3.",{"v":0,"d":"0.00 "},{"v":0,"d":"0.00 "},{"v":0,"d":"0.00 "},{"v":0,"d":"0.00 "},{"v":0,"d":"0.00 "},"xxx",{"v":0,"d":"0.00 "}]
[null,null,"3.4.4. Kvalita a dostupnost sociálních služeb","IROP",4,"9d","4.1.",{"v":0,"d":"0.00 "},{"v":0,"d":"0.00 "},{"v":0,"d":"0.00 "},{"v":0,"d":"0.00 "},{"v":0,"d":"0.00 "},"xxx",{"v":0,"d":"0.00 "}]
[null,null,"3.4.5. Prorodinná opatření","OP ZAM",2,3,"2.3.",{"v":741210,"d":"741,210.00 "},{"v":630028.5,"d":"630,028.50 "},{"v":111181.5,"d":"111,181.50 "},{"v":0,"d":"0.00 "},{"v":0,"d":"0.00 "},"xxx",{"v":0,"d":"0.00 "}]
["SC  4","O 4.1.","4.1.1. Školy dostupné všem","IROP",4,"9d","4.1.",{"v":0,"d":"0.00 "},{"v":0,"d":"0.00 "},{"v":0,"d":"0.00 "},{"v":0,"d":"0.00 "},{"v":0,"d":"0.00 "},"xxx",{"v":0,"d":"0.00 "}]
[]
["Rok 2019"]
["Specifický cíl SCLLD","Opatření SCLLD","Podopatření SCLLD","Identifikace programu",{"$nulls":3},"Plán financování ",{"$nulls":5},"Nezpůsobilé výdaje (v tis. Kč)"]
[{"$nulls":3},"Program","Prioritní osa / Priorita Unie","Investiční priorita OP / Prioritní oblast","Specifický cíl OP / Operace PRV","Celkové způsobilé výdaje (CZV)","z toho podpora",null,"z toho vlastní zdroje příjemců"]
[{"$nulls":8},"Příspěvek Unie (a)","Národní veřejné zdroje (SR, SF) (b)","Národní veřejné zdroje (kraj, obce, jiné)    ( c ) ","Národní soukromé zdroje (d)","Soukromé zdroje PRV"]
["SC1","O  1.1.","1.1.1. Ochrana regionu","IROP",4,"9d","4.1.",{"v":0,"d":"0.00 "},{"v":0,"d":"0.00 "},{"v":0,"d":"0.00 "},{"v":0,"d":"0.00 "},{"v":0,"d":"0.00 "},"xxx",{"v":0,"d":"0.00 "}]
[null,null,"1.1.2. Krajina je naše zrcadlo","OP ŽP",4,1,"4.3.",{"v":0,"d":"0.00 "},{"v":0,"d":"0.00 "},{"v":0,"d":"0.00 "},{"v":0,"d":"0.00 "},{"v":0,"d":"0.00 "},"xxx",{"v":0,"d":"0.00 "}]
["SC  2","O  2.3.","2.3.1. Rekreační lesy","PRV",6,"6b","19.2.",{"v":1924613,"d":"1,924,613.00 "},{"v":1231751,"d":"1,231,751.00 "},{"v":692862,"d":"692,862.00 "},"xxx","xxx",{"v":0,"d":"0.00 "},{"v":0,"d":"0.00 "}]
["SC 3","O 3.1.","3.1.1.Podpora a rozvoj občanské vybavenosti ","PRV",6,"6b","19.3.",{"v":0,"d":"0.00 "},{"v":0,"d":"0.00 "},{"v":0,"d":"0.00 "},"xxx","xxx",{"v":0,"d":"0.00 "},{"v":0,"d":"0.00 "}]
[null,null,"3.1.6.  Základní služby a obnova vesnic ve venkovských oblastech","PRV",6,"6b","19.2.",{"v":0,"d":"0.00 "},{"v":0,"d":"0.00 "},{"v":0,"d":"0.00 "},"xxx","xxx",{"v":0,"d":"0.00 "},{"v":0,"d":"0.00 "}]
[null,null,"3.1.4. Sociální služby","OP ZAM",2,3,"2.3.",{"v":0,"d":"0.00 "},{"v":0,"d":"0.00 "},{"v":0,"d":"0.00 "},{"v":0,"d":"0.00 "},{"v":0,"d":"0.00 "},"xxx",{"v":0,"d":"0.00 "}]
[null,null,"3.1.5. Bezpečná a dostupná doprava","IROP",4,"9d","4.1.",{"v":1720000,"d":"1,720,000.00 "},{"v":1634000,"d":"1,634,000.00 "},{"v":0,"d":"0.00 "},{"$f":"H108-I108","v":{"v":86000,"d":"86,000.00 "}},{"v":0,"d":"0.00 "},"xxx",{"v":0,"d":"0.00 "}]
[null,"O3.2.","3.2.1. Podpora místních trhů","PRV",6,"6b","19.2.",{"v":0,"d":"0.00 "},{"v":0,"d":"0.00 "},{"v":0,"d":"0.00 "},"xxx","xxx",{"v":0,"d":"0.00 "},{"v":0,"d":"0.00 "}]
[null,null,"3.2.2. Regionální produkce","PRV",6,"6b","19.2.",{"v":0,"d":"0.00 "},{"v":0,"d":"0.00 "},{"v":0,"d":"0.00 "},"xxx","xxx",{"v":0,"d":"0.00 "},{"v":0,"d":"0.00 "}]
[null,"O 3.3.","3.3.1. Krajina krásnější","PRV",6,"6b","19.2.",{"v":7993866,"d":"7,993,866.00 "},{"v":2658087,"d":"2,658,087.00 "},{"v":1495176,"d":"1,495,176.00 "},"xxx","xxx",{"v":3840603,"d":"3,840,603.00 "},{"v":0,"d":"0.00 "}]
[null,null,"3.3.2. Rozvoj nezemědělské činnosti","PRV",6,"6b","19.2.",{"v":0,"d":"0.00 "},{"v":0,"d":"0.00 "},{"v":0,"d":"0.00 "},"xxx","xxx",{"v":0,"d":"0.00 "},{"v":0,"d":"0.00 "}]
[null,null,"3.3.3. Lesnická infrastruktura","PRV",6,"6b","19.2.",{"v":0,"d":"0.00 "},{"v":0,"d":"0.00 "},{"v":0,"d":"0.00 "},"xxx","xxx",{"v":0,"d":"0.00 "},{"v":0,"d":"0.00 "}]
[null,null,"3.3.4. Lesnická technika","PRV",6,"6b","19.2.",{"v":0,"d":"0.00 "},{"v":0,"d":"0.00 "},{"v":0,"d":"0.00 "},"xxx","xxx",{"v":0,"d":"0.00 "},{"v":0,"d":"0.00 "}]
[null,"O 3.4.","3.4.1. Rozvoj sociálního podnikání ","IROP",4,"9d","4.1.",{"v":0,"d":"0.00 "},{"v":0,"d":"0.00 "},{"v":0,"d":"0.00 "},{"v":0,"d":"0.00 "},{"v":0,"d":"0.00 "},"xxx",{"v":0,"d":"0.00 "}]
[null,null,"3.4.2. Vzděláváním k zaměstnanosti","OP ZAM",2,3,"2.3.",{"v":430850,"d":"430,850.00 "},{"v":366222.5,"d":"366,222.50 "},{"v":64627.5,"d":"64,627.50 "},{"v":0,"d":"0.00 "},{"v":0,"d":"0.00 "},"xxx",{"v":0,"d":"0.00 "}]
[null,null,"3.4.3. Sociální podnikání","OP ZAM",2,3,"2.3.",{"v":0,"d":"0.00 "},{"v":0,"d":"0.00 "},{"v":0,"d":"0.00 "},{"v":0,"d":"0.00 "},{"v":0,"d":"0.00 "},"xxx",{"v":0,"d":"0.00 "}]
[null,null,"3.4.4. Kvalita a dostupnost sociálních služeb","IROP",4,"9d","4.1.",{"v":1574813.39,"d":"1,574,813.39 "},{"v":1496072.7204999998,"d":"1,496,072.72 "},{"v":0,"d":"0.00 "},{"v":0,"d":"0.00 "},{"$f":"H118-I118","v":{"v":78740.66950000008,"d":"78,740.67 "}},"xxx",{"v":0,"d":"0.00 "}]
[null,null,"3.4.5. Prorodinná opatření","OP ZAM",2,3,"2.3.",{"v":1191700,"d":"1,191,700.00 "},{"v":1012945,"d":"1,012,945.00 "},{"v":178755,"d":"178,755.00 "},{"v":0,"d":"0.00 "},{"v":0,"d":"0.00 "},"xxx",{"v":0,"d":"0.00 "}]
["SC  4","O 4.1.","4.1.1. Školy dostupné všem","IROP",4,"9d","4.1.",{"v":4000000,"d":"4,000,000.00 "},{"v":3800000,"d":"3,800,000.00 "},{"v":0,"d":"0.00 "},{"$f":"H120-I120","v":{"v":200000,"d":"200,000.00 "}},{"v":0,"d":"0.00 "},"xxx",{"v":0,"d":"0.00 "}]
[]
["Rok 2020"]
["Specifický cíl SCLLD","Opatření SCLLD","Podopatření SCLLD","Identifikace programu",{"$nulls":3},"Plán financování ",{"$nulls":5},"Nezpůsobilé výdaje (v tis. Kč)"]
[{"$nulls":3},"Program","Prioritní osa / Priorita Unie","Investiční priorita OP / Prioritní oblast","Specifický cíl OP / Operace PRV","Celkové způsobilé výdaje (CZV)","z toho podpora",null,"z toho vlastní zdroje příjemců"]
[{"$nulls":8},"Příspěvek Unie (a)","Národní veřejné zdroje (SR, SF) (b)","Národní veřejné zdroje (kraj, obce, jiné)    ( c ) ","Národní soukromé zdroje (d)","Soukromé zdroje PRV"]
["SC1","O  1.1.","1.1.1. Ochrana regionu","IROP",4,"9d","4.1.",{"v":5334775,"d":"5,334,775.00 "},{"v":5068036.25,"d":"5,068,036.25 "},{"v":0,"d":"0.00 "},{"$f":"H126-I126","v":{"v":266738.75,"d":"266,738.75 "}},{"v":0,"d":"0.00 "},"xxx",{"v":0,"d":"0.00 "}]
[null,null,"1.1.2. Krajina je naše zrcadlo","OP ŽP",4,1,"4.3.",{"v":479341.88,"d":"479,341.88 "},{"v":407440.59,"d":"407,440.59 "},{"v":0,"d":"0.00 "},{"v":71901.29,"d":"71,901.29 "},{"v":0,"d":"0.00 "},"xxx",{"v":0,"d":"0.00 "}]
["SC  2","O  2.3.","2.3.1. Rekreační lesy","PRV",6,"6b","19.2.",{"v":0,"d":"0.00 "},{"v":0,"d":"0.00 "},{"v":0,"d":"0.00 "},"xxx","xxx",{"v":0,"d":"0.00 "},{"v":0,"d":"0.00 "}]
["SC 3","O 3.1.","3.1.1.Podpora a rozvoj občanské vybavenosti ","PRV",6,"6b","19.3.",{"v":750878,"d":"750,878.00 "},{"v":432506,"d":"432,506.00 "},{"v":243284,"d":"243,284.00 "},"xxx","xxx",{"v":75088,"d":"75,088.00 "},{"v":0,"d":"0.00 "}]
[null,null,"3.1.6.  Základní služby a obnova vesnic ve venkovských oblastech","PRV",6,"6b","19.2.",{"v":20310245,"d":"20,310,245.00 "},{"v":10398846,"d":"10,398,846.00 "},{"v":5849350,"d":"5,849,350.00 "},"xxx","xxx",{"v":4062049,"d":"4,062,049.00 "},{"v":0,"d":"0.00 "}]
[null,null,"3.1.4. Sociální služby","OP ZAM",2,3,"2.3.",{"v":1119010,"d":"1,119,010.00 "},{"v":951158.5,"d":"951,158.50 "},{"v":167851.5,"d":"167,851.50 "},{"v":0,"d":"0.00 "},{"v":0,"d":"0.00 "},{"v":0,"d":"0.00 "},{"v":0,"d":"0.00 "}]
[null,null,"3.1.5. Bezpečná a dostupná doprava","IROP",4,"9d","4.1.",{"v":18992961.13,"d":"18,992,961.13 "},{"v":18043313.0735,"d":"18,043,313.07 "},{"v":0,"d":"0.00 "},{"$f":"H132-I132","v":{"v":949648.056499999,"d":"949,648.06 "}},{"v":0,"d":"0.00 "},{"v":0,"d":"0.00 "},{"v":0,"d":"0.00 "}]
[null,"O3.2.","3.2.1. Podpora místních trhů","PRV",6,"6b","19.2.",{"v":0,"d":"0.00 "},{"v":0,"d":"0.00 "},{"v":0,"d":"0.00 "},"xxx","xxx",{"v":0,"d":"0.00 "},{"v":0,"d":"0.00 "}]
[null,null,"3.2.2. Regionální produkce","PRV",6,"6b","19.2.",{"v":1994399,"d":"1,994,399.00 "},{"v":638207,"d":"638,207.00 "},{"v":358992,"d":"358,992.00 "},"xxx","xxx",{"v":997200,"d":"997,200.00 "},{"v":0,"d":"0.00 "}]
[null,"O 3.3.","3.3.1. Krajina krásnější","PRV",6,"6b","19.2.",{"v":1217794,"d":"1,217,794.00 "},{"v":389566,"d":"389,566.00 "},{"v":219131,"d":"219,131.00 "},"xxx","xxx",{"v":609097,"d":"609,097.00 "},{"v":0,"d":"0.00 "}]
[null,null,"3.3.2. Rozvoj nezemědělské činnosti","PRV",6,"6b","19.2.",{"v":3165392,"d":"3,165,392.00 "},{"v":646639,"d":"646,639.00 "},{"v":363735,"d":"363,735.00 "},"xxx","xxx",{"v":2155018,"d":"2,155,018.00 "},{"v":0,"d":"0.00 "}]
[null,null,"3.3.3. Lesnická infrastruktura","PRV",6,"6b","19.2.",{"v":0,"d":"0.00 "},{"v":0,"d":"0.00 "},{"v":0,"d":"0.00 "},"xxx","xxx",{"v":0,"d":"0.00 "},{"v":0,"d":"0.00 "}]
[null,null,"3.3.4. Lesnická technika","PRV",6,"6b","19.2.",{"v":0,"d":"0.00 "},{"v":0,"d":"0.00 "},{"v":0,"d":"0.00 "},"xxx","xxx",{"v":0,"d":"0.00 "},{"v":0,"d":"0.00 "}]
[null,"O 3.4.","3.4.1. Rozvoj sociálního podnikání ","IROP",4,"9d","4.1.",{"v":0,"d":"0.00 "},{"v":0,"d":"0.00 "},{"v":0,"d":"0.00 "},{"v":0,"d":"0.00 "},{"v":0,"d":"0.00 "},"xxx",{"v":0,"d":"0.00 "}]
[null,null,"3.4.2. Vzděláváním k zaměstnanosti","OP ZAM",2,3,"2.3.",{"v":861700,"d":"861,700.00 "},{"v":732445,"d":"732,445.00 "},{"v":129255,"d":"129,255.00 "},{"v":0,"d":"0.00 "},{"v":0,"d":"0.00 "},"xxx",{"v":0,"d":"0.00 "}]
[null,null,"3.4.3. Sociální podnikání","OP ZAM",2,3,"2.3.",{"v":977930,"d":"977,930.00 "},{"v":831240.5,"d":"831,240.50 "},{"v":0,"d":"0.00 "},{"v":0,"d":"0.00 "},{"v":146689.5,"d":"146,689.50 "},"xxx",{"v":0,"d":"0.00 "}]
[null,null,"3.4.4. Kvalita a dostupnost sociálních služeb","IROP",4,"9d","4.1.",{"v":4557559,"d":"4,557,559.00 "},{"v":4329681.05,"d":"4,329,681.05 "},{"v":0,"d":"0.00 "},{"v":0,"d":"0.00 "},{"$f":"H142-I142","v":{"v":227877.9500000002,"d":"227,877.95 "}},"xxx",{"v":0,"d":"0.00 "}]
[null,null,"3.4.5. Prorodinná opatření","OP ZAM",2,3,"2.3.",{"v":1151600,"d":"1,151,600.00 "},{"v":978860,"d":"978,860.00 "},{"v":172740,"d":"172,740.00 "},{"v":0,"d":"0.00 "},{"v":0,"d":"0.00 "},"xxx",{"v":0,"d":"0.00 "}]
["SC  4","O 4.1.","4.1.1. Školy dostupné všem","IROP",4,"9d","4.1.",{"v":4240986.8100000005,"d":"4,240,986.81 "},{"v":4028937.4694999997,"d":"4,028,937.47 "},{"v":0,"d":"0.00 "},{"$f":"H144-I144-L144","v":{"v":157248.6405000008,"d":"157,248.64 "}},{"v":54800.70000000007,"d":"54,800.70 "},"xxx",{"v":0,"d":"0.00 "}]
[]
["Rok 2021"]
["Specifický cíl SCLLD","Opatření SCLLD","Podopatření SCLLD","Identifikace programu",{"$nulls":3},"Plán financování ",{"$nulls":5},"Nezpůsobilé výdaje (v tis. Kč)"]
[{"$nulls":3},"Program","Prioritní osa / Priorita Unie","Investiční priorita OP / Prioritní oblast","Specifický cíl OP / Operace PRV","Celkové způsobilé výdaje (CZV)","z toho podpora",null,"z toho vlastní zdroje příjemců"]
[{"$nulls":8},"Příspěvek Unie (a)","Národní veřejné zdroje (SR, SF) (b)","Národní veřejné zdroje (kraj, obce, jiné)    ( c ) ","Národní soukromé zdroje (d)","Soukromé zdroje PRV"]
["SC1","O  1.1.","1.1.1. Ochrana regionu","IROP",4,"9d","4.1.",{"v":0,"d":"0.00 "},{"v":0,"d":"0.00 "},{"v":0,"d":"0.00 "},{"$f":"H150-I150","v":{"v":0,"d":"0.00 "}},{"v":0,"d":"0.00 "},"xxx",{"v":0,"d":"0.00 "}]
[null,null,"1.1.2. Krajina je naše zrcadlo","OP ŽP",4,1,"4.3.",{"v":4874019.37,"d":"4,874,019.37 "},{"v":4142916.47,"d":"4,142,916.47 "},{"v":0,"d":"0.00 "},{"v":487401.93,"d":"487,401.93 "},{"v":243700.97,"d":"243,700.97 "},"xxx",{"v":0,"d":"0.00 "}]
["SC  2","O  2.3.","2.3.1. Rekreační lesy","PRV",6,"6b","19.2.",{"v":0,"d":"0.00 "},{"v":0,"d":"0.00 "},{"v":0,"d":"0.00 "},"xxx","xxx",{"v":0,"d":"0.00 "},{"v":0,"d":"0.00 "}]
["SC 3","O 3.1.","3.1.1.Podpora a rozvoj občanské vybavenosti ","PRV",6,"6b","19.3.",{"v":0,"d":"0.00 "},{"v":0,"d":"0.00 "},{"v":0,"d":"0.00 "},"xxx","xxx",{"v":0,"d":"0.00 "},{"v":0,"d":"0.00 "}]
[null,null,"3.1.6.  Základní služby a obnova vesnic ve venkovských oblastech","PRV",6,"6b","19.2.",{"v":0,"d":"0.00 "},{"v":0,"d":"0.00 "},{"v":0,"d":"0.00 "},"xxx","xxx",{"v":0,"d":"0.00 "},{"v":0,"d":"0.00 "}]
[null,null,"3.1.4. Sociální služby","OP ZAM",2,3,"2.3.",{"v":1119010,"d":"1,119,010.00 "},{"v":951158.5,"d":"951,158.50 "},{"v":167851.5,"d":"167,851.50 "},{"v":0,"d":"0.00 "},{"v":0,"d":"0.00 "},"xxx",{"v":0,"d":"0.00 "}]
[null,null,"3.1.5. Bezpečná a dostupná doprava","IROP",4,"9d","4.1.",{"v":10156265.36,"d":"10,156,265.36 "},{"v":9648451.33,"d":"9,648,451.33 "},{"v":0,"d":"0.00 "},{"$f":"H156-I156","v":{"v":507814.02999999933,"d":"507,814.03 "}},{"v":0,"d":"0.00 "},"xxx",{"v":0,"d":"0.00 "}]
[null,"O3.2.","3.2.1. Podpora místních trhů","PRV",6,"6b","19.2.",{"v":0,"d":"0.00 "},{"v":0,"d":"0.00 "},{"v":0,"d":"0.00 "},"xxx","xxx",{"v":0,"d":"0.00 "},{"v":0,"d":"0.00 "}]
[null,null,"3.2.2. Regionální produkce","PRV",6,"6b","19.2.",{"v":0,"d":"0.00 "},{"v":0,"d":"0.00 "},{"v":0,"d":"0.00 "},"xxx","xxx",{"v":0,"d":"0.00 "},{"v":0,"d":"0.00 "}]
[null,"O 3.3.","3.3.1. Krajina krásnější","PRV",6,"6b","19.2.",{"v":0,"d":"0.00 "},{"v":0,"d":"0.00 "},{"v":0,"d":"0.00 "},"xxx","xxx",{"v":0,"d":"0.00 "},{"v":0,"d":"0.00 "}]
[null,null,"3.3.2. Rozvoj nezemědělské činnosti","PRV",6,"6b","19.2.",{"v":0,"d":"0.00 "},{"v":0,"d":"0.00 "},{"v":0,"d":"0.00 "},"xxx","xxx",{"v":0,"d":"0.00 "},{"v":0,"d":"0.00 "}]
[null,null,"3.3.3. Lesnická infrastruktura","PRV",6,"6b","19.2.",{"v":0,"d":"0.00 "},{"v":0,"d":"0.00 "},{"v":0,"d":"0.00 "},"xxx","xxx",{"v":0,"d":"0.00 "},{"v":0,"d":"0.00 "}]
[null,null,"3.3.4. Lesnická technika","PRV",6,"6b","19.2.",{"v":0,"d":"0.00 "},{"v":0,"d":"0.00 "},{"v":0,"d":"0.00 "},"xxx","xxx",{"v":0,"d":"0.00 "},{"v":0,"d":"0.00 "}]
[null,"O 3.4.","3.4.1. Rozvoj sociálního podnikání ","IROP",4,"9d","4.1.",{"v":0,"d":"0.00 "},{"v":0,"d":"0.00 "},{"v":0,"d":"0.00 "},{"v":0,"d":"0.00 "},{"v":0,"d":"0.00 "},"xxx",{"v":0,"d":"0.00 "}]
[null,null,"3.4.2. Vzděláváním k zaměstnanosti","OP ZAM",2,3,"2.3.",{"v":1292550,"d":"1,292,550.00 "},{"v":1098667.5,"d":"1,098,667.50 "},{"v":193882.5,"d":"193,882.50 "},{"v":0,"d":"0.00 "},{"v":0,"d":"0.00 "},"xxx",{"v":0,"d":"0.00 "}]
[null,null,"3.4.3. Sociální podnikání","OP ZAM",2,3,"2.3.",{"v":1955850,"d":"1,955,850.00 "},{"v":166247250,"d":"166,247,250.00 "},{"v":0,"d":"0.00 "},{"v":293377.5,"d":"293,377.50 "},{"v":0,"d":"0.00 "},"xxx",{"v":0,"d":"0.00 "}]
[null,null,"3.4.4. Kvalita a dostupnost sociálních služeb","IROP",4,"9d","4.1.",{"v":0,"d":"0.00 "},{"v":0,"d":"0.00 "},{"v":0,"d":"0.00 "},{"$f":"H166-I166","v":{"v":0,"d":"0.00 "}},{"v":0,"d":"0.00 "},"xxx",{"v":0,"d":"0.00 "}]
[null,null,"3.4.5. Prorodinná opatření","OP ZAM",2,3,"2.3.",{"v":1004150,"d":"1,004,150.00 "},{"v":853527.5,"d":"853,527.50 "},{"v":150622.5,"d":"150,622.50 "},{"v":0,"d":"0.00 "},{"v":0,"d":"0.00 "},"xxx",{"v":0,"d":"0.00 "}]
["SC  4","O 4.1.","4.1.1. Školy dostupné všem","IROP",4,"9d","4.1.",{"v":7657410.95,"d":"7,657,410.95 "},{"v":7274540.399499999,"d":"7,274,540.40 "},{"v":0,"d":"0.00 "},{"$f":"H168-I168-L168","v":{"v":307894.7400000007,"d":"307,894.74 "}},{"v":74975.81050000014,"d":"74,975.81 "},"xxx",{"v":0,"d":"0.00 "}]
[]
["Rok 2022"]
["Specifický cíl SCLLD","Opatření SCLLD","Podopatření SCLLD","Identifikace programu",{"$nulls":3},"Plán financování ",{"$nulls":5},"Nezpůsobilé výdaje (v tis. Kč)"]
[{"$nulls":3},"Program","Prioritní osa / Priorita Unie","Investiční priorita OP / Prioritní oblast","Specifický cíl OP / Operace PRV","Celkové způsobilé výdaje (CZV)","z toho podpora",null,"z toho vlastní zdroje příjemců"]
[{"$nulls":8},"Příspěvek Unie (a)","Národní veřejné zdroje (SR, SF) (b)","Národní veřejné zdroje (kraj, obce, jiné)    ( c ) ","Národní soukromé zdroje (d)","Soukromé zdroje PRV"]
["SC1","O  1.1.","1.1.1. Ochrana regionu","IROP",4,"9d","4.1.",{"v":0,"d":"0.00 "},{"v":0,"d":"0.00 "},{"v":0,"d":"0.00 "},{"v":0,"d":"0.00 "},{"v":0,"d":"0.00 "},"xxx",{"v":0,"d":"0.00 "}]
[null,null,"1.1.2. Krajina je naše zrcadlo","OP ŽP",4,1,"4.3.",{"v":4874019.37,"d":"4,874,019.37 "},{"v":4142916.47,"d":"4,142,916.47 "},{"v":0,"d":"0.00 "},{"v":487401.93,"d":"487,401.93 "},{"v":243700.97,"d":"243,700.97 "},"xxx",{"v":0,"d":"0.00 "}]
["SC  2","O  2.3.","2.3.1. Rekreační lesy","PRV",6,"6b","19.2.",{"v":0,"d":"0.00 "},{"v":0,"d":"0.00 "},{"v":0,"d":"0.00 "},"xxx","xxx",{"v":0,"d":"0.00 "},{"v":0,"d":"0.00 "}]
["SC 3","O 3.1.","3.1.1.Podpora a rozvoj občanské vybavenosti ","PRV",6,"6b","19.3.",{"v":0,"d":"0.00 "},{"v":0,"d":"0.00 "},{"v":0,"d":"0.00 "},"xxx","xxx",{"v":0,"d":"0.00 "},{"v":0,"d":"0.00 "}]
[null,null,"3.1.6.  Základní služby a obnova vesnic ve venkovských oblastech","PRV",6,"6b","19.2.",{"v":0,"d":"0.00 "},{"v":0,"d":"0.00 "},{"v":0,"d":"0.00 "},"xxx","xxx",{"v":0,"d":"0.00 "},{"v":0,"d":"0.00 "}]
[null,null,"3.1.4. Sociální služby","OP ZAM",2,3,"2.3.",{"v":1021730,"d":"1,021,730.00 "},{"v":868470.5,"d":"868,470.50 "},{"v":153259.5,"d":"153,259.50 "},{"v":0,"d":"0.00 "},{"v":0,"d":"0.00 "},"xxx",{"v":0,"d":"0.00 "}]
[null,null,"3.1.5. Bezpečná a dostupná doprava","IROP",4,"9d","4.1.",{"v":0,"d":"0.00 "},{"v":0,"d":"0.00 "},{"v":0,"d":"0.00 "},{"$f":"H180-I180","v":{"v":0,"d":"0.00 "}},{"v":0,"d":"0.00 "},"xxx",{"v":0,"d":"0.00 "}]
[null,"O3.2.","3.2.1. Podpora místních trhů","PRV",6,"6b","19.2.",{"v":0,"d":"0.00 "},{"v":0,"d":"0.00 "},{"v":0,"d":"0.00 "},"xxx","xxx",{"v":0,"d":"0.00 "},{"v":0,"d":"0.00 "}]
[null,null,"3.2.2. Regionální produkce","PRV",6,"6b","19.2.",{"v":0,"d":"0.00 "},{"v":0,"d":"0.00 "},{"v":0,"d":"0.00 "},"xxx","xxx",{"v":0,"d":"0.00 "},{"v":0,"d":"0.00 "}]
[null,"O 3.3.","3.3.1. Krajina krásnější","PRV",6,"6b","19.2.",{"v":0,"d":"0.00 "},{"v":0,"d":"0.00 "},{"v":0,"d":"0.00 "},"xxx","xxx",{"v":0,"d":"0.00 "},{"v":0,"d":"0.00 "}]
[null,null,"3.3.2. Rozvoj nezemědělské činnosti","PRV",6,"6b","19.2.",{"v":0,"d":"0.00 "},{"v":0,"d":"0.00 "},{"v":0,"d":"0.00 "},"xxx","xxx",{"v":0,"d":"0.00 "},{"v":0,"d":"0.00 "}]
[null,null,"3.3.3. Lesnická infrastruktura","PRV",6,"6b","19.2.",{"v":0,"d":"0.00 "},{"v":0,"d":"0.00 "},{"v":0,"d":"0.00 "},"xxx","xxx",{"v":0,"d":"0.00 "},{"v":0,"d":"0.00 "}]
[null,null,"3.3.4. Lesnická technika","PRV",6,"6b","19.2.",{"v":0,"d":"0.00 "},{"v":0,"d":"0.00 "},{"v":0,"d":"0.00 "},"xxx","xxx",{"v":0,"d":"0.00 "},{"v":0,"d":"0.00 "}]
[null,"O 3.4.","3.4.1. Rozvoj sociálního podnikání ","IROP",4,"9d","4.1.",{"v":0,"d":"0.00 "},{"v":0,"d":"0.00 "},{"v":0,"d":"0.00 "},{"v":0,"d":"0.00 "},{"v":0,"d":"0.00 "},"xxx",{"v":0,"d":"0.00 "}]
[null,null,"3.4.2. Vzděláváním k zaměstnanosti","OP ZAM",2,3,"2.3.",{"v":0,"d":"0.00 "},{"v":0,"d":"0.00 "},{"v":0,"d":"0.00 "},{"v":0,"d":"0.00 "},{"v":0,"d":"0.00 "},"xxx",{"v":0,"d":"0.00 "}]
[null,null,"3.4.3. Sociální podnikání","OP ZAM",2,3,"2.3.",{"v":977920,"d":"977,920.00 "},{"v":831232,"d":"831,232.00 "},{"v":0,"d":"0.00 "},{"v":146688,"d":"146,688.00 "},{"v":0,"d":"0.00 "},"xxx",{"v":0,"d":"0.00 "}]
[null,null,"3.4.4. Kvalita a dostupnost sociálních služeb","IROP",4,"9d","4.1.",{"v":0,"d":"0.00 "},{"v":0,"d":"0.00 "},{"v":0,"d":"0.00 "},{"$f":"H190-I190","v":{"v":0,"d":"0.00 "}},{"v":0,"d":"0.00 "},"xxx",{"v":0,"d":"0.00 "}]
[null,null,"3.4.5. Prorodinná opatření","OP ZAM",2,3,"2.3.",{"v":666670,"d":"666,670.00 "},{"v":566669.5,"d":"566,669.50 "},{"v":100000.5,"d":"100,000.50 "},{"v":0,"d":"0.00 "},{"v":0,"d":"0.00 "},"xxx",{"v":0,"d":"0.00 "}]
["SC  4","O 4.1.","4.1.1. Školy dostupné všem","IROP",4,"9d","4.1.",{"v":0,"d":"0.00 "},{"v":0,"d":"0.00 "},{"v":0,"d":"0.00 "},{"$f":"H192-I192","v":{"v":0,"d":"0.00 "}},{"v":0,"d":"0.00 "},"xxx",{"v":0,"d":"0.00 "}]
[]
["Rok 2023"]
["Specifický cíl SCLLD","Opatření SCLLD","Podopatření SCLLD","Identifikace programu",{"$nulls":3},"Plán financování ",{"$nulls":5},"Nezpůsobilé výdaje (v tis. Kč)"]
[{"$nulls":3},"Program","Prioritní osa / Priorita Unie","Investiční priorita OP / Prioritní oblast","Specifický cíl OP / Operace PRV","Celkové způsobilé výdaje (CZV)","z toho podpora",null,"z toho vlastní zdroje příjemců"]
[{"$nulls":8},"Příspěvek Unie (a)","Národní veřejné zdroje (SR, SF) (b)","Národní veřejné zdroje (kraj, obce, jiné)    ( c ) ","Národní soukromé zdroje (d)","Soukromé zdroje PRV"]
["SC1","O  1.1.","1.1.1. Ochrana regionu","IROP",4,"9d","4.1.",{"v":0,"d":"0.00 "},{"v":0,"d":"0.00 "},{"v":0,"d":"0.00 "},{"$f":"H198-I198","v":{"v":0,"d":"0.00 "}},{"v":0,"d":"0.00 "},"xxx",{"v":0,"d":"0.00 "}]
[null,null,"1.1.2. Krajina je naše zrcadlo","OP ŽP",4,1,"4.3.",{"v":4874019.38,"d":"4,874,019.38 "},{"v":4142916.47,"d":"4,142,916.47 "},{"v":0,"d":"0.00 "},{"v":487401.94,"d":"487,401.94 "},{"v":243700.97,"d":"243,700.97 "},"xxx",{"v":0,"d":"0.00 "}]
["SC  2","O  2.3.","2.3.1. Rekreační lesy","PRV",6,"6b","19.2.",{"v":0,"d":"0.00 "},{"v":0,"d":"0.00 "},"xxx","xxx","xxx",{"v":0,"d":"0.00 "},{"v":0,"d":"0.00 "}]
["SC 3","O 3.1.","3.1.1.Podpora a rozvoj občanské vybavenosti ","PRV",6,"6b","19.3.",{"v":0,"d":"0.00 "},{"v":0,"d":"0.00 "},"xxx","xxx","xxx",{"v":0,"d":"0.00 "},{"v":0,"d":"0.00 "}]
[null,null,"3.1.6.  Základní služby a obnova vesnic ve venkovských oblastech","PRV",6,"6b","19.2.",{"v":0,"d":"0.00 "},{"v":0,"d":"0.00 "},{"v":0,"d":"0.00 "},"xxx","xxx",{"v":0,"d":"0.00 "},{"v":0,"d":"0.00 "}]
[null,null,"3.1.4. Sociální služby","OP ZAM",2,3,"2.3.",{"v":0,"d":"0.00 "},{"v":0,"d":"0.00 "},{"v":0,"d":"0.00 "},{"v":0,"d":"0.00 "},{"v":0,"d":"0.00 "},"xxx",{"v":0,"d":"0.00 "}]
[null,null,"3.1.5. Bezpečná a dostupná doprava","IROP",4,"9d","4.1.",{"v":0,"d":"0.00 "},{"v":0,"d":"0.00 "},{"v":0,"d":"0.00 "},{"$f":"H204-I204","v":{"v":0,"d":"0.00 "}},{"v":0,"d":"0.00 "},"xxx",{"v":0,"d":"0.00 "}]
[null,"O3.2.","3.2.1. Podpora místních trhů","PRV",6,"6b","19.2.",{"v":0,"d":"0.00 "},{"v":0,"d":"0.00 "},"xxx","xxx","xxx",{"v":0,"d":"0.00 "},{"v":0,"d":"0.00 "}]
[null,null,"3.2.2. Regionální produkce","PRV",6,"6b","19.2.",{"v":0,"d":"0.00 "},{"v":0,"d":"0.00 "},"xxx","xxx","xxx",{"v":0,"d":"0.00 "},{"v":0,"d":"0.00 "}]
[null,"O 3.3.","3.3.1. Krajina krásnější","PRV",6,"6b","19.2.",{"v":0,"d":"0.00 "},{"v":0,"d":"0.00 "},"xxx","xxx","xxx",{"v":0,"d":"0.00 "},{"v":0,"d":"0.00 "}]
[null,null,"3.3.2. Rozvoj nezemědělské činnosti","PRV",6,"6b","19.2.",{"v":0,"d":"0.00 "},{"v":0,"d":"0.00 "},"xxx","xxx","xxx",{"v":0,"d":"0.00 "},{"v":0,"d":"0.00 "}]
[null,null,"3.3.3. Lesnická infrastruktura","PRV",6,"6b","19.2.",{"v":0,"d":"0.00 "},{"v":0,"d":"0.00 "},"xxx","xxx","xxx",{"v":0,"d":"0.00 "},{"v":0,"d":"0.00 "}]
[null,null,"3.3.4. Lesnická technika","PRV",6,"6b","19.2.",{"v":0,"d":"0.00 "},{"v":0,"d":"0.00 "},"xxx","xxx","xxx",{"v":0,"d":"0.00 "},{"v":0,"d":"0.00 "}]
[null,"O 3.4.","3.4.1. Rozvoj sociálního podnikání ","IROP",4,"9d","4.1.",{"v":0,"d":"0.00 "},{"v":0,"d":"0.00 "},{"v":0,"d":"0.00 "},{"$f":"H211-I211","v":{"v":0,"d":"0.00 "}},{"v":0,"d":"0.00 "},"xxx",{"v":0,"d":"0.00 "}]
[null,null,"3.4.2. Vzděláváním k zaměstnanosti","OP ZAM",2,3,"2.3.",{"v":0,"d":"0.00 "},{"v":0,"d":"0.00 "},{"v":0,"d":"0.00 "},{"v":0,"d":"0.00 "},{"v":0,"d":"0.00 "},"xxx",{"v":0,"d":"0.00 "}]
[null,null,"3.4.3. Sociální podnikání","OP ZAM",2,3,"2.3.",{"v":0,"d":"0.00 "},{"v":0,"d":"0.00 "},{"v":0,"d":"0.00 "},{"v":0,"d":"0.00 "},{"v":0,"d":"0.00 "},"xxx",{"v":0,"d":"0.00 "}]
[null,null,"3.4.4. Kvalita a dostupnost sociálních služeb","IROP",4,"9d","4.1.",{"v":0,"d":"0.00 "},{"v":0,"d":"0.00 "},{"v":0,"d":"0.00 "},{"v":0,"d":"0.00 "},{"v":0,"d":"0.00 "},"xxx",{"v":0,"d":"0.00 "}]
[null,null,"3.4.5. Prorodinná opatření","OP ZAM",2,3,"2.3.",{"v":0,"d":"0.00 "},{"v":0,"d":"0.00 "},{"v":0,"d":"0.00 "},{"v":0,"d":"0.00 "},{"v":0,"d":"0.00 "},"xxx",{"v":0,"d":"0.00 "}]
["SC  4","O 4.1.","4.1.1. Školy dostupné všem","IROP",4,"9d","4.1.",{"v":0,"d":"0.00 "},{"v":0,"d":"0.00 "},{"v":0,"d":"0.00 "},{"$f":"H216-I216","v":{"v":0,"d":"0.00 "}},{"v":0,"d":"0.00 "},"xxx",{"v":0,"d":"0.00 "}]

{"sheet":"F - financování dle OP","index":2,"n_rows":182,"n_cols":16,"rows_kept":182,"merged":[[2,0,4,0],[2,1,2,3],[2,4,2,9],[2,10,4,10],[3,1,4,1],[3,2,4,2],[3,3,4,3],[3,4,4,4],[3,5,3,6],[3,7,3,9],[5,0,14,0],[16,0,17,0],[18,0,22,0],[24,0,26,0],[24,1,24,3],[24,4,24,9],[24,10,26,10],[25,1,26,1],[25,2,26,2],[25,3,26,3],[25,4,26,4],[25,5,25,6],[25,7,25,9],[27,0,35,0],[38,0,41,0],[44,0,46,0],[44,1,44,3],[44,4,44,9],[44,10,46,10],[45,1,46,1],[45,2,46,2],[45,3,46,3],[45,4,46,4],[45,5,45,6],[45,7,45,9],[47,0,55,0],[58,0,61,0],[64,0,66,0],[64,1,64,3],[64,4,64,9],[64,10,66,10],[65,1,66,1],[65,2,66,2],[65,3,66,3],[65,4,66,4],[65,5,65,6],[65,7,65,9],[67,0,75,0],[78,0,81,0],[84,0,86,0],[84,1,84,3],[84,4,84,9],[84,10,86,10],[85,1,86,1],[85,2,86,2],[85,3,86,3],[85,4,86,4],[85,5,85,6],[85,7,85,9],[87,0,95,0],[98,0,101,0],[104,0,106,0],[104,1,104,3],[104,4,104,9],[104,10,106,10],[105,1,106,1],[105,2,106,2],[105,3,106,3],[105,4,106,4],[105,5,105,6],[105,7,105,9],[107,0,115,0],[118,0,121,0],[124,0,126,0],[124,1,124,3],[124,4,124,9],[124,10,126,10],[125,1,126,1],[125,2,126,2],[125,3,126,3],[125,4,126,4],[125,5,125,6],[125,7,125,9],[127,0,135,0],[138,0,141,0],[144,0,146,0],[144,1,144,3],[144,4,144,9],[144,10,146,10],[145,1,146,1],[145,2,146,2],[145,3,146,3],[145,4,146,4],[145,5,145,6],[145,7,145,9],[147,0,155,0],[158,0,161,0],[164,0,166,0],[164,1,164,3],[164,4,164,9],[164,10,166,10],[165,1,166,1],[165,2,166,2],[165,3,166,3],[165,4,166,4],[165,5,165,6],[165,7,165,9],[167,0,175,0],[178,0,181,0]]}
[]
["Celkově 2016 - 2020"]
["Programový rámec ",{"$nulls":3},"Plán financování",{"$nulls":5},"Nezpůsobilé výdaje (v tis. Kč)"]
[null,"Prioritní osa OP / Priorita Unie","Investiční priorita OP / Prioritní oblast","Specifický cíl OP / Operace PRV","Celkové způsobilé výdaje (CZV)",null,null,"z toho vlastní zdroje příjemců"]
[{"$nulls":5},"Příspěvek Unie (a)","Národní veřejné zdroje (SR, SF) (b)","Národní veřejné zdroje (kraj, obce, jiné) ( c)","Národní soukromé zdroje (d)","Soukromé zdroje PRV"]
["PRV",6,"6b","19.2.",{"$f":"E28+E48+E68+E88+E108+E128+E148+E168","v":{"v":12959543,"d":"12,959,543.00 "}},{"$f":"F28+F48+F68+F88+F108+F128+F148+F168","v":{"v":4363255,"d":"4,363,255.00 "}},{"$f":"G28+G48+G68+G88+G108+G128+G148+G168","v":{"v":2454334,"d":"2,454,334.00 "}},null,null,{"$f":"J28+J48+J68+J88+J108+J128+J148+J168","v":{"v":6141954,"d":"6,141,954.00 "}},{"v":0,"d":"0.00 "},{"$f":"F6+G6","v":{"v":6817589,"d":"6,817,589.00 "}},"Krajina krásnější"]
[null,6,"6b","19.2.",{"$f":"E29+E49+E69+E89+E109+E129+E149+E169","v":{"v":1994399,"d":"1,994,399.00 "}},{"$f":"F29+F49+F69+F89+F109+F129+F149+F169","v":{"v":638207,"d":"638,207.00 "}},{"v":358992,"d":"358,992.00 "},null,null,{"$f":"J29+J49+J69+J89+J109+J129+J149+J169","v":{"v":997200,"d":"997,200.00 "}},{"v":0,"d":"0.00 "},{"$f":"F7+G7","v":{"v":997199,"d":"997,199.00 "}},"Regionální produkce"]
[null,6,"6b","19.2.",{"v":0,"d":"0.00 "},{"v":0,"d":"0.00 "},{"v":0,"d":"0.00 "},null,null,{"v":0,"d":"0.00 "},{"v":0,"d":"0.00 "},{"v":0,"d":"0.00 "},"Lesnická infrastruktura"]
[null,6,"6b","19.2.",{"v":4071392,"d":"4,071,392.00 "},{"$f":"F31+F51+F71+F91+F111+F131+F151+F171","v":{"v":907567,"d":"907,567.00 "}},{"v":510507,"d":"510,507.00 "},null,null,{"v":2653318,"d":"2,653,318.00 "},{"v":0,"d":"0.00 "},{"$f":"F9+G9","v":{"v":1418074,"d":"1,418,074.00 "}},"Rozvoj nezemědělské činnosti"]
[null,6,"6b","19.2.",{"$f":"E32+E52+E72+E92+E112+E132+E152+E172","v":{"v":2924582,"d":"2,924,582.00 "}},{"$f":"F32+F52+F72+F92+F112+F132+F152+F172","v":{"v":1871731,"d":"1,871,731.00 "}},{"v":1052851,"d":"1,052,851.00 "},null,null,{"v":0,"d":"0.00 "},{"v":0,"d":"0.00 "},{"v":2924582,"d":"2,924,582.00 "},"Rekreační lesy"]
[null,6,"6b","19.2.",{"v":0,"d":"0.00 "},{"v":0,"d":"0.00 "},{"v":0,"d":"0.00 "},null,null,{"v":0,"d":"0.00 "},{"v":0,"d":"0.00 "},{"v":0,"d":"0.00 "},"Lesnická technika"]
[null,6,"6b","19.2.",{"$f":"E34+E54+E74+E94+E114+E134+E154+E174","v":{"v":0,"d":"0.00 "}},{"v":0,"d":"0.00 "},{"v":0,"d":"0.00 "},null,null,{"$f":"J34+J54+J74+J94+J114+J134+J154+J174","v":{"v":0,"d":"0.00 "}},{"v":0,"d":"0.00 "},{"v":0,"d":"0.00 "},"Podpora místních trhů"]
[null,6,"6b","19.2.",{"v":20310245,"d":"20,310,245.00 "},{"v":10398846,"d":"10,398,846.00 "},{"v":5849350,"d":"5,849,350.00 "},null,null,{"$f":"J35+J55+J75+J95+J115+J135+J155+J175","v":{"v":4062049,"d":"4,062,049.00 "}},{"v":0,"d":"0.00 "},{"$f":"F13+G13","v":{"v":16248196,"d":"16,248,196.00 "}},"Článek 20"]
[null,6,"6b","19.3.",{"v":1506008,"d":"1,506,008.00 "},{"v":867386,"d":"867,386.00 "},{"$f":"G36+G56+G76+G96+G116+G136+G156+G176","v":{"v":487904,"d":"487,904.00 "}},null,null,{"$f":"J36+J56+J76+J96+J116+J136+J156+J176","v":{"v":150718,"d":"150,718.00 "}},{"$f":"K36+K56+K76+K96+K116+K136+K156+K176","v":{"v":0,"d":"0.00 "}},{"$f":"F14+G14","v":{"v":1355290,"d":"1,355,290.00 "}}]
[{"$nulls":5},{"$f":"SUM(F6:F14)","v":{"v":19046992,"d":"19,046,992.00 "}},{"$f":"SUM(G6:G14)","v":{"v":10713938,"d":"10,713,938.00 "}},{"$nulls":4},{"$f":"F15+G15","v":{"v":29760930,"d":"29,760,930.00 "}},{"v":29760930,"d":"29,760,930.00 "},{"$f":"L15-M15","v":{"v":0,"d":"0.00 "}}]
["PR IROP",4,"9d","4.1.",{"v":59234638.64,"d":"59,234,638.64 "},{"v":56272905.94,"d":"56,272,905.94 "},{"v":0,"d":"0.00 "},{"v":2525337.567,"d":"2,525,337.57 "},{"v":436395.13,"d":"436,395.13 "},null,{"v":0,"d":"0.00 "},{"$f":"E37+E57+E77+E97+E117+E137+E157+E177","v":{"v":59234638.64,"d":"59,234,638.64 "}},{"$f":"F37+F57+F77+F97+F117+F137+F157+F177","v":{"v":56272905.9435,"d":"56,272,905.94 "}},{"$f":"G37+G57+G77+G97+G117+G137+G157+G177","v":{"v":0,"d":"0.00 "}},{"$f":"H37+H57+H77+H97+H117+H137+H157+H177","v":{"v":2525337.567,"d":"2,525,337.57 "}},{"v":436395.13,"d":"436,395.13 "}]
["PR ŽP",4,1,"4.3.",{"v":15101400,"d":"15,101,400.00 "},{"v":12836190,"d":"12,836,190.00 "},{"v":0,"d":"0.00 "},{"v":1534107.09,"d":"1,534,107.09 "},{"v":731102.91,"d":"731,102.91 "},null,{"v":0,"d":"0.00 "},{"$f":"E38+E58+E78+E98+E118+E138+E158+E178","v":{"v":15101400,"d":"15,101,400.00 "}},{"$f":"F38+F58+F78+F98+F118+F138+F158+F178","v":{"v":12836190.000000002,"d":"12,836,190.00 "}},{"v":0,"d":"0.00 "},{"$f":"H38+H58+H78+H98+H118+H138+H158+H178","v":{"v":1534107.0899999999,"d":"1,534,107.09 "}},{"v":731102.91,"d":"731,102.91 "}]
[{"$nulls":5},{"$f":"F17","v":{"v":12836190,"d":"12,836,190.00 "}},{"$f":"G17","v":{"v":0,"d":"0.00 "}}]
["PR ZAM",2,3,"2.3.",{"v":3259750,"d":"3,259,750.00 "},{"v":2770787.5,"d":"2,770,787.50 "},{"v":488962.5,"d":"488,962.50 "},{"v":0,"d":"0.00 "},{"v":0,"d":"0.00 "},null,{"v":0,"d":"0.00 "}]
[null,2,3,"2.3.",{"v":2585100,"d":"2,585,100.00 "},{"v":2197335,"d":"2,197,335.00 "},{"v":387765,"d":"387,765.00 "},{"v":0,"d":"0.00 "},{"v":0,"d":"0.00 "},null,{"v":0,"d":"0.00 "}]
[null,2,3,"2.3.",{"v":3911700,"d":"3,911,700.00 "},{"v":3324945,"d":"3,324,945.00 "},{"v":0,"d":"0.00 "},{"v":586755,"d":"586,755.00 "},{"v":0,"d":"0.00 "},null,{"v":0,"d":"0.00 "}]
[null,2,3,"2.3.",{"v":4755330,"d":"4,755,330.00 "},{"v":4042030.5,"d":"4,042,030.50 "},{"v":713299.5,"d":"713,299.50 "},{"v":0,"d":"0.00 "},{"v":0,"d":"0.00 "},null,{"v":0,"d":"0.00 "}]
[{"$nulls":4},{"$f":"SUM(E19:E22)","v":{"v":14511880,"d":"14,511,880.00 "}},{"$f":"SUM(F19:F22)","v":{"v":12335098,"d":"12,335,098.00 "}},{"$f":"SUM(G19:G22)","v":{"v":1590027,"d":"1,590,027.00 "}},{"$f":"SUM(H19:H22)","v":{"v":586755,"d":"586,755.00 "}},{"$f":"SUM(I19:I22)","v":{"v":0,"d":"0.00 "}},{"v":0,"d":"0.00 "}]
["Rok 2016"]
["Programový rámec "," ",null,null,"Plán financování",{"$nulls":5},"Nezpůsobilé výdaje (v tis. Kč)"]
[null,"Prioritní osa OP / Priorita Unie","Investiční priorita OP / Prioritní oblast","Specifický cíl OP / Operace PRV","Celkové způsobilé výdaje (CZV)",null,null,"z toho vlastní zdroje příjemců"]
[{"$nulls":5},"Příspěvek Unie (a)","Národní veřejné zdroje (SR, SF) (b)","Národní veřejné zdroje (kraj, obce, jiné) ( c)","Národní soukromé zdroje (d)","Soukromé zdroje PRV"]
["PRV",6,"6b","19.2.",{"v":0,"d":"0.00 "},{"v":0,"d":"0.00 "},{"v":0,"d":"0.00 "},null,null,{"v":0,"d":"0.00 "},{"v":0,"d":"0.00 "}]
[null,6,"6b","19.2.",{"v":0,"d":"0.00 "},{"v":0,"d":"0.00 "},{"v":0,"d":"0.00 "},null,null,{"v":0,"d":"0.00 "},{"v":0,"d":"0.00 "}]
[null,6,"6b","19.2.",{"v":0,"d":"0.00 "},{"v":0,"d":"0.00 "},{"v":0,"d":"0.00 "},null,null,{"v":0,"d":"0.00 "},{"v":0,"d":"0.00 "}]
[null,6,"6b","19.2.",{"v":0,"d":"0.00 "},{"v":0,"d":"0.00 "},{"v":0,"d":"0.00 "},null,null,{"v":0,"d":"0.00 "},{"v":0,"d":"0.00 "}]
[null,6,"6b","19.2.",{"v":0,"d":"0.00 "},{"v":0,"d":"0.00 "},{"v":0,"d":"0.00 "},null,null,{"v":0,"d":"0.00 "},{"v":0,"d":"0.00 "}]
[null,6,"6b","19.2.",{"v":0,"d":"0.00 "},{"v":0,"d":"0.00 "},{"v":0,"d":"0.00 "},null,null,{"v":0,"d":"0.00 "},{"v":0,"d":"0.00 "}]
[null,6,"6b","19.2.",{"v":0,"d":"0.00 "},{"v":0,"d":"0.00 "},{"v":0,"d":"0.00 "},null,null,{"v":0,"d":"0.00 "},{"v":0,"d":"0.00 "}]
[null,6,"6b","19.2.",{"v":0,"d":"0.00 "},{"v":0,"d":"0.00 "},{"v":0,"d":"0.00 "},null,null,{"v":0,"d":"0.00 "},{"v":0,"d":"0.00 "}]
[null,6,"6b","19.3.",{"$f":"F36+G36+H36","v":{"v":0,"d":"0.00 "}},{"v":0,"d":"0.00 "},{"v":0,"d":"0.00 "},null,null,{"v":0,"d":"0.00 "},{"v":0,"d":"0.00 "}]
["PR IROP",4,"9d","4.1.",{"v":0,"d":"0.00 "},{"v":0,"d":"0.00 "},{"v":0,"d":"0.00 "},{"v":0,"d":"0.00 "},{"v":0,"d":"0.00 "},null,{"v":0,"d":"0.00 "}]
["PR ŽP",4,1,"4.3.",{"v":0,"d":"0.00 "},{"v":0,"d":"0.00 "},{"v":0,"d":"0.00 "},{"v":0,"d":"0.00 "},{"v":0,"d":"0.00 "},null,{"v":0,"d":"0.00 "}]
["PR ZAM",2,3,"2.3.",{"v":0,"d":"0.00 "},{"v":0,"d":"0.00 "},{"v":0,"d":"0.00 "},{"v":0,"d":"0.00 "},{"v":0,"d":"0.00 "},null,{"v":0,"d":"0.00 "}]
[null,2,3,"2.3.",{"v":0,"d":"0.00 "},{"v":0,"d":"0.00 "},{"v":0,"d":"0.00 "},{"v":0,"d":"0.00 "},{"v":0,"d":"0.00 "},null,{"v":0,"d":"0.00 "}]
[null,2,3,"2.3.",{"v":0,"d":"0.00 "},{"v":0,"d":"0.00 "},{"v":0,"d":"0.00 "},{"v":0,"d":"0.00 "},{"v":0,"d":"0.00 "},null,{"v":0,"d":"0.00 "}]
[null,2,3,"2.3.",{"v":0,"d":"0.00 "},{"v":0,"d":"0.00 "},{"v":0,"d":"0.00 "},{"v":0,"d":"0.00 "},{"v":0,"d":"0.00 "},null,{"v":0,"d":"0.00 "}]
[]
["Rok 2017"]
["Programový rámec ",{"$nulls":3},"Plán financování",{"$nulls":5},"Nezpůsobilé výdaje (v tis. Kč)"]
[null,"Prioritní osa OP / Priorita Unie","Investiční priorita OP / Prioritní oblast","Specifický cíl OP / Operace PRV","Celkové způsobilé výdaje (CZV)",null,null,"z toho vlastní zdroje příjemců"]
[{"$nulls":5},"Příspěvek Unie (a)","Národní veřejné zdroje (SR, SF) (b)","Národní veřejné zdroje (kraj, obce, jiné) ( c)","Národní soukromé zdroje (d)","Soukromé zdroje PRV"]
["PRV",6,"6b","19.2.",{"v":0,"d":"0.00 "},{"v":0,"d":"0.00 "},{"v":0,"d":"0.00 "},null,null,{"v":0,"d":"0.00 "},{"v":0,"d":"0.00 "}]
[null,6,"6b","19.2.",{"v":0,"d":"0.00 "},{"v":0,"d":"0.00 "},{"v":0,"d":"0.00 "},null,null,{"v":0,"d":"0.00 "},{"v":0,"d":"0.00 "}]
[null,6,"6b","19.2.",{"v":0,"d":"0.00 "},{"v":0,"d":"0.00 "},{"v":0,"d":"0.00 "},null,null,{"v":0,"d":"0.00 "},{"v":0,"d":"0.00 "}]
[null,6,"6b","19.2.",{"v":0,"d":"0.00 "},{"v":0,"d":"0.00 "},{"v":0,"d":"0.00 "},null,null,{"v":0,"d":"0.00 "},{"v":0,"d":"0.00 "}]
[null,6,"6b","19.2.",{"v":0,"d":"0.00 "},{"v":0,"d":"0.00 "},{"v":0,"d":"0.00 "},null,null,{"v":0,"d":"0.00 "},{"v":0,"d":"0.00 "}]
[null,6,"6b","19.2.",{"v":0,"d":"0.00 "},{"v":0,"d":"0.00 "},{"v":0,"d":"0.00 "},null,null,{"v":0,"d":"0.00 "},{"v":0,"d":"0.00 "}]
[null,6,"6b","19.2.",{"v":0,"d":"0.00 "},{"v":0,"d":"0.00 "},{"v":0,"d":"0.00 "},null,null,{"v":0,"d":"0.00 "},{"v":0,"d":"0.00 "}]
[null,6,"6b","19.2.",{"v":0,"d":"0.00 "},{"v":0,"d":"0.00 "},{"v":0,"d":"0.00 "},null,null,{"v":0,"d":"0.00 "},{"v":0,"d":"0.00 "}]
[null,6,"6b","19.3.",{"v":0,"d":"0.00 "},{"v":0,"d":"0.00 "},{"v":0,"d":"0.00 "},null,null,{"v":0,"d":"0.00 "},{"v":0,"d":"0.00 "}]
["PR IROP",4,"9d","4.1.",{"v":0,"d":"0.00 "},{"v":0,"d":"0.00 "},{"v":0,"d":"0.00 "},{"v":0,"d":"0.00 "},{"v":0,"d":"0.00 "},null,{"v":0,"d":"0.00 "}]
["PR ŽP",4,1,"4.3.",{"v":0,"d":"0.00 "},{"v":0,"d":"0.00 "},{"v":0,"d":"0.00 "},{"v":0,"d":"0.00 "},{"v":0,"d":"0.00 "},null,{"v":0,"d":"0.00 "}]
["PR ZAM",2,3,"2.3.",{"v":0,"d":"0.00 "},{"$f":"E59/100*85","v":{"v":0,"d":"0.00 "}},{"$f":"E59/100*10","v":{"v":0,"d":"0.00 "}},{"$f":"E59/100*2.5","v":{"v":0,"d":"0.00 "}},{"v":0,"d":"0.00 "},null,{"v":0,"d":"0.00 "}]
[null,2,3,"2.3.",{"v":0,"d":"0.00 "},{"$f":"E60/100*85","v":{"v":0,"d":"0.00 "}},{"$f":"E60/100*11.5","v":{"v":0,"d":"0.00 "}},{"$f":"E60/100*2.31","v":{"v":0,"d":"0.00 "}},{"v":0,"d":"0.00 "},null,{"v":0,"d":"0.00 "}]
[null,2,3,"2.3.",{"v":0,"d":"0.00 "},{"v":0,"d":"0.00 "},{"$f":"E61/100*0","v":{"v":0,"d":"0.00 "}},{"$f":"E61/100*0","v":{"v":0,"d":"0.00 "}},{"v":0,"d":"0.00 "},null,{"v":0,"d":"0.00 "}]
[null,2,3,"2.3.",{"v":0,"d":"0.00 "},{"$f":"E62/100*85","v":{"v":0,"d":"0.00 "}},{"$f":"E62/100*0","v":{"v":0,"d":"0.00 "}},{"$f":"E62/100*0","v":{"v":0,"d":"0.00 "}},{"v":0,"d":"0.00 "},null,{"v":0,"d":"0.00 "}]
[]
["Rok 2018"]
["Programový rámec ",{"$nulls":3},"Plán financování",{"$nulls":5},"Nezpůsobilé výdaje (v tis. Kč)"]
[null,"Prioritní osa OP / Priorita Unie","Investiční priorita OP / Prioritní oblast","Specifický cíl OP / Operace PRV","Celkové způsobilé výdaje (CZV)",null,null,"z toho vlastní zdroje příjemců"]
[{"$nulls":5},"Příspěvek Unie (a)","Národní veřejné zdroje (SR, SF) (b)","Národní veřejné zdroje (kraj, obce, jiné) ( c)","Národní soukromé zdroje (d)","Soukromé zdroje PRV"]
["PRV",6,"6b","19.2.",{"v":3747883,"d":"3,747,883.00 "},{"v":1315602,"d":"1,315,602.00 "},{"v":740027,"d":"740,027.00 "},null,null,{"$f":"E68-F68-G68","v":{"v":1692254,"d":"1,692,254.00 "}},{"v":0,"d":"0.00 "},{"$f":"F68+G68","v":{"v":2055629,"d":"2,055,629.00 "}},"Krajina krásnější"]
[null,6,"6b","19.2.",{"v":0,"d":"0.00 "},{"v":0,"d":"0.00 "},{"v":0,"d":"0.00 "},null,null,{"$f":"E69-F69-G69","v":{"v":0,"d":"0.00 "}},{"v":0,"d":"0.00 "},{"$f":"F69+G69","v":{"v":0,"d":"0.00 "}},"Regionální produkce"]
[null,6,"6b","19.2.",{"v":0,"d":"0.00 "},{"v":0,"d":"0.00 "},{"v":0,"d":"0.00 "},null,null,{"$f":"E70-F70-G70","v":{"v":0,"d":"0.00 "}},{"v":0,"d":"0.00 "},{"v":0,"d":"0.00 "},"Lesnická infrastruktura"]
[null,6,"6b","19.2.",{"v":906000,"d":"906,000.00 "},{"v":260928,"d":"260,928.00 "},{"v":146772,"d":"146,772.00 "},null,null,{"$f":"E71-F71-G71","v":{"v":498300,"d":"498,300.00 "}},{"v":0,"d":"0.00 "},{"v":407700,"d":"407,700.00 "},"Rozvoj nezemědělské činnosti"]
[null,6,"6b","19.2.",{"v":999969,"d":"999,969.00 "},{"v":639980,"d":"639,980.00 "},{"v":359989,"d":"359,989.00 "},null,null,{"v":0,"d":"0.00 "},{"v":0,"d":"0.00 "},{"v":999969,"d":"999,969.00 "},"Rekreační lesy"]
[null,6,"6b","19.2.",{"v":0,"d":"0.00 "},{"v":0,"d":"0.00 "},{"v":0,"d":"0.00 "},null,null,{"v":0,"d":"0.00 "},{"v":0,"d":"0.00 "},{"v":0,"d":"0.00 "},"Lesnická technika"]
[null,6,"6b","19.2.",{"v":0,"d":"0.00 "},{"v":0,"d":"0.00 "},{"v":0,"d":"0.00 "},null,null,{"v":0,"d":"0.00 "},{"v":0,"d":"0.00 "},{"v":0,"d":"0.00 "},"Podpora místních trhů"]
[null,6,"6b","19.2.",{"v":0,"d":"0.00 "},{"v":0,"d":"0.00 "},{"v":0,"d":"0.00 "},null,null,{"v":0,"d":"0.00 "},{"v":0,"d":"0.00 "},{"v":0,"d":"0.00 "},"Článek 20"]
[null,6,"6b","19.3.",{"v":755130,"d":"755,130.00 "},{"v":434880,"d":"434,880.00 "},{"v":244620,"d":"244,620.00 "},null,null,{"v":75630,"d":"75,630.00 "},{"v":0,"d":"0.00 "},{"v":679500,"d":"679,500.00 "}]
["PR IROP",4,"9d","4.1.",{"v":999867,"d":"999,867.00 "},{"v":949873.6499999999,"d":"949,873.65 "},{"v":0,"d":"0.00 "},{"v":49993.35000000009,"d":"49,993.35 "},{"v":0,"d":"0.00 "},null,{"v":0,"d":"0.00 "}]
["PR ŽP",4,1,"4.3.",{"v":0,"d":"0.00 "},{"v":0,"d":"0.00 "},{"v":0,"d":"0.00 "},{"v":0,"d":"0.00 "},{"v":0,"d":"0.00 "},null,{"v":0,"d":"0.00 "}]
["PR ZAM",2,3,"2.3.",{"v":0,"d":"0.00 "},{"$f":"E79/100*85","v":{"v":0,"d":"0.00 "}},{"$f":"E79/100*15","v":{"v":0,"d":"0.00 "}},{"v":0,"d":"0.00 "},{"v":0,"d":"0.00 "},null,{"v":0,"d":"0.00 "}]
[null,2,3,"2.3.",{"v":0,"d":"0.00 "},{"$f":"E80/100*85","v":{"v":0,"d":"0.00 "}},{"$f":"E80/100*15","v":{"v":0,"d":"0.00 "}},{"v":0,"d":"0.00 "},{"v":0,"d":"0.00 "},null,{"v":0,"d":"0.00 "}]
[null,2,3,"2.3.",{"v":0,"d":"0.00 "},{"$f":"E81/100*85","v":{"v":0,"d":"0.00 "}},{"v":0,"d":"0.00 "},{"v":0,"d":"0.00 "},{"v":0,"d":"0.00 "},null,{"v":0,"d":"0.00 "}]
[null,2,3,"2.3.",{"v":741210,"d":"741,210.00 "},{"v":630028.5,"d":"630,028.50 "},{"v":111181.5,"d":"111,181.50 "},{"v":0,"d":"0.00 "},{"v":0,"d":"0.00 "},null,{"v":0,"d":"0.00 "}]
[]
["Rok 2019"]
["Programový rámec ",{"$nulls":3},"Plán financování",{"$nulls":5},"Nezpůsobilé výdaje (v tis. Kč)"]
[null,"Prioritní osa OP / Priorita Unie","Investiční priorita OP / Prioritní oblast","Specifický cíl OP / Operace PRV","Celkové způsobilé výdaje (CZV)",null,null,"z toho vlastní zdroje příjemců"]
[{"$nulls":5},"Příspěvek Unie (a)","Národní veřejné zdroje (SR, SF) (b)","Národní veřejné zdroje (kraj, obce, jiné) ( c)","Národní soukromé zdroje (d)","Soukromé zdroje PRV"]
["PRV",6,"6b","19.2.",{"$f":"F88+G88+J88","v":{"v":7993866,"d":"7,993,866.00 "}},{"v":2658087,"d":"2,658,087.00 "},{"v":1495176,"d":"1,495,176.00 "},null,null,{"v":3840603,"d":"3,840,603.00 "},{"v":0,"d":"0.00 "},{"$f":"F88+G88","v":{"v":4153263,"d":"4,153,263.00 "}},"Krajina krásnější"]
[null,6,"6b","19.2.",{"v":0,"d":"0.00 "},{"v":0,"d":"0.00 "},{"v":0,"d":"0.00 "},null,null,{"$f":"E89-F89-G89","v":{"v":0,"d":"0.00 "}},{"v":0,"d":"0.00 "},{"v":0,"d":"0.00 "},"Regionální produkce"]
[null,6,"6b","19.2.",{"v":0,"d":"0.00 "},{"v":0,"d":"0.00 "},{"v":0,"d":"0.00 "},null,null,{"v":0,"d":"0.00 "},{"v":0,"d":"0.00 "},{"v":0,"d":"0.00 "},"Lesnická infrastruktura"]
[null,6,"6b","19.2.",{"v":0,"d":"0.00 "},{"v":0,"d":"0.00 "},{"v":0,"d":"0.00 "},null,null,{"v":0,"d":"0.00 "},{"v":0,"d":"0.00 "},{"$f":"F91+G91","v":{"v":0,"d":"0.00 "}},"Rozvoj nezemědělské činnosti"]
[null,6,"6b","19.2.",{"v":1924613,"d":"1,924,613.00 "},{"v":1231751,"d":"1,231,751.00 "},{"v":692862,"d":"692,862.00 "},null,null,{"v":0,"d":"0.00 "},{"v":0,"d":"0.00 "},{"$f":"F92+G92","v":{"v":1924613,"d":"1,924,613.00 "}},"Rekreační lesy"]
[null,6,"6b","19.2.",{"v":0,"d":"0.00 "},{"v":0,"d":"0.00 "},{"v":0,"d":"0.00 "},null,null,{"$f":"E93-F93-G93","v":{"v":0,"d":"0.00 "}},{"v":0,"d":"0.00 "},null,"Lesnická technika"]
[null,6,"6b","19.2.",{"v":0,"d":"0.00 "},{"v":0,"d":"0.00 "},{"v":0,"d":"0.00 "},null,null,{"v":0,"d":"0.00 "},{"v":0,"d":"0.00 "},null,"Podpora místních trhů"]
[null,6,"6b","19.2.",{"v":0,"d":"0.00 "},{"v":0,"d":"0.00 "},{"v":0,"d":"0.00 "},null,null,{"v":0,"d":"0.00 "},{"v":0,"d":"0.00 "},null,"Článek 20"]
[null,6,"6b","19.3.",{"v":0,"d":"0.00 "},{"v":0,"d":"0.00 "},{"v":0,"d":"0.00 "},null,null,{"v":0,"d":"0.00 "},{"v":0,"d":"0.00 "}]
["PR IROP",4,"9d","4.1.",{"v":7294813.39,"d":"7,294,813.39 "},{"v":6930072.7205,"d":"6,930,072.72 "},{"v":0,"d":"0.00 "},{"v":286000,"d":"286,000.00 "},{"v":78740.67,"d":"78,740.67 "},null,{"v":0,"d":"0.00 "}]
["PR ŽP",4,1,"4.3.",{"v":0,"d":"0.00 "},{"v":0,"d":"0.00 "},{"v":0,"d":"0.00 "},{"v":0,"d":"0.00 "},{"v":0,"d":"0.00 "},null,{"v":0,"d":"0.00 "}]
["PR ZAM",2,3,"2.3.",{"v":0,"d":"0.00 "},{"$f":"E99/100*85","v":{"v":0,"d":"0.00 "}},{"$f":"E99/100*15","v":{"v":0,"d":"0.00 "}},{"v":0,"d":"0.00 "},{"v":0,"d":"0.00 "},null,{"v":0,"d":"0.00 "}]
[null,2,3,"2.3.",{"v":430850,"d":"430,850.00 "},{"v":366222.5,"d":"366,222.50 "},{"v":64627.5,"d":"64,627.50 "},{"v":0,"d":"0.00 "},{"v":0,"d":"0.00 "},null,{"v":0,"d":"0.00 "}]
[null,2,3,"2.3.",{"v":0,"d":"0.00 "},{"v":0,"d":"0.00 "},{"v":0,"d":"0.00 "},{"v":0,"d":"0.00 "},{"v":0,"d":"0.00 "},null,{"v":0,"d":"0.00 "}]
[null,2,3,"2.3.",{"v":1191700,"d":"1,191,700.00 "},{"v":1012945,"d":"1,012,945.00 "},{"v":178755,"d":"178,755.00 "},{"v":0,"d":"0.00 "},{"v":0,"d":"0.00 "},null,{"v":0,"d":"0.00 "}]
[]
["Rok 2020"]
["Programový rámec ",{"$nulls":3},"Plán financování",{"$nulls":5},"Nezpůsobilé výdaje (v tis. Kč)"]
[null,"Prioritní osa OP / Priorita Unie","Investiční priorita OP / Prioritní oblast","Specifický cíl OP / Operace PRV","Celkové způsobilé výdaje (CZV)",null,null,"z toho vlastní zdroje příjemců"]
[{"$nulls":5},"Příspěvek Unie (a)","Národní veřejné zdroje (SR, SF) (b)","Národní veřejné zdroje (kraj, obce, jiné) ( c)","Národní soukromé zdroje (d)","Soukromé zdroje PRV"]
["PRV",6,"6b","19.2.",{"v":1217794,"d":"1,217,794.00 "},{"v":389566,"d":"389,566.00 "},{"v":219131,"d":"219,131.00 "},null,null,{"$f":"E108-F108-G108","v":{"v":609097,"d":"609,097.00 "}},{"v":0,"d":"0.00 "},{"$f":"F108+G108","v":{"v":608697,"d":"608,697.00 "}},"Krajina krásnější"]
[null,6,"6b","19.2.",{"v":1994399,"d":"1,994,399.00 "},{"v":638207,"d":"638,207.00 "},{"v":358992,"d":"358,992.00 "},null,null,{"v":997200,"d":"997,200.00 "},{"v":0,"d":"0.00 "},{"v":997199,"d":"997,199.00 "},"Regionální produkce"]
[null,6,"6b","19.2.",{"v":0,"d":"0.00 "},{"v":0,"d":"0.00 "},{"v":0,"d":"0.00 "},null,null,{"v":0,"d":"0.00 "},{"v":0,"d":"0.00 "},{"v":0,"d":"0.00 "},"Lesnická infrastruktura"]
[null,6,"6b","19.2.",{"$f":"F111+G111+J111","v":{"v":3165392,"d":"3,165,392.00 "}},{"v":646639,"d":"646,639.00 "},{"v":363735,"d":"363,735.00 "},null,null,{"v":2155018,"d":"2,155,018.00 "},{"v":0,"d":"0.00 "},{"v":1010374,"d":"1,010,374.00 "},"Rozvoj nezemědělské činnosti"]
[null,6,"6b","19.2.",{"v":0,"d":"0.00 "},{"v":0,"d":"0.00 "},{"v":0,"d":"0.00 "},null,null,{"v":0,"d":"0.00 "},{"v":0,"d":"0.00 "},{"v":0,"d":"0.00 "},"Rekreační lesy"]
[null,6,"6b","19.2.",{"v":0,"d":"0.00 "},{"v":0,"d":"0.00 "},{"v":0,"d":"0.00 "},null,null,{"v":0,"d":"0.00 "},{"v":0,"d":"0.00 "},{"v":0,"d":"0.00 "},"Lesnická technika"]
[null,6,"6b","19.2.",{"v":0,"d":"0.00 "},{"v":0,"d":"0.00 "},{"v":0,"d":"0.00 "},null,null,{"v":0,"d":"0.00 "},{"v":0,"d":"0.00 "},{"v":0,"d":"0.00 "},"Podpora místních trhů"]
[null,6,"6b","19.2.",{"$f":"F115+G115+J115","v":{"v":20310245,"d":"20,310,245.00 "}},{"v":10398846,"d":"10,398,846.00 "},{"v":5849350,"d":"5,849,350.00 "},null,null,{"v":4062049,"d":"4,062,049.00 "},{"$f":"K137+K157+K177+K197+K217+K237+K257+K277","v":{"v":0,"d":"0.00 "}},{"v":16248196,"d":"16,248,196.00 "},"Článek 20"]
[null,6,"6b","19.3.",{"v":750878,"d":"750,878.00 "},{"v":432506,"d":"432,506.00 "},{"v":243284,"d":"243,284.00 "},null,null,{"v":75088,"d":"75,088.00 "},{"v":0,"d":"0.00 "},{"v":675790,"d":"675,790.00 "}]
["PR IROP",4,"9d","4.1.",{"v":33126281.94,"d":"33,126,281.94 "},{"v":31469967.843000002,"d":"31,469,967.84 "},{"v":0,"d":"0.00 "},{"v":1373635.447,"d":"1,373,635.45 "},{"v":282678.65,"d":"282,678.65 "},null,{"v":0,"d":"0.00 "}]
["PR ŽP",4,1,"4.3.",{"v":479341.88,"d":"479,341.88 "},{"v":407440.59,"d":"407,440.59 "},{"v":0,"d":"0.00 "},{"v":71901.29,"d":"71,901.29 "},{"v":0,"d":"0.00 "},null,{"v":0,"d":"0.00 "}]
["PR ZAM",2,3,"2.3.",{"v":1119010,"d":"1,119,010.00 "},{"v":951158.5,"d":"951,158.50 "},{"v":167851.5,"d":"167,851.50 "},{"v":0,"d":"0.00 "},{"v":0,"d":"0.00 "},null,{"v":0,"d":"0.00 "}]
[null,2,3,"2.3.",{"v":861700,"d":"861,700.00 "},{"v":732445,"d":"732,445.00 "},{"v":129255,"d":"129,255.00 "},{"v":0,"d":"0.00 "},{"v":0,"d":"0.00 "},null,{"v":0,"d":"0.00 "}]
[null,2,3,"2.3.",{"v":977930,"d":"977,930.00 "},{"v":831240.5,"d":"831,240.50 "},{"v":0,"d":"0.00 "},{"v":0,"d":"0.00 "},{"v":146689.5,"d":"146,689.50 "},null,{"v":0,"d":"0.00 "}]
[null,2,3,"2.3.",{"v":1151600,"d":"1,151,600.00 "},{"v":978860,"d":"978,860.00 "},{"v":172740,"d":"172,740.00 "},{"v":0,"d":"0.00 "},{"v":0,"d":"0.00 "},null,{"v":0,"d":"0.00 "}]
[]
["Rok 2021"]
["Programový rámec ",{"$nulls":3},"Plán financování",{"$nulls":5},"Nezpůsobilé výdaje (v tis. Kč)"]
[null,"Prioritní osa OP / Priorita Unie","Investiční priorita OP / Prioritní oblast","Specifický cíl OP / Operace PRV","Celkové způsobilé výdaje (CZV)",null,null,"z toho vlastní zdroje příjemců"]
[{"$nulls":5},"Příspěvek Unie (a)","Národní veřejné zdroje (SR, SF) (b)","Národní veřejné zdroje (kraj, obce, jiné) ( c)","Národní soukromé zdroje (d)","Soukromé zdroje PRV"]
["PRV",6,"6b","19.2.",{"v":0,"d":"0.00 "},{"v":0,"d":"0.00 "},{"v":0,"d":"0.00 "},null,null,{"v":0,"d":"0.00 "},{"v":0,"d":"0.00 "}]
[null,6,"6b","19.2.",{"v":0,"d":"0.00 "},{"v":0,"d":"0.00 "},{"v":0,"d":"0.00 "},null,null,{"v":0,"d":"0.00 "},{"v":0,"d":"0.00 "}]
[null,6,"6b","19.2.",{"v":0,"d":"0.00 "},{"v":0,"d":"0.00 "},{"v":0,"d":"0.00 "},null,null,{"v":0,"d":"0.00 "},{"v":0,"d":"0.00 "}]
[null,6,"6b","19.2.",{"v":0,"d":"0.00 "},{"v":0,"d":"0.00 "},{"v":0,"d":"0.00 "},null,null,{"v":0,"d":"0.00 "},{"v":0,"d":"0.00 "}]
[null,6,"6b","19.2.",{"v":0,"d":"0.00 "},{"v":0,"d":"0.00 "},{"v":0,"d":"0.00 "},null,null,{"v":0,"d":"0.00 "},{"v":0,"d":"0.00 "}]
[null,6,"6b","19.2.",{"v":0,"d":"0.00 "},{"v":0,"d":"0.00 "},{"v":0,"d":"0.00 "},null,null,{"v":0,"d":"0.00 "},{"v":0,"d":"0.00 "}]
[null,6,"6b","19.2.",{"v":0,"d":"0.00 "},{"v":0,"d":"0.00 "},{"v":0,"d":"0.00 "},null,null,{"v":0,"d":"0.00 "},{"v":0,"d":"0.00 "}]
[null,6,"6b","19.2.",{"v":0,"d":"0.00 "},{"v":0,"d":"0.00 "},{"v":0,"d":"0.00 "},null,null,{"v":0,"d":"0.00 "},{"v":0,"d":"0.00 "}]
[null,6,"6b","19.3.",{"v":0,"d":"0.00 "},{"v":0,"d":"0.00 "},{"v":0,"d":"0.00 "},null,null,{"v":0,"d":"0.00 "},{"v":0,"d":"0.00 "}]
["PR IROP",4,"9d","4.1.",{"v":17813676.31,"d":"17,813,676.31 "},{"v":16922991.73,"d":"16,922,991.73 "},{"v":0,"d":"0.00 "},{"v":815708.77,"d":"815,708.77 "},{"v":74975.81,"d":"74,975.81 "},null,{"v":0,"d":"0.00 "}]
["PR ŽP",4,1,"4.3.",{"v":4874019.37,"d":"4,874,019.37 "},{"v":4142916.47,"d":"4,142,916.47 "},{"v":0,"d":"0.00 "},{"v":487401.93,"d":"487,401.93 "},{"v":243700.97,"d":"243,700.97 "},null,{"v":0,"d":"0.00 "}]
["PR ZAM",2,3,"2.3.",{"v":1119010,"d":"1,119,010.00 "},{"v":951158.5,"d":"951,158.50 "},{"v":167851.5,"d":"167,851.50 "},{"v":0,"d":"0.00 "},{"v":0,"d":"0.00 "},null,{"v":0,"d":"0.00 "}]
[null,2,3,"2.3.",{"v":1292550,"d":"1,292,550.00 "},{"v":1098667.5,"d":"1,098,667.50 "},{"v":193882.5,"d":"193,882.50 "},{"v":0,"d":"0.00 "},{"v":0,"d":"0.00 "},null,{"v":0,"d":"0.00 "}]
[null,2,3,"2.3.",{"v":1955850,"d":"1,955,850.00 "},{"v":166247250,"d":"166,247,250.00 "},{"v":0,"d":"0.00 "},{"v":293377.5,"d":"293,377.50 "},{"v":0,"d":"0.00 "},null,{"v":0,"d":"0.00 "}]
[null,2,3,"2.3.",{"v":1004150,"d":"1,004,150.00 "},{"v":853527.5,"d":"853,527.50 "},{"v":150622.5,"d":"150,622.50 "},{"v":0,"d":"0.00 "},{"v":0,"d":"0.00 "},null,{"v":0,"d":"0.00 "}]
[]
["Rok 2022"]
["Programový rámec ",{"$nulls":3},"Plán financování",{"$nulls":5},"Nezpůsobilé výdaje (v tis. Kč)"]
[null,"Prioritní osa OP / Priorita Unie","Investiční priorita OP / Prioritní oblast","Specifický cíl OP / Operace PRV","Celkové způsobilé výdaje (CZV)",null,null,"z toho vlastní zdroje příjemců"]
[{"$nulls":5},"Příspěvek Unie (a)","Národní veřejné zdroje (SR, SF) (b)","Národní veřejné zdroje (kraj, obce, jiné) ( c)","Národní soukromé zdroje (d)","Soukromé zdroje PRV"]
["PRV",6,"6b","19.2.",{"v":0,"d":"0.00 "},{"v":0,"d":"0.00 "},{"v":0,"d":"0.00 "},null,null,{"v":0,"d":"0.00 "},{"v":0,"d":"0.00 "}]
[null,6,"6b","19.2.",{"v":0,"d":"0.00 "},{"v":0,"d":"0.00 "},{"v":0,"d":"0.00 "},null,null,{"v":0,"d":"0.00 "},{"v":0,"d":"0.00 "}]
[null,6,"6b","19.2.",{"v":0,"d":"0.00 "},{"v":0,"d":"0.00 "},{"v":0,"d":"0.00 "},null,null,{"v":0,"d":"0.00 "},{"v":0,"d":"0.00 "}]
[null,6,"6b","19.2.",{"v":0,"d":"0.00 "},{"v":0,"d":"0.00 "},{"v":0,"d":"0.00 "},null,null,{"v":0,"d":"0.00 "},{"v":0,"d":"0.00 "}]
[null,6,"6b","19.2.",{"v":0,"d":"0.00 "},{"v":0,"d":"0.00 "},{"v":0,"d":"0.00 "},null,null,{"v":0,"d":"0.00 "},{"v":0,"d":"0.00 "}]
[null,6,"6b","19.2.",{"v":0,"d":"0.00 "},{"v":0,"d":"0.00 "},{"v":0,"d":"0.00 "},null,null,{"v":0,"d":"0.00 "},{"v":0,"d":"0.00 "}]
[null,6,"6b","19.2.",{"v":0,"d":"0.00 "},{"v":0,"d":"0.00 "},{"v":0,"d":"0.00 "},null,null,{"v":0,"d":"0.00 "},{"v":0,"d":"0.00 "}]
[null,6,"6b","19.2.",{"v":0,"d":"0.00 "},{"v":0,"d":"0.00 "},{"v":0,"d":"0.00 "},null,null,{"v":0,"d":"0.00 "},{"v":0,"d":"0.00 "}]
[null,6,"6b","19.3.",{"v":0,"d":"0.00 "},{"v":0,"d":"0.00 "},{"v":0,"d":"0.00 "},null,null,{"v":0,"d":"0.00 "},{"v":0,"d":"0.00 "}]
["PR IROP",4,"9d","4.1.",{"v":0,"d":"0.00 "},{"v":0,"d":"0.00 "},{"v":0,"d":"0.00 "},{"v":0,"d":"0.00 "},{"v":0,"d":"0.00 "},null,{"v":0,"d":"0.00 "}]
["PR ŽP",4,1,"4.3.",{"v":4874019.37,"d":"4,874,019.37 "},{"v":4142916.47,"d":"4,142,916.47 "},{"v":0,"d":"0.00 "},{"v":487401.93,"d":"487,401.93 "},{"v":243700.97,"d":"243,700.97 "},null,{"v":0,"d":"0.00 "}]
["PR ZAM",2,3,"2.3.",{"v":1021730,"d":"1,021,730.00 "},{"v":868470.5,"d":"868,470.50 "},{"v":153259.5,"d":"153,259.50 "},{"v":0,"d":"0.00 "},{"v":0,"d":"0.00 "},null,{"v":0,"d":"0.00 "}]
[null,2,3,"2.3.",{"v":0,"d":"0.00 "},{"v":0,"d":"0.00 "},{"v":0,"d":"0.00 "},{"v":0,"d":"0.00 "},{"v":0,"d":"0.00 "},null,{"v":0,"d":"0.00 "}]
[null,2,3,"2.3.",{"v":977920,"d":"977,920.00 "},{"v":831232,"d":"831,232.00 "},{"v":0,"d":"0.00 "},{"v":146688,"d":"146,688.00 "},{"v":0,"d":"0.00 "},null,{"v":0,"d":"0.00 "}]
[null,2,3,"2.3.",{"v":666670,"d":"666,670.00 "},{"v":566669.5,"d":"566,669.50 "},{"v":100000.5,"d":"100,000.50 "},{"v":0,"d":"0.00 "},{"v":0,"d":"0.00 "},null,{"v":0,"d":"0.00 "}]
[]
["Rok 2023"]
["Programový rámec ",{"$nulls":3},"Plán financování",{"$nulls":5},"Nezpůsobilé výdaje (v tis. Kč)"]
[null,"Prioritní osa OP / Priorita Unie","Investiční priorita OP / Prioritní oblast","Specifický cíl OP / Operace PRV","Celkové způsobilé výdaje (CZV)",null,null,"z toho vlastní zdroje příjemců"]
[{"$nulls":5},"Příspěvek Unie (a)","Národní veřejné zdroje (SR, SF) (b)","Národní veřejné zdroje (kraj, obce, jiné) ( c)","Národní soukromé zdroje (d)","Soukromé zdroje PRV"]
["PRV",6,"6b","19.2.",{"v":0,"d":"0.00 "},{"v":0,"d":"0.00 "},{"v":0,"d":"0.00 "},null,null,{"v":0,"d":"0.00 "},{"v":0,"d":"0.00 "}]
[null,6,"6b","19.2.",{"v":0,"d":"0.00 "},{"v":0,"d":"0.00 "},{"v":0,"d":"0.00 "},null,null,{"v":0,"d":"0.00 "},{"v":0,"d":"0.00 "}]
[null,6,"6b","19.2.",{"v":0,"d":"0.00 "},{"v":0,"d":"0.00 "},{"v":0,"d":"0.00 "},null,null,{"v":0,"d":"0.00 "},{"v":0,"d":"0.00 "}]
[null,6,"6b","19.2.",{"v":0,"d":"0.00 "},{"v":0,"d":"0.00 "},{"v":0,"d":"0.00 "},null,null,{"v":0,"d":"0.00 "},{"v":0,"d":"0.00 "}]
[null,6,"6b","19.2.",{"v":0,"d":"0.00 "},{"v":0,"d":"0.00 "},{"v":0,"d":"0.00 "},null,null,{"v":0,"d":"0.00 "},{"v":0,"d":"0.00 "}]
[null,6,"6b","19.2.",{"v":0,"d":"0.00 "},{"v":0,"d":"0.00 "},{"v":0,"d":"0.00 "},null,null,{"v":0,"d":"0.00 "},{"v":0,"d":"0.00 "}]
[null,6,"6b","19.2.",{"v":0,"d":"0.00 "},{"v":0,"d":"0.00 "},{"v":0,"d":"0.00 "},null,null,{"v":0,"d":"0.00 "},{"v":0,"d":"0.00 "}]
[null,6,"6b","19.2.",{"v":0,"d":"0.00 "},{"v":0,"d":"0.00 "},{"v":0,"d":"0.00 "},null,null,{"v":0,"d":"0.00 "},{"v":0,"d":"0.00 "}]
[null,6,"6b","19.3.",{"v":0,"d":"0.00 "},{"v":0,"d":"0.00 "},{"v":0,"d":"0.00 "},null,null,{"v":0,"d":"0.00 "},{"v":0,"d":"0.00 "}]
["PR IROP",4,"9d","4.1.",{"v":0,"d":"0.00 "},{"v":0,"d":"0.00 "},{"v":0,"d":"0.00 "},{"v":0,"d":"0.00 "},{"v":0,"d":"0.00 "},null,{"v":0,"d":"0.00 "}]
["PR ŽP",4,1,"4.3.",{"v":4874019.38,"d":"4,874,019.38 "},{"v":4142916.47,"d":"4,142,916.47 "},{"v":0,"d":"0.00 "},{"v":487401.94,"d":"487,401.94 "},{"v":243700.97,"d":"243,700.97 "},null,{"v":0,"d":"0.00 "}]
["PR ZAM",2,3,"2.3.",{"v":0,"d":"0.00 "},{"$f":"E179/100*85","v":{"v":0,"d":"0.00 "}},{"$f":"E179/100*15","v":{"v":0,"d":"0.00 "}},{"v":0,"d":"0.00 "},{"v":0,"d":"0.00 "},null,{"v":0,"d":"0.00 "}]
[null,2,3,"2.3.",{"v":0,"d":"0.00 "},{"$f":"E180/100*85","v":{"v":0,"d":"0.00 "}},{"$f":"E180/100*15","v":{"v":0,"d":"0.00 "}},{"v":0,"d":"0.00 "},{"v":0,"d":"0.00 "},null,{"v":0,"d":"0.00 "}]
[null,2,3,"2.3.",{"v":0,"d":"0.00 "},{"$f":"E181/100*85","v":{"v":0,"d":"0.00 "}},{"v":0,"d":"0.00 "},{"v":0,"d":"0.00 "},{"v":0,"d":"0.00 "},null,{"v":0,"d":"0.00 "}]
[null,2,3,"2.3.",{"v":0,"d":"0.00 "},{"$f":"E182/100*85","v":{"v":0,"d":"0.00 "}},{"$f":"E182/100*15","v":{"v":0,"d":"0.00 "}},{"v":0,"d":"0.00 "},{"v":0,"d":"0.00 "},null,{"v":0,"d":"0.00 "}]

{"sheet":"G - Indikátory dle SC","index":3,"n_rows":89,"n_cols":17,"rows_kept":89,"merged":[[0,0,2,0],[0,1,2,1],[0,2,0,5],[0,6,0,9],[0,11,0,14],[0,15,2,15],[0,16,2,16],[1,2,2,2],[1,3,2,3],[1,4,2,4],[1,5,2,5],[1,6,2,6],[1,7,2,7],[1,8,2,8],[1,9,2,9],[1,10,2,10],[1,11,2,11],[1,12,2,12],[1,13,2,13],[1,14,2,14],[3,0,7,0],[3,1,5,1],[3,2,5,2],[3,3,5,3],[3,4,5,4],[3,5,5,5],[6,1,7,1],[6,2,7,2],[6,3,7,3],[6,4,7,4],[6,5,7,5],[8,0,9,0],[8,1,9,1],[8,2,9,2],[8,3,9,3],[8,4,9,4],[8,5,9,5],[10,0,83,0],[11,1,12,1],[11,2,12,2],[11,3,12,3],[11,4,12,4],[11,5,12,5],[13,1,18,1],[13,2,18,2],[13,3,18,3],[13,4,18,4],[13,5,18,5],[19,1,25,1],[19,2,25,2],[19,3,25,3],[19,4,25,4],[19,5,25,5],[26,1,28,1],[26,2,28,2],[26,3,28,3],[26,4,28,4],[26,5,28,5],[29,1,30,1],[29,2,30,2],[29,3,30,3],[29,4,30,4],[29,5,30,5],[31,1,32,1],[31,2,32,2],[31,3,32,3],[31,4,32,4],[31,5,32,5],[33,1,34,1],[33,2,34,2],[33,3,34,3],[33,4,34,4],[33,5,34,5],[35,1,36,1],[35,2,36,2],[35,3,36,3],[35,4,36,4],[35,5,36,5],[37,1,38,1],[37,2,38,2],[37,3,38,3],[37,4,38,4],[37,5,38,5],[39,1,45,1],[39,2,45,2],[39,3,45,3],[39,4,45,4],[39,5,45,5],[46,1,54,1],[46,2,54,2],[46,3,54,3],[46,4,54,4],[46,5,54,5],[55,1,66,1],[55,2,66,2],[55,3,66,3],[55,4,66,4],[55,5,66,5],[67,1,72,1],[67,2,72,2],[67,3,72,3],[67,4,72,4],[67,5,72,5],[73,1,83,1],[73,2,83,2],[73,3,83,3],[73,4,83,4],[73,5,83,5],[84,0,88,0],[84,1,88,1],[84,2,88,2],[84,3,88,3],[84,4,88,4],[84,5,88,5]]}
["Specifický cíl SCLLD","Opatření SCLLD","IDENTIFIKACE programu",{"$nulls":3},"Identifikace indikátorů",{"$nulls":4},"Hodnoty indikátoru",{"$nulls":3},"Odůvodnění jakým způsobem byly hodnoy stanoveny                                                             PŮVODNÍ ZMŃĚNÍ","Odůvodnění jakým způsobem byly hodnoy stanoveny                                                             AKTUALIZOVANÉ k 31.12.2019"]
[null,null,"Program","Prioritní osa / Priorita Unie","Investiční priorita OP / Prioritní oblast","Specifický cíl OP / operace PRV","kód NČI2014+","Název indikátoru","Měrná jednotka","typ indikátoru (výstup/výsledek)","Výchozí hodnota","Datum výchozí hodnoty","Cílová hodnota","Datum cílové hodnoty","Milník 31.12.2018 (je-li ŘO vyžadován)"]
[]
["SC1","1.1.1. Ochrana regionu","IROP",4,"9d","4.1.","5 75 20","Počet exponovaných území s nedostat. připraveností složek IZS","území","výsledku",108,"2014-12-31",48,"2023-12-31","xxx","Hodnoty výsledkových indikátoru, a to jak výchozí tak cílová byla převzata z IROP. Výchozí hodnota je stanovena k 31.12.2014 a cílová k 31.12.2023. Hodnota mid-term nebyla nastavena.","xxx"]
[{"$nulls":6},"5 75 01","Počet nových a modernizovaných objektů sloužících složkám IZS","objekty","výstupu"," 0","2014-01-01",2,"2023-12-31",1,"Cílová hodnota indikátoru  byla stanovena ve výši 5 zrekonstruovaných objektů složek JPO II a JPO III. Tento požadavek vychází ze šetření v území a ze zásobníku projektů s ohledem na absorpční kapacitu, alokovanou částku a průměrné ce. Potřeba realizace indikátoru vychází ze socioekonomické analýzy, kap. 2.1.10. Bezpečnost, str. 62.\nCílové hodnoty bude dosaženo, až v roce 2023, do roku 2018 se předpokládá, že bude realizována jedna rekonstrukce hasičské zbrojnice, která bude již proplacena.\nCena byla stanovena na základě zjištění obvyklých cen realizovaných rekonstrukcí hasičských zbrojnic. Tato cena je individuální, dle každého realizovaného projektu a je zde stanovena, jako cena průměrná, dle požadavků jednotlivých projektových záměrů na 800 000,- Kč za jednu rekonstrukci objektu.\nV rámci indikátoru  se plánují především následující zodolnění/ úpravy: rozšíření zbrojnice pro zásahovou techniku, výstavba garáží pro zásahovou techniku, úprava vjezdu pro zásahovou techniku, které budou v souladu s přílohou č. 5 Programového dokumentu IROP a dokumentu ?Zajištění adekvátní odolnosti a  vybavenosti základních složek integrovaného záchranného systému ? Policie ČR a Hasičského záchranného sboru ČR (včetně JSDH) v území, s důrazem na přizpůsobení se změnám klimatu a nových rizikům v období 2014-2020?      ","K datu 14.11.2019  došlo u tohoto indikátoru k finalizaci  cílové hodnoty z důvodu ukončení realizace. Cílová hodnota tohoto indikátoru byla snížena z 5 na 2 objekty z důvodu: a) vyčerpání finančních prostředků pro dané opatření b) nárust cen za stavební práce c) nnemožnosti realizace  projektů z důvodu možnosti podpory pouze ve 2 ORP (ze 3) Průměrná cena za měrnou jednotku indikátoru v podobě  rekonstrukce hasičské zbrojnice a Přístavby garážových prostor JPO II a III je 3 000 000 Kč. Tato finální změna byla komunitně projednána a v území MAS ŽR  a schválena Valnou hromadou MAS ŽR 14.11.2019.   "]
[{"$nulls":6},"5 70 01","Počet nové techniky a věcných prostředků složek IZS","sety","výstupu"," 0","2014-01-01",0,"2023-12-31","xxx","Cílová hodnota indikátoru byla stanovena ve výši 5 setů technického a věcného vybavení (1 set = 1 elektrocentrála)  složek JPO II a JPO III. Tyto prostředky budou sloužit k řešení mimořádných událostí, spojených se změnami klimatu, jako jsou přívalové a dlouhotrvající intenzivní srážky, nadprůměrné sněhové srážky, masivní námrazy, povodně, déletrvající sucha, vichřice, sesuvy, rozsáhlé požáry či mimořádné události antropogenního původu.\nPožadavek vychází ze šetření v území a ze zásobníku projektů, který byl na základě zpracování analytické části zpracován pro programové období. Potřeba realizace indikátoru vychází ze socioekonomické analýzy, 2.1.10. Bezpečnost, str. 62. Cílové hodnoty bude dosaženo do 31.12.2023.\n\nPrůměrnou cenu MAS stanovila na základě šetření (zanalyzování) pořizovacích cen na základě požadavků jednotek JPO II a JPO III . Cílová hodnota ve výši 5 setů se skládá z pěti elektrocentrál v průměrné ceně 400 000 Kč/ks. Cena byla zjištěna na základě potřeb JPO II a III, dané požadavky byly zanalyzovány a zjištěny ceny obdobné techniky u potencionálních dodavatelů. V návaznosti na zjištěnou průměrnou cenu a absorpční kapacitu opatření byla cílová hodnota stanovena na 5 setů.                              ","K datu 14.11.2019 došlo u tohoto indikátoru k finalizaci  cílové hodnoty z důvodu ukončení realizace. Cílová hodnota tohoto indikátoru byla snížena z 5 na 0 setů z důvodu: a) vyčerpání finančních prostředků pro dané opatření b)  nemožnosti realizace  projektů z důvodu možnosti podpory pouze ve 2 ORP (ze 3) d)  dle původních podmínek nebyl o možnou techniku zájem e) na základě střednědobého hodnocení nebyly zjištěny žádné možné projekty k realizaci. Tato finální změna byla komunitně projednána a v území MAS ŽR  a schválena Valnou hromadou MAS ŽR 14.11.2019.   "]
[null,"1.1.2. Krajina je naše zrcadlo","OP ŽP",4,1,"4.3."," 46500","Plocha stanovišť, které jsou podporovány s cílem zlepšit jejich stav zachování","ha","výstupu",0,"2014-01-01",8,"2023-12-31",1.6,"Hodnota výsstupového indikátoru, a to jak výchozí tak cílová byla přidělena Ministerstvem Životního prostředí a Agenturou ochrany a krajiny ČR. Výchozí hodnota je stanovena k 31.12.2014 a cílová k 31.12.2023.\nMAS vyhlásí první výzvy až v roce 2017, to znamená, že realizace budou postupně zahájeny až v roce 2018, z tohoto důvodu je hodnota mid –term stanovena na 1,6 ha..","xxx"]
[{"$nulls":6},45415,"Počet lokalit, kde byly posíleny ekosystémové funkce krajinyí","lokalita","výsledku",0,"2014-01-01",2,"2023-12-31",1,"Hodnota výsledkového indikátoru, a to jak výchozí tak cílová byla přidělena Ministerstvem Životního prostředí a Agenturou ochrany a krajiny ČR. Výchozí hodnota je stanovena k 31.12.2014 a cílová k 31.12.2023.\nMAS vyhlásí první výzvy až v roce 2017, to znamená, že realizace budou postupně zahájeny až v roce 2018, z tohoto důvodu je hodnota mid – term stanovena na 1 lokalitu. ","xxx"]
["SC  2","2.3.1. Rekreační lesy","PRV",6,"6b","19.2.",92702,"Počet podpořených operací (akcí)","akce","výstupu",0,"2014-01-01",3,"2023-12-31",0,"Cílová hodnota byla nastavena, dle provedené analýzy území v rámci, které vznikl i zásobník projektů, který byl aktualizován na základě střednědobého hodnocení SCLLD k 31.12.2018. Hodnota pro střednědobé hodnocení je 0 akce","xxx"]
[{"$nulls":6},93001,"Celková plocha (ha)","ha","výstupu",0,"2014-01-01",25.8,"2023-12-31",0,"Cílová hodnota byla nastavena, dle provedené analýzy území v rámci, které vznikl i zásobník projektů, který byl aktualizován na základě střednědobého hodnocení SCLLD k 31.12.2018. Hodnota pro střednědobé hodnocení je 0 hektar","xxx"]
["SC3","3.1.1.","PRV",6,"6b","19.3.",92501,"Celkové veřejné výdaje","Eura","výstup",0,"2014-01-01",{"v":50107,"d":"50,107"},"2023-12-31",{"v":25053,"d":"25,053"},"Cílová hodnota byla stanovena na základě určené celkové alokace MAS na projekty spolupráce 19.3.1.","xxx"]
[null,"3.1.6.","PRV",6,"6b","19.2.",92702,"Počet podpořených operací (akcí)","akce","výstup",0,"2014-01-01",11,"2023-12-31",0,"Cílová hodnota byla nastavena, dle provedené analýzy území v rámci, které vznikl i zásobník projektů, který byl aktualizován na základě střednědobého hodnocení SCLLD k 31.12.2018. Hodnota pro střednědobé hodnocení je 0 akcí","xxx"]
[{"$nulls":6},94800,"Pracovní místa vytvořená v rámci podpořených projektů (Leader)","FTE","výsledek",0,"2014-01-01",4,"2023-12-31",0,"Cílová hodnota byla nastavena, dle provedené analýzy území v rámci, které vznikl i zásobník projektů, který byl aktualizován na základě střednědobého hodnocení SCLLD k 31.12.2018.  Hodnota pro střednědobé hodnocení je 0 pracovních míst","xxx"]
[null,"3.1.4. Sociální služby","OP ZAM",2,3,"2.3.","6 70 01","Kapacita podpořených služeb","místa","výstupu",0,2013,23,"2023-12-31","xxx","Hodnota indikátoru byla stanovena na základě průzkumu území a zmapování sociálních služeb v území, které jsou popsány v analytické části v kap 2.1.4. Na základě průzkumu vznikl zásobník projektů, který mapuje i vznik nových a rozvoj stávajících sociálních služeb. \nVšechny hodnoty indikátorů byly stanoveny na základě kombinace typových (modelových) projektů, vycházejících ze zásobníku projektových záměrů pro příslušné opatření a kvalifikovaného odhadu při výši alokace. Modelové projekty vycházely z běžné praxe lokálních poskytovatelů služeb a zohledňují standard financování služeb v rámci Pardubického kraje.\nV rámci realizace opatření se předpokládá podpora 3 aktivit:\n- rozšíření okamžité kapacity nízkoprahového zařízení pro děti a mládež ve věku 15 – 18 let (okamžitá kapacita se rozšíří o 7 osob)\n- rozšíření okamžité kapacity sociálně aktivizační služby pro rodiny s dětmi (okamžitá kapacita se rozšíří o 8 osob)\n- nově vznikne sociálně terapeutická dílna s okamžitou kapacitou 8 osob\nVýčet možných aktivit v realizaci opatření je nastaven širší z důvodu, že v rámci realizace programovacího období může dojít k potřebě vzniku nové služby.\nZpůsob výpočtu:\nNa tento indikátor bylo přiděleno dle průzkumu území a absorpční kapacitě cca 25 % alokace. Hodnota byla stanovena jako optimální v návaznosti na přidělený objem finančních prostředků, počet projektů včetně stanovené minimální výše na projekt (min. 400 tis. Kč) a druh podporovaných aktivit, které by měly přistupovat k osobám individuálně. Náklady na místo vycházejí z národní kvalifikace a zohledňují vybavení a zajištění personálu po celou dobu projektu.","xxx"]
[{"$nulls":6},"6 00 00","Celkový počet účastníků","účastníci","výstupu",0,2013,40,"2023-12-31","xxx","Hodnota indikátoru byla stanovena na základě průzkumu území s ohledem na absorpční  kapacitu a hodnotu indikátoru 67001 a 67010.\nHodnoty indikátoru byla stanovena na základě kombinace typových (modelových) projektů, vycházejících ze zásobníku projektových záměrů pro příslušné opatření a kvalifikovaného odhadu při výši alokace. Modelové projekty vycházely z běžné praxe lokálních poskytovatelů služeb a zohledňují standard financování služeb v rámci Pardubického kraje.\nV rámci realizace opatření se předpokládá podpora následujících aktivit:\n- rozšíření okamžité kapacity nízkoprahového zařízení pro děti a mládež ve věku 15 – 18 let (okamžitá kapacita se rozšíří o 7 osob)\n- rozšíření okamžité kapacity sociálně aktivizační služby pro rodiny s dětmi (okamžitá kapacita se rozšíří o 8 osob)\n- nově vznikne sociálně terapeutická dílna s okamžitou kapacitou 8 osob\n- komunitní práce – v rámci realizace komunitní práce v komunitním centru se předpokládá při zohlednění pracovního úvazku komunitního pracovníka podpora 17 účastníků. \nVýčet možných aktivit v realizaci opatření je nastaven širší z důvodu, že v rámci realizace programovacího období může dojít k potřebě vzniku nové služby.\nZpůsob výpočtu:\nNa opatření bylo přiděleno cca 25 % alokace, tj. 3 259 750,- Kč, průměrná cena na účastníka byla  stanovena na cca 81 tis. Kč (s ohledem na doporučení ŘO), hodnota indikátoru byla tedy stanovena na 40 účastníků.","xxx"]
[{"$nulls":6},"5 51 02","Počet podpořených komunitních center","zařízení","výstupu",0,2013,1,"2023-12-31","xxx","Hodnota indikátoru byla stanovena na základě\nprůzkumu území s ohledem na absorpční\nkapacitu. V území byla zjištěna potřeba rpodpory 1 komunitního centra.","xxx"]
[{"$nulls":6},"6 70 10","Využívání podpořených služeb","osoby","výsledku"," 0",2013,50,"2023-12-31","xxx","Hodnota indikátoru byla stanovena na základě průzkumu území a zmapování stávajících sociálních služeb, které jsou popsány v analitycké části v kap 2.1.4. \nHodnota indikátoru byla stanovena na základě průzkumu území s ohledem na absorpční kapacitu a hodnotu indikátoru 67001 a 60000.\nV rámci indikátoru je uveden počet osob, které využili službu či program během trvání projektu, a které jsou vedeny jako anonymní klienti (v rámci realizace opatření se předpokládá možná podpora projektu, které se budou zaměřovat na služby sociální prevence a odborného sociálního poradenství) nebo jejichž podpora nepřesáhla bagatelní podporu v rámci poskytované služby nízkoprahová zařízení pro děti a mládež. O daných osobách povede každý příjemce evidenci a bude schopen doložit daný počet osob.\nV komunitním centru budou podpořeny osoby s nižší než bagatelní podporou vzhledem k aktivitám v komunitním centru. Cílová skupina bude řešit své dlouhodobé probléby.\nV rámci realizace projektů se přepodkládá vznik sociálně terapeutické dílny (s okamžitou kapacitou 8 osob).\nVýsledná hodnota indikátoru byla stanovena na 50 osob, které využili službu či program během trvání projektu, dle standardu využívaných pro danou službu. Služba bude poskytována osobám v nepříznivých sociální či zdravotní situaci.","xxx"]
[{"$nulls":6},"6 73 15","Bývalí účastníci projektů v oblasti sociálních služeb, u nichž služba naplnila svůj účel","osoby","výsledku"," 0",2013,13,"2023-12-31","xxx","Hodnota stanovena na základě průzkumu území\ns ohledem na absorpční kapacitu, indikátor 60000\na odhad úspěšnosti projektů v oblasti sociálních\nslužeb.","xxx"]
[{"$nulls":6},"6 73 10","Bývalí účastníci projektů u nichž intervence formou sociální práce naplnila svůj účel","osoby","výsledku"," 0",2013,15,"2023-12-31","xxx","Hodnota stanovena na základě průzkumu území\ns ohledem na absorpční kapacitu a výši\nindikátoru 60000 a 67315.","xxx"]
[null,"3.1.5. Bezpečná a dostupná doprava","IROP",4,"9d","4.1.","7 63 10","Podíl cyklistiky na přepravních výkonech","%","výsledku",7,"2011-12-31",10,"2023-12-31","xxx","Hodnota výsledkového indikátoru, a to jak výchozí tak cílová byla převzata z IROP. Výchozí hodnota je stanovena k 31.12.2011 a cílová k 31.12.2023. Milník v rámci daného indikátoru není nastaven.","xxx"]
[{"$nulls":6},"7 51 20","Podíl veřejné osobní dopravy na celkových výkonech v osobní dopravě","%","výsledku"," 30","2011-12-31"," 35","2023-12-31","xxx","Hodnota výsledkového indikátoru, a to jak výchozí tak cílová byla převzata z IROP. Výchozí hodnota je stanovena k 31.12.2011 a cílová k 31.12.2023. Milník v rámci daného indikátoru není nastaven.","xxx"]
[{"$nulls":6},"7 48 01","Počet nově pořízených vozidel pro veřejnou dopravu","vozidla","výstupu",0,"2014-01-01",0,"2023-12-31",0,"Cílová hodnota indikátoru byla stanovena ve výši 1 vozidla pro veřejnou dopravu. \nNa základě průzkumu v území s ohledem na absorbění kapacitu byla zjištěna potřeba pořízení vozidla pro veřejnou dopravu typu CNG Bus.\nCílové hodnoty bude dosaženo, až v roce 2023, s realizací projektu se počítá až v druhé polovině programovacího období, proto hodnota mid-therm byla stanovena 0.\nCena byla stanovena na základě zjištění obvyklé ceny v rámci analýzy prodejců daných vozidel. Cena byla stanovena na cca 4 miliony Kč","K datu 14.11.2019 došlo ke zrušení tohoto indikátoru z důvodu odebrání aktivty Nízkoemisní vozidla z PR IROP z důvodu   a) na základě střednědobého hodnocení nebyly zjištěny žádné možné projekty k realizaci b) původně plánovaný projekt byl již realizován z jiných zdrojů. V důsledku toho byly hodnoty vynulovány s tím, že původní cílová hodnota Počet nově pořízených vozidel pro veřejnou dopravu byla stanovena ve výšši 1 vozidlo. Tato změna byla komunitně projednána a v území MAS ŽR  a schválena Valnou hromadou MAS ŽR 14.11.2019.                                                                                                                                                            "]
[{"$nulls":6},"7 50 01","Počet realizací vedoucích ke zvýšení bezpečnosti v dopravě","realizace","výstupu",0,"2014-01-01",8,"2023-12-31","xxx","Cílová hodnota indikátoru byla stanovena na základě průzkumu území s ohledem na absorpční kapacitu,zásobník projektů, alokovanou částku a průměrné ceny na 8 opatření vedoucích k zvyšování bezpečnosti dopravy. \nNa základě zjištění obvyklé ceny jednotlivých opatření vedoucích k dosažení realizace vedoucí k zvýšení bezpečnosti v dopravě byla stanovena průměrná cena na jednotu indikátoru (realizaci) ve výši 1 milionu Kč za realizaci (z\ntoho průměrná cena bezbariérového přístupu\nzastávek cca 1 mil. Kč/realizaci, přizpůsobení\nkomunikací pro nemotorovou dopravu osobám\ns omezenou pohyblivostí nebo orientací cca 1\nmil. Kč/realizaci)","xxx"]
[{"$nulls":6},"7 61 00","Délka nově vybudovaných cyklostezek a cyklotras","km","výstupu",0,"2014-01-01",1.15,"2023-12-31","xxx","Cílová hodnota indikátoru byla stanovena na základě průzkumu území s ohledem na absorpční kapacitu,zásobník projektů, alokovanou částku na 3 km nové cyklostezky a 0 km nové cyklotrasy. Zásobník projektů vznikl na základě šetření problémů a potřeb v území a odráží se také z provedené socioekonomické analýzy (kap. 2.1.3. Doprava, str. 32). Cílové hodnoty bude dosaženo do 31.12.2023.    Průměrnou cena MAS stanovila na základě porovnání cen v realizovaných a tematicky a rozsahem totožných projektů. Na základě zjištění obvyklé průměrné ceny za výstavbu nové cyklostezky se odhaduje cena za 1 km nové cyklostezky na 1 milion Kč za km. MAS na základě zjištění požadavku území nebude vytvářet žádnou novou cyklotrasu, protože veškeré jsou vybudované v letech 1999 – 2001 a jsou plně dostačující.\nV návaznosti na zjištěnou průměrnou cenu a absorpční kapacitu byla cílová hodnota stanovena na 3 km nových cyklostezek a 0 km nové cyklotrasy.","K datu 14.11.2019  došlo u tohoto indikátoru k finalizaci  cílové hodnoty. Cílová hodnota tohoto indikátoru byla snížena ze 3 na 1,15 km, z důvodu a) nárust cen za stavební práce b) zjištěné absorbční kapacity území v rámci Střednědobého hodnocení, kdy nebyl zjištěn žádný další projektový záměr k realizaci c) původně plánované projekty byly realizovány z jiných zdrojů nebo se nestihne jich realizace z důvodu řešení majetkových vztahů. Průměrná skutečná cena za 1 km nově vybudované cyklostezky činí 8 mil. Kč.  Tato změna byla komunitně projednána a v území MAS ŽR  a schválena Valnou hromadou MAS ŽR 14.11.2019.                                                                      "]
[{"$nulls":6},"7 62 00","Délka rekonstruovaných cyklostezek a cyklotras","km","výstupu",0,"2014-01-01",0,"2023-12-31","xxx","Cílová hodnota indikátoru byla stanovena na základě průzkumu území s ohledem na absorpční kapacitu,zásobník projektů, alokovanou částku na 0 km zrekonstruované cyklostezky a 15 km cyklotrasy. Předpokládá se, že vznikne 0 km zrekonstruované či zmodernizované cyklostezky a 15 km cyklotrasy.  Zásobník projektů vznikl na základě šetření problémů a potřeb v území a odráží se také z provedené socioekonomické analýzy (kap. 2.1.3. Doprava, str. 32). Cílové hodnoty bude dosaženo do 31.12.2023.    Průměrnou cena MAS stanovila na základě porovnání cen v realizovaných a tematicky a rozsahem totožných projektů, zároveň MAS provedla analýzu cenových nabídek firem zabývajících se rekonstrukcí a modernizací cyklostezek a cyklotras.\nNa základě zjištění průměrné ceny zrekonstruované či zmodernizované cyklotrasy 400 000 Kč za 1 km. Na základě analýzy území nebyla zjištěna potřeba realizace rekonstrukce cyklostezek.\nV návaznosti na zjištěnou průměrnou cenu a absorpční kapacitu byla cílová hodnota stanovena na 0 km zrekonstruovaných cyklostezek a 15 km zrekonstruované cyklotrasy. ","K datu 14.11.2019  došlo u tohoto indikátoru k finalizaci  cílové hodnoty z důvodu ukončení realizace. Cílová hodnota tohoto indikátoru byla snížena z 15 na 0 km, z důvodu  a) na základě střednědobého hodnocení nebyly zjištěny žádné možné projekty k realizaci b) původně plánované projekty byly již realizovány z jiných zdrojů  nebo se nestihne jich realizace z důvodu řešení majetkových vztahů. Tato změna byla komunitně projednána a v území MAS ŽR  a schválena Valnou hromadou MAS ŽR 14.11.2019.                                                                                                                                                           "]
[{"$nulls":6},"7 64 01","Počet parkovacích míst pro jízdní kola","Parkovací místa","výstupu",0,"2014-01-01",0,"2023-12-31","xxx","Cílová hodnota byla stanovena na základě zjištění obvyklé ceny v území se předpokládá hodnota max. 5 000 Kč za jedno parkovací místo. V návaznosti na zjištěnou průměrnou cenu a absorpční kapacitu byla cílová hodnota\nstanovena na 5 parkovacích míst pro jízdní kolo např. v podobě stojanu.","K datu 14.11.2019  došlo u tohoto indikátoru k finalizaci  cílové hodnoty z důvodu ukončení realizace. Cílová hodnota tohoto indikátoru byla snížena z 5 na 0 z důvodu, že při vybudování cyklostezky Veselí - Valy jsou parkovací místa v počtu 5 realizována, ale žadatel parkovací místa realizuje z vlastních zdrojů v rámci projektu, z tohoto důvodu indikátor pro realizaci neuplatňuje, a tak se jeho realizace nepromítne do naplňování  indikátorů SCLLD.V podstatě je tedy tento indikátor naplněn, jen ho není možné vykázat.   Tato změna byla komunitně projednána a v území MAS ŽR  a schválena Valnou hromadou MAS ŽR 14.11.2019.  "]
[null,"3.2.1. Podpora místních trhů","PRV",6,"6b","19.2.",93102,"Počet podpořených kooperačních činností","činnosti spolupráce","výstup",0,"2014-01-01",0,"2023-12-31",0,"Cílová hodnota byla nastavena, dle provedené analýzy území v rámci, které vznikl i zásobník projektů, který byl aktualizován na základě střednědobého hodnocení SCLLD k 31.12.2018. Hodnota pro střednědobé hodnocení je 0 činnosti spolupráce","xxx"]
[{"$nulls":6},93701,"Počet podpořených podniků/příjemců","podniky","výstup",0,"2014-01-01",0,"2023-12-31",0,"Cílová hodnota byla nastavena, dle provedené analýzy území v rámci, které vznikl i zásobník projektů, který byl aktualizován na základě střednědobého hodnocení SCLLD k 31.12.2018. Hodnota pro střednědobé hodnocení jee 0 podniky","xxx"]
[{"$nulls":6},94800,"Pracovní místa vytvořená v rámci podpořených projektů (Leader)","FTE","výsledku",0,"2014-01-01",0,"2023-12-31",0,"Cílová hodnota byla nastavena, dle provedené analýzy území v rámci, které vznikl i zásobník projektů, který byl aktualizován na základě střednědobého hodnocení SCLLD k 31.12.2018. Hodnota pro střednědobé hodnocení je 0 pracovních míst","xxx"]
[null,"3.2.2. Regionální produkce","PRV",6,"6b","19.2.",93701,"Počet podpořených zemědělských podniků/příjemců ","podniky","výstupu",0,"2014-01-01",1,"2023-12-31",0,"Cílová hodnota byla nastavena, dle provedené analýzy území v rámci, které vznikl i zásobník projektů, který byl aktualizován na základě střednědobého hodnocení SCLLD k 31.12.2018. Hodnota pro střednědobé hodnocení je 0 podnik.","xxx"]
[{"$nulls":6},94800,"Pracovní místa vytvořená v rámci podpořených projektů (Leader)","FTE","výsledku",0,"2014-01-01",0,"2023-12-31",0,"Cílová hodnota byla nastavena, dle provedené analýzy území v rámci, které vznikl i zásobník projektů. Hodnota pro střednědobé hodnocení je 0 pracovních míst","xxx"]
[null,"3.3.1. Krajina krásnější","PRV",6,"6b","19.2.",93701,"Počet podpořených zemědělských podniků/příjemců ","podniky","výstupu",0,"2014-01-01",16,"2023-12-31",4,"Cílová hodnota byla nastavena, dle provedené analýzy území v rámci, které vznikl i zásobník projektů, který byl aktualizován na základě střednědobého hodnocení SCLLD k 31.12.2018. Hodnota pro střednědobé hodnocení jsou 4 podniky","xxx"]
[{"$nulls":6},94800,"Pracovní místa vytvořená v rámci podpořených projektů (Leader)","FTE","výsledku",0,"2014-01-01",0,"2023-12-31",0,"Cílová hodnota byla nastavena, dle provedené analýzy území v rámci, které vznikl i zásobník projektů, který byl aktualizován na základě střednědobého hodnocení SCLLD k 31.12.2018. Hodnota pro střednědobé hodnocení je 0 pracovních míst","xxx"]
[null,"3.3.2. Rozvoj nezemědělské činnosti","PRV",6,"6b","19.2.",93701,"Počet podpořených zemědělských podniků/příjemců ","podniky","výstupu",0,"2014-01-01",4,"2023-12-31",2,"Cílová hodnota byla nastavena, dle provedené analýzy území v rámci, které vznikl i zásobník projektů, který byl aktualizován na základě střednědobého hodnocení SCLLD k 31.12.2018. Hodnota pro střednědobé hodnocení 2 podniky.","xxx"]
[{"$nulls":6},94800,"Pracovní místa vytvořená v rámci podpořených projektů (Leader)","FTE","výsledku",0,"2014-01-01",1,"2023-12-31",0,"Cílová hodnota byla nastavena, dle provedené analýzy území v rámci, které vznikl i zásobník projektů, který byl aktualizován na základě střednědobého hodnocení SCLLD k 31.12.2018. Hodnota pro střednědobé hodnocení je 0 pracovních míst.","xxx"]
[null,"3.3.3. Lesnická infrastruktura","PRV",6,"6b","19.2.",93701,"Počet podpořených zemědělských podniků/příjemců ","podniky","výstupu",0,"2014-01-01",0,"2023-12-31",0,"Cílová hodnota byla nastavena, dle provedené analýzy území v rámci, které vznikl i zásobník projektů, který byl aktualizován na základě střednědobého hodnocení SCLLD k 31.12.2018. Hodnota pro střednědobé hodnocení je 0 podnik","xxx"]
[{"$nulls":6},94302,"Celková délka lesních cest (km)","km","výsledku",0,"2014-01-01",0,"2023-12-31",0,"Cílová hodnota byla nastavena, dle provedené analýzy území v rámci, které vznikl i zásobník projektů, který byl aktualizován na základě střednědobého hodnocení SCLLD k 31.12.2018. Hodnota pro střednědobé hodnocení je 0 km lesních cest.","xxx"]
[null,"3.3.4. Lesnická technika","PRV",6,"6b","19.2.",93701,"Počet podpořených zemědělských podniků/příjemců ","podniky","výstupu",0,"2014-01-01",0,"2023-12-31",0,"Cílová hodnota byla nastavena, dle provedené analýzy území v rámci, které vznikl i zásobník projektů, který byl aktualizován na základě střednědobého hodnocení SCLLD k 31.12.2018. Hodnota pro střednědobé hodnocení jsou 0 podniky.","xxx"]
[{"$nulls":6},94800,"Pracovní místa vytvořená v rámci podpořených projektů (Leader)","FTE","výsledku",0,"2014-01-01",0,"2023-12-31",0,"Cílová hodnota byla nastavena, dle provedené analýzy území v rámci, které vznikl i zásobník projektů, který byl aktualizován na základě střednědobého hodnocení SCLLD k 31.12.2018. Hodnota pro střednědobé hodnocení je 0 pracovních míst.","xxx"]
[null,"3.4.1. Rozvoj sociálního podnikání ","IROP",4,"9d","4.1.","1 04 11","Míra nezaměstnanosti osob s nejnižším vzděláním","%","výsledku",28.5,"2012-12-31",0,"2023-12-31","xxx","Hodnoty výsledkových indikátoru, a to jak výchozí tak cílová vychází ze socio-ekonomické analýzy území a v cílové hodnotě se odráží potřeby území, dle zásobníku projektů. Výchozí hodnota je stanovena k 31.12.2012 a cílová k 31.12.2023. Hodnota mid-therm není nastavena.","K datu 14.11.2019 došlo ke zrušení tohoto indikátoru z důvodu odebrání opatření Rozvoj sociálního podnikání z PR IROP z důvodu a) zrušení daného opatření a přesunu finančních prostředků na OP 1 Bezpečná a dostupná doprava  b) nezájmu realizace projektů pro  danou aktivitu, kdy daná skutečnost byla zjištěna v rámci Střednědobého hodnocení SCLLD MAS ŽR, v rámci, kterého byla zjištěna aktuální absorbční kapacita území a připravenost realizace projektů. c) původně plánované projekty nebylo možno realizovat z důvodu nerealizace plánovaného předcházejícího projektu a u druhého projektu došlo ke změně vedení společnosti, která má jiné vize, které není možné podpořit. V důsledku toho byly hodnoty vynulovány s tím, že původní cílová hodnota Míra nezaměstnanosti osob s nejnižším vzděláním byla stanovena ve výšši 22%. Tato změna byla komunitně projednána v území MAS ŽR  a schválena Valnou hromadou MAS ŽR 14.11.2019.                                                                                                                                                            "]
[{"$nulls":6},"1 00 00","Počet podniků pobírajících podporu","podniky","výstupu"," 0","2014-01-01",0,"2023-12-31",0,"Cílová hodnota indikátoru a milníku byla stanovena na základě průzkumu území dle zásobníku projektů s ohledem na absorpční kapacitu a alokovanou částku na 2 podniky pobírající podporu, při čemž hodnota mid-therm se počítá, že by byla 1 podnik pobírající podporu. Očekává se podpora 1x existující podnik, 1x nový podnik.Tento požadavek vychází ze šetření v území a ze zásobníku projektů. Potřeba realizace indikátoru vychází ze socioekonomické analýzy, kap. 2.1.4.. Vybavenost obcí, služby a život v obcích, str. 33 a 34.                                                                          V rámci realizace programovacího období se předpokládá, že podporu využijí dva sociální podniky (jeden stávající, který se v území nachází a jeden nový), tyto podniky chtějí dle zásobníku projektů realizovat postupně projekty, které povedou k jejich rozvoji. Průměrná hodnota podpory se předpokládá na jeden podnik cca 3 miliony Kč (v rámci projektů proběhnou rekonstrukce prostor, jejich vybavení a pořízení vybavení pro rozvoj daných podniků). Ceny byly zjištěny z analýzy nabídek potenciálních dodavatelů.","K datu 14.11.2019 došlo ke zrušení tohoto indikátoru z důvodu odebrání opatření Rozvoj sociálního podnikání z PR IROP z důvodu a) zrušení daného opatření a přesunu finančních prostředků na OP 1 Bezpečná a dostupná doprava  b) nezájmu realizace projektů pro  danou aktivitu, kdy daná skutečnost byla zjištěna v rámci Střednědobého hodnocení SCLLD MAS ŽR, v rámci, kterého byla zjištěna aktuální absorbční kapacity území a připravenost realizace projektů. c)  původně plánované porjekty nebylo možno realizovat z důvodu nerealizace plánovaného předcházejícího projektu a u druhého projektu došlo ke změně vedení společnosti, která má jiné vize, které není možné podpořit. V důsledku toho byly hodnoty vynulovány s tím, že původní cílová hodnota Počet podniků pobírající podporu byla stanovena ve výšši 2 podniky. Tato změna byla komunitně projednána a v území MAS ŽR  a schválena Valnou hromadou MAS ŽR 14.11.2019.       "]
[{"$nulls":6},"1 01 02","Počet podniků pobírajících granty","podniky","výstupu"," 0","2014-01-01",0,"2023-12-31","xxx","Cílová hodnota indikátoru a milníku byla stanovena na základě průzkumu území dle zásobníku projektů s ohledem na absorpční kapacitu a alokovanou částku na 2 podniky pobírající podporu, při čemž hodnota mid-therm se počítá, že by byla 1 podnik pobírající podporu. Očekává se podpora 1x existující podnik, 1x nový podnik. Potřeba realizace indikátoru vychází ze socioekonomické analýzy, kap. 2.1.4.. Vybavenost obcí, služby a život v obcích, str. 33 a 34.                   V rámci realizace programovacího období se předpokládá, že podporu využijí dva sociální podniky (jeden stávající, který se v území nachází a jeden nový), tyto podniky chtějí dle zásobníku projektů realizovat postupně projekty, které povedou k jejich rozvoji. Průměrná hodnota podpory se předpokládá na jeden podnik cca 3 miliony Kč (v rámci projektů proběhnou rekonstrukce prostor, jejich vybavení a pořízení vybavení pro rozvoj daných podniků). Ceny byly zjištěny z analýzy nabídek potenciálních dodavatelů.","K datu 14.11.2019 došlo ke zrušení tohoto indikátoru z důvodu odebrání opatření Rozvoj sociálního podnikání z PR IROP z důvodu  a) nezájmu realizace projektů pro danou aktivitu, kdy daná skutečnost byla zjištěna v rámci Střednědobého hodnocení SCLLD MAS ŽR, v rámci kterého byla zjištěna aktuální absorbční kapacita území a připravenost realizace projektů. b)  původně plánované projekty nebylo možno realizovat z důvodu nerealizace plánovaného předcházejícího projektu a u druhého projektu došlo ke změně vedení společnosti, která má jiné vize, které není možné podpořit. V důsledku toho byly hodnoty vynulovány s tím, že původní cílová hodnota Počet podniků pobírající granty byla stanovena ve výšši 2 podniky. Tato změna byla komunitně projednána v území MAS ŽR  a schválena Valnou hromadou MAS ŽR 14.11.2019.                                                                                                                                                            "]
[{"$nulls":6},"1 04 00","Zvýšení zaměstnanosti v podporovaných podnicích","FTE","výstupu"," 0","2014-01-01",0,"2023-12-31","xxx","Cílová hodnota indikátoru byla získána přepočtem alokované částky na toto opatření dle JCI (tj. 6 000 000 Kč/400 000 Kč), JCI 400 tis. Kč. Z hodnoty FTE 15 bude min. 1/3 připadat na znevýhodněné skupiny, tj. 5. Předpokládané náklady na vytvoření 1 FTE (jednoho plného pracovního úvazku) je 400 000,- Kč ","K datu 14.11.2019 došlo ke zrušení tohoto indikátoru z důvodu odebrání opatření Rozvoj sociálního podnikání z PR IROP z důvodu a) zrušení daného opatření a přesunu finančních prostředků na OP 1 Bezpečná a dostupná doprava  b) nezájmu realizace projektů pro  danou aktivitu, kdy daná skutečnost byla zjištěna v rámci Střednědobého hodnocení SCLLD MAS ŽR, v rámci, kterého byla zjištěna aktuální absorbční kapacity území a připravenost realizace projektů. c)  původně plánované porjekty nebylo možno realizovat z důvodu nerealizace plánovaného předcházejícího projektu a u druhého projektu došlo ke změně vedení společnosti, která má jiné vize, které není možné podpořit. V důsledku toho byly hodnoty vynulovány s tím, že původní cílová hodnota Zvýšení zaměstnanosti v podporovaných podnicích, které dostávají podporu byla stanovena ve výšši 15 FTE. Tato změna byla komunitně projednána v území MAS ŽR  a schválena Valnou hromadou MAS ŽR 14.11.2019.                                                                                                                                                                  "]
[{"$nulls":6},"1 01 05","Počet nových podniků, které dostávají podporu","Podniky","výstupu"," 0","2014-01-01",0,"2023-12-31","xxx","Cílová hodnota indikátoru byla získána na základě průzkumu území s ohledem na absorpční\nkapacitu a alokovanou částku, JCI 3 mil. Kč (tj.hodnota za 1 nový podnik)\nHodnota indikátoru byla stanovena dle zásobníku projektů na 1 nově vzniklých sociálních podniků. Tento požadavek vychází ze šetření v území a ze zásobníku projektů. Potřeba realizace indikátoru vychází ze socioekonomické analýzy, kap. 2.1.4.. Vybavenost obcí, služby a život v obcích, str. 33 a 34.  Průměrná hodnota podpory se předpokládá na jeden podnik cca 3 miliony Kč (v rámci projektů proběhnou rekonstrukce prostor, jejich vybavení a pořízení vybavení pro rozvoj daného podniku). Ceny byly zjištěny z analýzy nabídek potenciálních dodavatelů.","K datu 14.11.2019 došlo ke zrušení tohoto indikátoru z důvodu odebrání opatření Rozvoj sociálního podnikání z PR IROP z důvodu a) zrušení daného opatření a přesunu finančních prostředků na OP 1 Bezpečná a dostupná doprava  b) nezájmu realizace projektů pro  danou aktivitu, kdy daná skutečnost byla zjištěna v rámci Střednědobého hodnocení SCLLD MAS ŽR, v rámci kterého byla zjištěna aktuální absorbční kapacita území a připravenost realizace projektů. c)  původně plánované projekty nebylo možno realizovat z důvodu nerealizace plánovaného předcházejícího projektu a u druhého projektu došlo ke změně vedení společnosti, která má jiné vize, které není možné podpořit. V důsledku toho byly hodnoty vynulovány s tím, že původní cílová hodnota Počet nových podniků, které dostávají podporu byla stanovena ve výšši 1 podnik. Tato změna byla komunitně projednána v území MAS ŽR  a schválena Valnou hromadou MAS ŽR 14.11.2019.                                                                                                                                                                  "]
[{"$nulls":6},"1 03 00","Soukromé investice odpovídající veřejné podpoře podniků (granty)","Eur","výstupu"," 0","2014-01-01",0,"2023-12-31","xxx","Cílová hodnota indikátoru byla stanovena na 218 181 Eur veřejné podpory podniků. Tato částka je odvislá z celkové alokované částky na dané opatření. Hodnota výstupového indikátoru vychází z celkové způsobilé částky alokované na dané opatření. Z této částky odpovídá soukromá investice 5% z celkových způsobilých výdajů. A tato částka byla přepočtena kurzem 27,50 Kč (kurz stanoven ŘO), tj 218 181 Euro","K datu 14.11.2019 došlo ke zrušení tohoto indikátoru z důvodu odebrání opatření Rozvoj sociálního podnikání z PR IROP z důvodu a) zrušení daného opatření a přesunu finančních prostředků na OP 1 Bezpečná a dostupná doprava  b) nezájmu realizace projektů pro danou aktivitu, kdy daná skutečnost byla zjištěna v rámci Střednědobého hodnocení SCLLD MAS ŽR, v rámci kterého byla zjištěna aktuální absorbční kapacita území a připravenost realizace projektů. c)  původně plánované projekty nebylo možno realizovat z důvodu nerealizace plánovaného předcházejícího projektu a u druhého projektu došlo ke změně vedení společnosti, která má jiné vize, které není možné podpořit. V důsledku toho byly hodnoty vynulovány s tím, že původní cílová hodnotaSoukromé investice odpovídající veřejné podpoře podniků (granty) byla stanovena ve výšši 218 181 Eur. Tato změna byla komunitně projednána v území MAS ŽR  a schválena Valnou hromadou MAS ŽR 14.11.2019.                                                                                                                                                                  "]
[{"$nulls":6},"1 04 03","Zvýšení zaměstnanosti v podporovaných podnicích se zaměřením na znevýhodněné skupiny","FTE","výstupu"," 0","2014-01-01",0,"2023-12-31","xxx","Hodnota indikátoru byla získána výpočtem: 1/3 z hodnoty indikátoru 1 04 00. Předpokládané náklady na vytvoření 1 FTE (jednoho plného pracovního úvazku) je 400 000,- Kč","K datu 14.11.2019 došlo ke zrušení tohoto indikátoru z důvodu odebrání opatření Rozvoj sociálního podnikání z PR IROP z důvodu a) zrušení daného opatření a přesunu finančních prostředků na OP 1 Bezpečná a dostupná doprava  b) nezájmu realizace projektů pro  danou aktivitu, kdy daná skutečnost byla zjištěna v rámci Střednědobého hodnocení SCLLD MAS ŽR, v rámci kterého byla zjištěna aktuální absorbční kapacita území a připravenost realizace projektů. c)  původně plánované porjekty nebylo možno realizovat z důvodu nerealizace plánovaného předcházejícího projektu a u druhého projektu došlo ke změně vedení společnosti, která má jiné vize, které není možné podpořit. V důsledku toho byly hodnoty vynulovány s tím, že původní cílová hodnota Zvýšení zaměstnanosti v podporovaných podnicích se zaměřením na zvýhodněné skupiny byla stanovena ve výšši 5 FTE. Tato změna byla komunitně projednána a v území MAS ŽR  a schválena Valnou hromadou MAS ŽR 14.11.2019.                                                                                                                                                                  "]
[null,"3.4.2. Vzděláváním k zaměstnanosti","OP ZAM",2,3,"2.3.","6 00 00","Celkový počet účastníků","osoby","výstupu"," 0","2014-01-01",27,"2023-12-31","xxx","Hodnota indikátoru byla stanovena s ohledem na průzkum území s ohledem na absorpční kapacitu Způsob výpočtu:\nNa opatření OPZ/O2 bylo přiděleno cca 20 % z alokace, průměrná cena na účastníka byla stanovena na cca 82 tis. Kč (s ohledem na doporučení ŘO), výsledná hodnota indikátoru je tedy 27 účastníků.\nNa základě zmapování potřeb území se přepokládá realizace následujících aktivit, které budou zaměřeny na cílové skupiny:\n- Rekvalifikace a další profesní vzdělávání – např. projekt Společnosti přátel Železných hor, z.s. ve spolupráci s Univerzitou Hradec Králové zaměřený na získání kvalifikace v oblasti geologoie a chráněného území se získáním kvalifikace průvodce v Národním geoparku Železné hory a v Cráněné krajiné oblasti Železné hory. V rámci získání kvalifikace, proběhnou i praktické zkoušky v území – počet osob 10\n\n- Postupné zaměstnávání osob - podpora projektů zaměřených na  osoby dlouhodobě nezaměstnané, ohrožené sociálním vyloučením a sociálně vyloučeným. Podpořena bude komplexsxsní práce s cílovou skupinou a jejím zapojením na trh práce. Aktivity povedou k získání pracovních návyků a zkušeností. Vzniknou pracovní místa na zkoušku, veřejně prospěšné práce, placené odborné praxe a stáže apod. Dané projekty vzniknou v rámci konzultace s ÚP ČR  – počet osob 10\n\n- Zvyšování uplatnitelnosti osob ohrožených sociálním vyloučením nebo osob sociálně vyloučených ve společnosti a na trhu práce. Realizace projektu, který povede k zvýšení motivace cílové skupiny k nalezení zaměstnání a jeho udržení. V rámci projektu budou realizovány rozvoj základních kompetencí za účelem snazšího uplatnění na trhu práce (jazykové vzdělávání, PC kurzy, rozvoj finanční gramotnosti, apod.). Aktivity zaměřené na zvýšení orientace osob v požadavcích trhu práce a realizace poradenských činností a programů, jejichž cílem je zjišťování osobnostních a kvalifikačních předpokladů osob pro volbu povolání (kariérové poradenství), pro zprostředkování vhodného zaměstnání – počet osob 7\n","xxx"]
[{"$nulls":6},51105,"Počet zaměstnavatelů, kteří podporují flexibilní formy práce","podniky","výstupu"," 0","2014-01-01",2,"2023-12-31","xxx","Hodnota byla stanovena na základě průzkumu území s ohledem na absorpční kapacitu, včetně zásobníku projektů území a s přihlédnutím k indikátoru 6000.  V rámci analýzy území byly zjištěny potřeby území, které ukázali, požadavky na realizaci daného opatření. K přihlédnutí na výši alokované částky se předpokládá podpora 2 podniky.","xxx"]
[{"$nulls":6},"5 01 30","Počet osob pracujících v rámci flexibilních forem práce","osoby","výsledku","0 ",2013,7,"2023-12-31","xxx","Hodnota indikátoru byla stanovena s ohledem na\nprůzkum území s ohledem na absorpční kapacitu,\npočet projektů a indikátor 60000.","xxx"]
[{"$nulls":6},"6 26 00","Účastníci, kteří získali kvalifikaci po ukončení své účasti","osoby","výsledku","0 ",2013,20,"2023-12-31","xxx","Hodnota indikátoru byla stanovena s ohledem na průzkum území s ohledem na absorpční kapacitu, počet projektů a indikátor 60000.\nHodnota indikátoru vychází z počtu účastníku v indikátoru se zohledněním, že všichni účastníci nezískají potvrzení o kvalifikaci o ukončení účasti na ESF projektu. Potvrzení o účasti bude uděleno na základě formálního prověření zanlostí, které ukáže, že účastník získal kvalifikaci, dle předem nastavených standardů. ","xxx"]
[{"$nulls":6},"6 28 00","Znevýhodnění účastníci, kteří po ukončení své účasti hledají zaměstnání, jsou v procesu vzdělávání/odborné přípravy, rozšiřují si kvalifikaci nebo jsou zaměstnaní, a to i OSVČ","osoby","výsledku","0 ",2013,2,"2023-12-31","xxx","Hodnota indikátoru byla stanovena s ohledem na průzkum území s ohledem na absorpční kapacitu\na výši indikátoru 60000\nZpůsob výpočtu:\nHodnota indikátoru vychází z počtu účastníku v\nindikátoru 60000 a je provázána s hodnotami\nindikátoru 62900, 63200, 62700 a 63100 se\nzohledněním povinnosti vykazovat pouze osoby\njednoznačně identifikované a skutečností, že se\nprojekty budou zabývat i osobami\nznevýhodněnými na trhu práce, proto lze\nočekávat sníženou úspěšnost nalezení\nzaměstnání do 4 týdnů i po úspěšném\nabsolvování projektu.","xxx"]
[{"$nulls":6},"6 29 00","Účastníci zaměstnáni 6 měsíců po ukončení své účasti, včetně OSVČ","osoby","výsledku","0 ",2013,8,"2023-12-31","xxx","Hodnota indikátoru byla stanovena s ohledem na průzkum území s ohledem na absorpční kapacitu\na výši indikátoru 60000\nZpůsob výpočtu:\nHodnota indikátoru vychází z počtu účastníku v\nindikátoru 60000 a je provázána s hodnotami\nindikátoru 62800, 63200, 62700 a 63100 se\nzohledněním povinnosti vykazovat pouze osoby\njednoznačně identifikované a skutečností, že se\nprojekty budou zabývat i osobami\nznevýhodněnými na trhu práce, proto lze\nočekávat sníženou úspěšnost nalezení\nzaměstnání i po úspěšném absolvování projektu.","xxx"]
[{"$nulls":6},"6 31 00","Účastníci ve věku nad 54 let zaměstnaní 6 měsíců po ukončení své účasti, včetně OSVČ","osoby","výsledku","0 ",2013,2,"2023-12-31","xxx","Hodnota indikátoru byla stanovena s ohledem na průzkum území s ohledem na absorpční kapacitu\na výši indikátoru 60000\nZpůsob výpočtu:\nHodnota indikátoru vychází z počtu účastníku v\nindikátoru 60000 a je provázána s hodnotami\nindikátoru 62900, 63200, 62700 a 62800 se\nzohledněním povinnosti vykazovat pouze osoby\njednoznačně identifikované a skutečností, že se\nprojekty budou zabývat i osobami\nznevýhodněnými na trhu práce, proto lze\nočekávat sníženou úspěšnost nalezení\nzaměstnání i po úspěšném absolvování projektu.","xxx"]
[{"$nulls":6},"6 32 00","Znevýhodnění účastníci zaměstnáni 6 měsíců po ukončení své účasti, včetně OSVČ","osoby","výsledku","0 ",2013,5,"2023-12-31","xxx","Hodnota indikátoru byla stanovena s ohledem na průzkum území s ohledem na absorpční kapacitu\na výši indikátoru 60000\nZpůsob výpočtu:\nHodnota indikátoru vychází z počtu účastníku v\nindikátoru 60000 a je provázána s hodnotami\nindikátoru 62900, 62800, 62700 a 63100 se\nzohledněním povinnosti vykazovat pouze osoby\njednoznačně identifikované a skutečností, že se\nprojekty budou zabývat i osobami\nznevýhodněnými na trhu práce, proto lze\nočekávat sníženou úspěšnost nalezení\nzaměstnání i po úspěšném absolvování projektu.","xxx"]
[{"$nulls":6},"6 27 00","Účastníci zaměstnaní po ukončení své účasti, včetně OSVČ","osoby","výsledek",0,"2014-01-01",4,"2023-12-31","xxx","Hodnota stanovena na základě průzkumu území\ns ohledem na absorpční kapacitu a indikátor\n60000.\nZpůsob výpočtu:\nHodnota indikátoru vychází z počtu účastníku v\nindikátoru 60000 a je provázána s hodnotami\nindikátoru 62600, 62800, 62900 se zohledněním,\nže v území je spíše nižší nezaměstnanost a\nopatření tedy budou využívat spíše osoby\npečující o malé děti než osoby vracející se na trh\npro mateřské/rodičovské dovolené.","xxx"]
[null,"3.4.3. Sociální podnikání","OP ZAM",2,3,"2.3.","6 00 00","Celkový počet účastníků","osoby","výstup",0,"2014-01-01",6,"2023-12-31","xxx","dle průzkumu území a indikátoru 10213 a 10212\nočekávaného počtu podpořených podniků (viz\nindikátor 10213 a 10212).\nZpůsob výpočtu:\nNa toto opatření bylo přiděleno cca 30 % z alokace s tím, že je v opatření\npočítáno s vytvořením pracovních míst a dalšími\npodporovanými aktivitami. Přibližně polovina\nnákladů na projekty z tohoto opatření je\nplánována na mzdy vč. odvodů zaměstnavatele a\ndruhá polovina na další podporované činnosti\nv rámci sociálního podnikání. Průměrné náklady\nna účastníka jsou tedy cca 350 tis. Kč na 2 roky\n(mzdy vč. odvodů).","xxx"]
[{"$nulls":6},"1 02 13","Počet sociálních podniků vzniklých díky podpoře","organiazce","výstup",0,"2014-01-01",1,"2023-12-31","xxx","Hodnota stanovena na základě průzkumu území průzkum území s ohledem na absorpční kapacitu\nZpůsob výpočtu:\nNa toto opatření bylo přiděleno dle průzkumu\núzemí a absorpční kapacitě cca 30 % \nalokace. Hodnota byla stanovena jako optimální v\nnávaznosti na přidělený objem finančních\nprostředků a množství vytvořených pracovních\nmíst (cca 3) a dalších podporovaných aktivit.","xxx"]
[{"$nulls":6},"1 02 12","Počet podpořených\njiž existujících\nsociálních podniků","organiazce","výstup",0,"2014-01-01",1,"2023-12-31","xxx","Hodnota stanovena na základě průzkumu území průzkum území s ohledem na absorpční kapacitu\nZpůsob výpočtu:\nNa toto opatření bylo přiděleno dle průzkumu\núzemí a absorpční kapacitě cca 30 %\nalokace. Hodnota byla stanovena jako optimální v\nnávaznosti na přidělený objem finančních\nprostředků a množství vytvořených pracovních\nmíst (cca 3) a dalších podporovaných aktivit.","xxx"]
[{"$nulls":6},50105,"Počet zaměstnavatelů, kteří podporují flexibilní formy práce","Podniky","výstup",0,"2014-01-01",2,"2023-12-31","xxx","Hodnota stanovena na základě průzkumu území průzkum území s ohledem na absorpční kapacitu, včetně zásobníku projektů území.\nZpůsob výpočtu:\nV rámci analýzy území byly zjištěny potřeby území, které ukázali, požadavky na realizaci daného opatření. K přihlédnutí na váši alokované částky se předpokládá podpora 2 podniků.","xxx"]
[{"$nulls":6},"1 02 11","Počet sociálních podniků vzniklých\ndíky podpoře, které fungují i po ukončení podpory","organizace","výsledku",0,2013,2,"2023-12-31","xxx","Dle očekávaného počtu podpořených\npodniků (viz indikátor 10213 a 10212)","xxx"]
[{"$nulls":6},50130,"Počet osob pracujících v rámci flexibilních forem práce","Osoby","výsledku",0,"2014-01-01",3,"2023-12-31","xxx","Hodnota indikátoru byla stanovena s ohledem na průzkum území s ohledem na absorbční kapacitu, počet projektů a indikátoru 6000\nMI byl zvolen na základě skutečnosti, že na území MAS působí v současné době 1 sociální podnik a dle průzkumu území 1 podnik v novém období vznikne. Předpokládá se, že 4 osoby budou pracovat flexibilní formou práce","xxx"]
[{"$nulls":6},62600,"Účastníci, kteří získali kvalifikaci po ukončení své účasti ","Osoby","výsledku",0,"2014-01-01",2,"2023-12-31","xxx","Hodnota indikátoru byla stanovena s ohledem na průzkum území s ohledem na absorpční kapacitu, počet projektů a indikátor 60000.\nMI byl zvolen na základě skutečnosti, že na území MAS působí v současné době 1 sociální podnik a dle průzkumu území 1 podnik v novém období vznikne. Předpokládá se, že v průběhu realizace získají 2 osoby kvalifikaci","xxx"]
[{"$nulls":6},62800,"Znevýhodnění účastníci, kteří po ukončení své účasti hledají zaměstnání, jsou v procesu vzdělávání/odborné přípravy, rozšiřují si kvalifikaci nebo jsou zaměstnaní, a to i OSVČ","Osoby","výsledku",0,"2014-01-01",2,"2023-12-31","xxx","Hodnota indikátoru byla stanovena s ohledem na průzkum území s ohledem na absorpční kapacitu\na výši indikátoru 60000\nZpůsob výpočtu:\nMI byl zvolen na základě skutečnosti, že na území MAS působí v současné době 1 sociální podnik a dle průzkumu území 1 podnik v novém období vznikne. Na základě kvalifikovaného odhadu a s ohledem na výši způsobilých výdajů pro oatření s předpokládá podpora dvou sociálních podniků, který zaměstná min. 2 znevýhodněné osoby.","xxx"]
[{"$nulls":6},62900,"Účastníci zaměstnáni 6 měsíců po ukončení své účasti, včetně OSVČ","Osoby","výsledku",0,"2014-01-01",4,"2023-12-31","xxx","Hodnota indikátoru byla stanovena s ohledem na průzkum území s ohledem na absorpční kapacitu\na výši indikátoru 60000\nZpůsob výpočtu:\nMI byl zvolen na základě skutečnosti, že na území MAS působí v současné době 1 sociální podnik a dle průzkumu území 1 podnik v novém období vznikne. Na základě kvalifikovaného odhadu a s ohledem na výši způsobilých výdajů pro oatření s předpokládá podpora dvou sociálních podniků, jehož účastníci budou zaměstnání 6 měsíců po ukončení své účasti na projektu, včetně OSVČ.","xxx"]
[{"$nulls":6},63100,"Účastníci ve věku nad 54 let zaměstnaní 6 měsíců po ukončení své účasti, včetně OSVČ","Osoby","výsledku",0,"2014-01-01",1,"2023-12-31","xxx","Hodnota indikátoru byla stanovena s ohledem na průzkum území s ohledem na absorpční kapacitu\na výši indikátoru 60000\nZpůsob výpočtu:\nMI byl zvolen na základě skutečnosti, že na území MAS působí v současné době 1 sociální podnik a dle průzkumu území 1 podnik v novém období vznikne. Na základě kvalifikovaného odhadu a s ohledem na výši způsobilých výdajů pro opatření s předpokládá podpora dvou sociálních podniků, jehož účastníci vě věku 54 let budou zaměstnání 6 měsíců po ukončení své účasti na projektu, včetně OSVČ.","xxx"]
[{"$nulls":6},63200,"Znevýhodnění účastníci zaměstnáni 6 měsíců po ukončení své účasti, včetně OSVČ","Osoby","výsledku",0,"2014-01-01",3,"2023-12-31","xxx","Hodnota indikátoru byla stanovena s ohledem na průzkum území s ohledem na absorpční kapacitu\na výši indikátoru 60000\nZpůsob výpočtu:\nMI byl zvolen na základě skutečnosti, že na území MAS působí v současné době 1 sociální podnik a dle průzkumu území 1 podnik v novém období vznikne. Na základě kvalifikovaného odhadu a s ohledem na výši způsobilých výdajů pro opatření s předpokládá podpora dvou sociálních podniků, jehož znevýhodnění účastníci budou zaměstnání 6 měsíců po ukončení své účasti na projektu, včetně OSVČ.","xxx"]
[{"$nulls":6},62700,"Účastníci zaměstnaní po ukončení své účasti, včetně OSVČ","Osoby","výsledku",0,"2014-01-01",5,"2023-12-31","xxx","Hodnota stanovena na základě průzkumu území\ns ohledem na absorpční kapacitu a indikátor\n60000.\nZpůsob výpočtu:\nMI byl zvolen na základě skutečnosti, že na území MAS působí v současné době 1 sociální podnik a dle průzkumu území 1 podnik v novém období vznikne. Na základě kvalifikovaného odhadu a s ohledem na výši způsobilých výdajů pro opatření s předpokládá podpora dvou sociálních podniků, jehož účastníci budou zaměstnání po ukončení své účasti na projektu, včetně OSVČ.","xxx"]
[null,"3.4.4. Kvalita a dostupnost sociálních služeb","IROP",4,"9d","4.1.","6 75 10","Kapacita služeb a sociální práce","klienti","výsledku",18,"2014-01-01",35,"2023-12-31","xxx","Výchozí hodnota indikátoru vychází z průzkumu  území - do indikátoru nebyly zahrnuty pobytové sociální služby, protože se nejedná o služby dle definice indikátoru a služby poskytovatelů, jejichž sídlo a provozovna se nachází mimo region; v hodnotě se nacházejí služby jedné neziskové organizace, která působí v dané oblasti a jejíž činnost je v souladu se Střednědobým plánem Pardubického kraje .Organizace poskytuje 2 sociální služby \n- 1. Nízkoprahové zařízení pro děti a mládež má max. okamžitou kapacitu 15 klientů \n- 2. Sociálně aktivizační služby pro rodiny s dětmi má max. okamžitou kapacitu 3 klienty\nCílová hodnota indikátoru byla stanovena na základě požadavků území, zásobníku projekt a absorpční kapacity. Předpokládá se rozšíření na celkové 3 služby s okamžitou kapacitou 40 osob (současná služba č.1. se rozšíří na 22 klientů, služba č. 2 se rozšří na 8 klientů a vznikne 1 nová služba, která bude mít okamžitou kapacitu 10)\nNavýšení se tak maximální okamžitá kapacita o 22 klientů.","K datu 14.11.2019  došlo u tohoto indikátoru k finalizaci  cílové hodnoty. Cílová hodnota tohoto indikátoru byla snížena ze 40 na 35 klientů, z důvodu a) skutečné realizace projektů, které vyčerpaly plánovanou alokaci na dané opatření  b) realiazce 2 projektů proběhla ve vyšších částkách z důvodu nárustu cen za stavební práce  c) realizované projekty mají oproti původně plánované nižší kapacitu                                              - 1. Nízkoprahové zařízení pro děti a mládež má max. okamžitou kapacitu 5  klientů \n- 1. Centrum denních služeb, které  má max. okamžitou kapacitu 12 klientů  d) zjištěné absorbční kapacity území v rámci Střednědobého hodnocení, kdy nebyl zjištěn žádný další projektový záměr k realizaci Na základě realizace dvou výšše zmíněných projektů dochází k navýšení  maximální okamžité kapacity o 17 klientů..  Tato změna byla komunitně projednána a v území MAS ŽR  a schválena Valnou hromadou MAS ŽR 14.11.2019.                                                                      "]
[{"$nulls":6},"5 53 20","Průměrný počet osob využívající sociální bydlení","osoby/rok","výsledku",142,"2014-01-01",142,"2023-12-31","xxx","Hodnota výsledkového indikátoru, a to jak výchozí tak cílová vychází ze socio-ekonomické analýzy a zjištění potřeb území (zásobníku projektů) a v cílové hodnotě se odráží potřeby území, dle zásobníku projektů. Výchozí hodnota je stanovena k 1.1.2014 a cílová k 31.12.2023.\nVýchozí hodnota indikátoru byla vypočítána na základě sečtení průměrných obložností lůžek v území před realizací projektů. Cílová hodnota indikátoru byla vypočítána v návaznosti na výchozí hodnotu indikátoru 55320 a indikátor\n55310 (počet plánovaných lůžek – 20 lůžek) a dle počtu osob na jedno lůžko (tj. 0,8). V rámci realizace opatření dojde k navýšení o 16 osob/rok","K datu 14.11.2019  došlo u tohoto indikátoru k finalizaci  cílové hodnoty. Cílová hodnota tohoto indikátoru byla snížena ze 158 na 142 (což je výchozí hodnota) osob/rok, z důvodu a) zjištěné absorbční kapacity území v rámci Střednědobého hodnocení, kdy nebyl zjištěn žádný další projektový záměr k realizaci b) plánované projekty byly realizovány buď napřímo z IROP (vyšší možnost finančních prostředků) nebo z národních zdrojů MMR c) veškeré fiannční prostředky daného opatření jsou vyčerpány na základě podpory sociálních služeb. Tato změna byla komunitně projednána v území MAS ŽR  a schválena Valnou hromadou MAS ŽR 14.11.2019.                                                                      "]
[{"$nulls":6},"5 53 10","Nárust kapacity sociálních bytů","lůžka","výsledku",178,"2014-01-01",178,"2023-12-31","xxx","Hodnoty výsledkových indikátoru, a to jak výchozí tak cílová vychází ze socio-ekonomické analýzy území, zjištění potřeb území a alokované částky. \nVýchozí hodnota indikátoru vychází z průzkumu počtu lůžek sociálních bytů před realizací opatření strategie (89 bytových jednotek průměrně po 2 lůžkách). Cílová hodnota je stanovena s ohledem na indikátor 55301,\nprůměrný plánovaný počet lůžek na jeden sociální byt je 2 (tj 10 soc. bytů po 2 lůžkách), tj. nárůst kapacity sociálních bytů o 20 klientů. Cílová hodnota indikátoru je tedy 198.","K datu 14.11.2019  došlo u tohoto indikátoru k finalizaci  cílové hodnoty. Cílová hodnota tohoto indikátoru byla snížena z 198 na 178 bytových jednotek, (což je původní výchozí hodnota indikátoru) z důvodu a) zjištěné absorbční kapacity území v rámci Střednědobého hodnocení, kdy nebyl zjištěn žádný další projektový záměr k realizaci b) plánované projekty byly realizovány buď napřímo z IROP (vyšší možnost finančních prostředků) nebo z národních zdrojů MMR c) veškeré fiannční prostředky daného opatření jsou vyčerpány na základě podpory sociálních služeb. Tato změna byla komunitně projednána a v území MAS ŽR  a schválena Valnou hromadou MAS ŽR 14.11.2019.                                                                      "]
[{"$nulls":6},"5 53 01","Počet podpořených bytů pro sociální bydlení","bytové jednotky","výstupu","0 ","2014-01-01",0,"2023-12-31",0,"Cílová hodnota indikátoru (která bude dosažena k 31.12.2023) byla stanovena dle zásobníku projektů na 10 bytových jednotek, při čemž hodnota mid-therm jsou 2 bytové jednotky. Tento požadavek vychází ze šetření v území a ze zásobníku projektů s ohledem na absorpční kapacitu, alokovanou\nčástku a průměrné ceny. Potřeba realizace indikátoru vychází ze socioekonomické analýzy, kap. 2.1.4. Vybaven. obcí, služby a život v obcích, str. 33 a 34. Průměrná cena byla stanovena na základě srovnání cen obdobných projektů a činí 400 000 Kč/ bytovou jednotku, JCI 400 000 Kč. Na bytovou jednotku připadá 2  lůžka, tj. 10 bytových jednotek po 2 lůžkách V rámci strategie se předpokládají především rekonstrukce bytových jednotek.\n   ","K datu 14.11.2019  došlo u tohoto indikátoru k finalizaci  cílové hodnoty. Cílová hodnota tohoto indikátoru byla snížena z 10 na 0 s midterm hodnota z 2 na 0 bytových jednotek, z důvodu a) zjištěné absorbční kapacity území v rámci Střednědobého hodnocení, kdy nebyl zjištěn žádný další projektový záměr k realizaci b) plánované projekty byly realizovány buď napřímo z IROP (vyšší možnost finančních prostředků) nebo z národních zdrojů MMR c) veškeré fiannční prostředky daného opatření jsou vyčerpány na základě podpory sociálních služeb. Tato změna byla komunitně projednána a v území MAS ŽR  a schválena Valnou hromadou MAS ŽR 14.11.2019.                                                                      "]
[{"$nulls":6},"5 54 01","Počet podpořených zázemí pro služby a sociální práci ","zařízení","výstupu"," 0","2014-01-01",2,"2023-12-31","xxx","Cílová hodnota indikátoru byla stanovena ve výši 3 zařízení pro služby a sociální práci. Tento požadavek vychází ze šetření v území a ze zásobníku projektů. Potřeba realizace indikátoru vychází ze socioekonomické analýzy, kap. kap. 2.1.4., str. 33 a 34. Průměrné ceny byly stanoveny na základě cen obdobných projektů a na základě analýzy potencionálních dodavatelů.\nPrůměrná cena na jedno zázemí komunitního charakteru činí 1 mil. Kč. Při této ceně je zázemí zbudováno min. pro 15 osob u zázemí komunitního charakteru, které poskytuje sociální služby dle zákona 108/2006 Sb. \nPrůměrná cena 1 nízkokapacitního zázemí pro zajištění individuální péče činí 800 tis. Kč (okamžitá současná kapacita je 15 klientů pro cílovou skupinu dětí 10 – 15 let, je plánováno rozšíření o další cílovou skupinu mládež 15 – 18 let, která bude mít kapacitu 7 osob, celková okamžitá kapacita tedy vzroste na 22 klientů).\nPrůměrná cena zázemí poskytující 1 sociálně akviziční službu pro rodiny, dle zákona 108/2006 Sb.  1 mil. Kč/zázemí (okamžitá současná kapacita 3 osoby – terénní služby se rozšíří o ambulantní služby, která bude mít okamžitou kapacitu 8 osob, celkem bude službu tedy využívat průměrně v jeden okamžik až 11 osob)).\nNejvětší zájem v území je o zázemí komunitního charakteru.","K datu 14.11.2019  došlo u tohoto indikátoru k finalizaci  cílové hodnoty. Cílová hodnota tohoto indikátoru byla snížena ze 3 na 2 zařízení, z důvodu a) skutečné realizace 2 projektů, které vyčerpaly plánovanou alokaci na dané opatření  b) realiazce 2 projektů proběhla ve vyšších částkách z důvodu nárustu cen za stavební práce  c) původně plánovaný třetí projekt nebyl z důvod vývoje stávající situace v podniku realizován d) zjištěné absorbční kapacity území v rámci Střednědobého hodnocení, kdy nebyl zjištěn žádný další projektový záměr k realizaci. V současné době území nedisponuje dalšími možnými projekty na podporu sociálních služeb z finančních prostředků SCLLD. Finanční alokace plánovaná na dané opatření je však díky podpoře dvou nových služeb vyčerpána, v rámci které je jedno kompletně nově vybudováno.  Průměrná cena za měrnou jednotku byla stanovena na 3 000 000 Kč. Tato změna byla komunitně projednána v území MAS ŽR  a schválena Valnou hromadou MAS ŽR 14.11.2019.                                                                      "]
[{"$nulls":6},"5 54 02","Počet\nposkytovaných\ndruhů sociálních\nslužeb ","služby","výstupu"," 0","2014-01-01",2,"2023-12-31","xxx","Cílová hodnota indikátoru byla stanovena na základě průzkumu území s ohledem na absorpční kapacitu, alokovanou částku a druhy služeb možných projektů. V rámci projektu se předpokládá registrace 3 druhy sociálních služeb, které jsou či budou po ukončení projektu zaregistrovány podle zákona č. 108/206 Sb. Každý druh soc. služby podpořený z projektu se započítává pouze 1x. ","K datu 14.11.2019  došlo u tohoto indikátoru k finalizaci  cílové hodnoty. Cílová hodnota tohoto indikátoru byla snížena ze 3 na 2 služby, z důvodu a) skutečné realizace 2 projektů, které vyčerpaly plánovanou alokaci na dané opatření  b) realiazce 2 projektů proběhla ve vyšších částkách z důvodu nárustu cen za stavební práce  c) původně plánovaný třetí projekt (3. služba)  nebyl z důvod vývoje stávající situace v podniku realizován d) zjištěné absorbční kapacita území v rámci Střednědobého hodnocení, kdy nebyl zjištěn žádný další projektový záměr k realizaci. Tato změna byla komunitně projednána v území MAS ŽR  a schválena Valnou hromadou MAS ŽR 14.11.2019.                                                                      "]
[null,"3.4.5. Prorodinná opatření","OP ZAM",2,3,"2.3.","6 00 00","Celkový počet účastníků","osoby","výstupu"," 0","2014-01-01",65,"2023-12-31","xxx","Hodnota indikátoru byla stanovena na základě průzkum území s ohledem na absorpční kapacitu\nZpůsob výpočtu:\nNa opatření bylo přiděleno cca 25 % alokace, průměrná cena na osobu (1 rodič) byla stanovena na cca 69 tis. Kč (s ohledem na doporučení ŘO), výsledná hodnota indikátoru je tedy 70 účastníků.\nV rámci realizace opatření se přepokládá podpora zařízení péče o děti:\n- Příměstské tábory – kapacita příměstského tábora se předpokládá 15 osob, s přihlédnutím na délku realizace proejktu 3 roky a s přihlédnutím na počet osob, u kterých podpora překročí bagatelní hodnotu je plánován počet osob zasažených projektem 29 osob\n- 2 projekty budou na vznik dětských skupin - Dětská skupina zasáhne cca 9 dětí v rámci jednoho projektu (kapacita skupiny se předpokládá 6 dětí, ale s přihlédnutím na realizaci projektu 3 roky se počítá s obměnou části dětí), tj. 18 dětí na 2 dětské skupiny\n- 1 projekt podporu zařízení doplňující chybějící kapacitu (školní družina) kapacita zařízení doplňující chybějící kapacitu bude 10 dětí, s přihlédnutím na délku realizace projektu 3 roky a obměnu dětí se předpokládá, že projekt zasáhne 17 osob\nPři průměrném počtu 1,6 dítěte na 1 rodiče se projekt bude týkat cca 40 rodičů na 4 projekty. Na základě navýšení alokace na opatření, tak aby mohl být podpořen 1 projekt, na který má MAS absorpční kapacitu, byl indikátor navýšen o 25 účastníků. Bude se jednat o  1 projekt na podporu zařízení doplňující chybějící kapacitu (školní družina) a příměstský tábor, s kapacitou zařízení 15 dětí, s přihlédnutím na délku realizace projektu 3 roky a obměnu dětí se předpokládá, že projekt zasáhne 25 osob.\nCelkově bude indikátor tedy 65 účastníků na realizované projekty. ","xxx"]
[{"$nulls":6},"5 00 01","Kapacita\npodpořených\nzařízení péče o děti\nnebo vzdělávacích\nzařízení","osoby","výstupu"," 0","2014-01-01",52,"2023-12-31","xxx","Hodnota indikátoru byla stanovena na základě průzkum území s ohledem na absorpční kapacitu,\npočet účastníků (indikátor 60000) a počet předpokládaných projektů (4 projekty na zařízení\npéče o děti nebo vzdělávací zařízení) \nZpůsob výpočtu:\nV rámci realizace oaptření se přepokládá podpora 4 projektů s následujícíc kapacitou:\n- 1 projekt na příměstské tábory - kapacita tábora se předpokládá 15 osob\n- 2 projekty budou na vznik dětských skupin - kapacita skupiny se předpokládá 6 dětí, tj. 12 dětí na dvě skupiny\n- 1 projekt na podporu zařízení doplňující chybějící kapacitu (školní družina) - kapacitu bude 10 dětí.                                                             Na základě navýšení alokace na opatření, tak aby mohl být podpořen 1 projekt, na který má MAS absorpční kapacitu, byl indikátor navýšen o 15 účastníků. Bude se jednat o  1 projekt na podporu zařízení doplňující chybějící kapacitu (školní družina) a příměstský tábor, s kapacitou zařízení 15 dětí, s přihlédnutím na délku realizace projektu 3 roky a obměnu dětí se předpokládá, že projekt zasáhne 25 osob.\nCelkově bude indikátor tedy 52 osob na realizované projekty.\n","xxx"]
[{"$nulls":6},"5 01 00","Počet podpořených zařízení péče o děti předškolního věku","zařízení","výstupu"," 0","2014-01-01",2,"2023-12-31","xxx","Hodnota indikátoru byla stanovena na základě průzkum území s ohledem na absorpční kapacitu. V rámci realizace opatření je plánováno podpořit 2 zařízení na dětské skupiny, 1 zařízení doplňující chybějící kapacitu (školní družina). ","xxx"]
[{"$nulls":6},"5 01 10","Počet osob využívajících zařízení péče o dětí předškolního věku","osoby","výsledku",0,2013,11,"2023-12-31","xxx","Hodnota indikátoru byla stanovena na základě průzkum území s ohledem na absorpční kapacitu, počet účastníků (indikátor 60000) a Kapacitu podpořených zařízení péče o děti nebo vzdělávací zařízení (indikátor 50001) a počet předpokládaných projektů (2 projekty na zařízení péče o děti nebo vzdělávací zařízení – děské skupiny) \nZpůsob výpočtu:\nNa opatření bylo přiděleno cca 25 % alokace, z toho se plánuje na podporu zařízení péče o děti  předškolního věku. Dětská skupina zasáhne cca 9 dětí v rámci jednoho projektu (kapacita skupiny se předpokládá 6 dětí, ale s přihlédnutím na realizaci projektu 3 roky se počítá s obměnou části dětí), tj. 18 dětí na 2 dětské skupiny Při průměrném počtu 1,6 dítěte na 1 rodiče se projekt bude týkat cca 11 rodičů na 2 projekty.","xxx"]
[{"$nulls":6},"5 01 20","Počet osob využívajících zařízení péče o dětí ve věku do 3 let","osoby","výsledku",0,2013,4,"2023-12-31","xxx","Hodnota indikátoru byla stanovena na základě průzkum území s ohledem na absorpční kapacitu, počet účastníků (indikátor 60000) a Kapacitu podpořených zařízení péče o děti nebo vzdělávací zařízení (indikátor 50001) a počet předpokládaných projektů (2 projekty na zařízení péče o děti nebo vzdělávací zařízení – děské skupiny) \nZpůsob výpočtu:\nNa opatření bylo přiděleno cca 25 % alokace. V rámi realizace opatření se plánuje podpora dětí ve věku do tří let, hlavně z důvodu plánovaného zákona, ze kterého vyplívá povinnost umístění dětí ve věku 2 let. Z tohoto dětské skupiny budou určeny i pro děti mladší než 3 roky. Předpokládá se umístění do dětských skupin dětí mladších 3 let v počtu 6 dětí. Při průměrném počtu 1,6 dítěte na 1 rodiče se projekt bude týkat cca 4 osob..","xxx"]
[{"$nulls":6},62600,"Účastníci, kteří získali kvalifikaci po ukončení své účasti ","Osoby","výsledku",0,2013,4,"2023-12-31","xxx","Hodnota indikátoru byla stanovena s ohledem na průzkum území s ohledem na absorpční kapacitu a na výši způsobilých výdajů pro opatření se předpokládá podpora 4 projektů zaměřených na péči o děti, v rámci kterých 4 účastníci získají kvalifikaci po ukončení své účasti","xxx"]
[{"$nulls":6},62800,"Znevýhodnění účastníci, kteří po ukončení své účasti hledají zaměstnání, jsou v procesu vzdělávání/odborné přípravy, rozšiřují si kvalifikaci nebo jsou zaměstnaní, a to i OSVČ","Osoby","výsledku",0,2013,1,"2023-12-31","xxx","Hodnota indikátoru byla stanovena s ohledem na průzkum území s ohledem na absorpční kapacitu a na výši způsobilých výdajů pro opatření se předpokládá podpora 4 projektů zaměřených na péči o děti, v rámci kterých, bude zaměstnán 1 znevýhodněný účastník.","xxx"]
[{"$nulls":6},62900,"Účastníci zaměstnáni 6 měsíců po ukončení své účasti, včetně OSVČ","Osoby","výsledku",0,2013,4,"2023-12-31","xxx","Hodnota indikátoru byla stanovena s ohledem na průzkum území s ohledem na absorpční kapacitu a na výši způsobilých výdajů pro opatření. Na základě kvalifikovaného odhadu a za předpokladu podpory 4 projektů zaměřených na péči o děti se předpokládá, že budou zaměstnáni 6  měsící po ukončení své účasti 4 osoby.","xxx"]
[{"$nulls":6},63100,"Účastníci ve věku nad 54 let zaměstnaní 6 měsíců po ukončení své účasti, včetně OSVČ","Osoby","výsledku",0,2013,1,"2023-12-31","xxx","Hodnota indikátoru byla stanovena s ohledem na průzkum území s ohledem na absorpční kapacitu a na výši způsobilých výdajů pro opatření. Na základě kvalifikovaného odhadu a za předpokladu podpory 4 projektů zaměřených na péči o děti se předpokládá, že bude 1 osoba ve věku nad 54 let zaměstnána 6 měsíců po ukončení své účasti.","xxx"]
[{"$nulls":6},63200,"Znevýhodnění účastníci zaměstnáni 6 měsíců po ukončení své účasti, včetně OSVČ","Osoby","výsledku",0,2013,1,"2023-12-31","xxx","Hodnota indikátoru byla stanovena s ohledem na průzkum území s ohledem na absorpční kapacitu a na výši způsobilých výdajů pro opatření. Na základě kvalifikovaného odhadu a za předpokladu podpory 4 projektů zaměřených na péči o děti se předpokládá, že bude 1 znevýhodněná osoba zaměstnána 6 měsíců po ukončení své účasti","xxx"]
[{"$nulls":6},62700,"Účastníci zaměstnaní po ukončení své účasti, včetně OSVČ","Osoby","výsledku",0,2013,3,"2023-12-31","xxx","Hodnota indikátoru byla stanovena s ohledem na průzkum území s ohledem na absorpční kapacitu a na výši způsobilých výdajů pro opatření se předpokládá podpora 4 projektů zaměřených na péči o děti, v rámci kterých, budou zaměstnány 3 osoby.","xxx"]
["SC  4","4.1.1. Školy dostupné všem","IROP",4,"9d","4.1.","5 00 30","Počet osob předčasně opouštějící vzdělávací systém","%","výsledku","5,4 ","2013-12-31",5,"2023-12-31","xxx","Hodnoty výsledkových indikátoru, a to jak výchozí tak cílová byla převzata z IROP.  Hodnota mid-therm není nastavena","xxx"]
[{"$nulls":6},"5 00 20","Podíl tříletých dětí umístěných v předškolním zařízení","%","výsledku","77,3 ","2013-12-31",90.5,"2023-12-31","xxx","Hodnoty výsledkových indikátoru, a to jak výchozí tak cílová byla převzata z IROP.  Hodnota mid-therm není nastavena","xxx"]
[{"$nulls":6},"5 00 00","Počet podpořených vzdělávacích zařízení","zařízení","výstupu"," 0","2014-01-01",11,"2023-12-31",3,"Cílová hodnota indikátoru byla stanovena ve výši 11 podpořených školských zařízení (5 MŠ - 4 klasická a 1 zařízení pro děti do 3 let, 4 ZŠ, 2 jiná vzdělávací zařízení), přičemž hodnota mid –term je 3 zařízení, která budou do roku 2018 zrealizovány a proplaceny (1 MŠ, 1 ZŠ a 1 jiné vzdělávací zařízení). Tento požadavek vychází z detailního šetření u školských zařízení a z analýz provedených v rámci projektu Systémová podpora rozvoje meziobecní spolupráce v ČR v rámci území správních obvodů obcí s rozšířenou působností pro jednotlivá ORP. Z daných analýz vyšel zásobník projektů s přehledem požadavků na realizaci projektů. Cena byla stanovena na základě požadavku jednotlivých škol na podporu jejich vzdělávacích zařízení a dle cen obvyklých za vytvoření daného zařízení. Odhadovaná průměrná hodnota je 2 miliony Kč na jedno zařízení.\nPředpokládá se zaměření projektů především na stavební úpravy (prům. cena 1 700 tisíc Kč/úpravu) a pořízení vybavení (prům cena 300 tisíc Kč/soubor vybavení, např. 15 PC). Ceny byly zjištěny z analýzy již realizovaných podobných projektů v území a z následného průzkumu u potenciálních dodavatelů.\nDo hodnoty indikátoru jsou  započítány tyto typy škol – 5x MŠ (4 klasické MŠ A 1 zařízení rpod ěti do 3 let, 4x ZŠ, 2x jiná vzdělávací zařízení)           ","xxx"]
[{"$nulls":6},"5 00 01","Kapacita podporovaných zařízení péče o děti nebo vzdělávací zařízení ","osoby","výstupu"," 0","2014-01-01",130,"2023-12-31","xxx","Cílová hodnota indikátoru byla stanovena ve výši 130 osob, které budou využívat podpořené aktivity. Tento požadavek vychází z detailního šetření u školských zařízení a z analýz provedených v rámci projektu Systémová podpora rozvoje meziobecní spolupráce v ČR v rámci území správních obvodů obcí s rozšířenou působností pro jednotlivá ORP.                            \nHodnota vychází z předpokladu realizátorů projektu a jejich zaměření, dle zásobníku projektů.\n\nRozpad hodnoty indikátoru – 5x MŠ = 50 osob (4x Klasická MŠ = 45 osob a 1x zařízení prod ěti do 3 let = 5 osob), 4x ZŠ = 60 osob, 2x jiná vzdělávací zařízení = 20 osob. Celkem 130 osob.","xxx"]
[{"$nulls":6},"5 01 20","Počet osob využívající zařízení péče o děti do 3 let ","osoby","výsledku"," 0","2014-01-01",2,"2023-12-31","xxx","Cílová hodnota indikátoru byla stanovena ve výši 5 osob, které budou využívat podpořené aktivity. Tento požadavek vychází z detailního šetření u školských zařízení a z analýz provedených v rámci projektu Obce sobě pro jednotlivá ORP s ohledem na absorpční kapacitu a alokovanou částku. Průzkumem bylo zjištěno, že v území neposkytuje žádné zařízení možnost umístění do 3 let do školního zařízení.     \nPředmětem indikátoru je počet uživatelů, kteří využívají zařízení pečující o děti do tří let, tj. zařízení vybudovaná či provozovaná v rámci projektu. \"Uživatelé\" jsou rodiče využívající zařízení pro děti do tří let, které mají z umístění dítěte přínos. \nVýchozí hodnota odpovídá stavu před realizací a byla stanovena na základě vlastních šetření z území., na základě tohoto šetření nebylo zjištěno žádné zařízení péče o děti do 3 let.  Cílová hodnota odpovídá předpokládanému stavu po realizaci, kdy je plánována podpora 1 třídy o průměrné kapacitě 5 dětí, kdy na jedno umístěné dítě připadá 1 rodič. Cílová hodnota je tedy 5.","K datu 14.11.2019  došlo u tohoto indikátoru k úpravě  cílové hodnoty. Cílová hodnota tohoto indikátoru byla snížena z 5 na 2 osoby z důvodu a) skutečné realizace projektů, b) zjištěné absorbční kapacity území v rámci Střednědobého hodnocení, kdy nebyl zjištěn  žádný další projektový záměr ve stádiu připravenosti na podporu osob využívajících zařízení  o děti do 3 let.  V území bude realizován 1 projekt, kde budou v rámci dětské skupiny umístěny děti do 3. let. V rámci podaného projektu je plánované, že kapacita zařízení bude uzpůsobena na 2 děti do 3 let,  kdy na jedno umístěné dítě připadá 1 rodič. Cílová hodnota je tedy 2.                                                                          Tato změna byla komunitně projednána v území MAS ŽR  a schválena Valnou hromadou MAS ŽR 14.11.2019.                                                                      "]